 Batch Number,Vendor Name,Invoice Number, Line,Line Amount,Account Description,Issue Date ,Total Amount Paid
291013D,GOVNET COMMUNICATIONS=========,0000057020,1,355.00,PROFESSIONAL DEVELOPMENT,04/11/13,355.00
140436,OGILVIE FLEET LTD=============,00256782,1,"2,355.27",LEASE CAR CHARGES,04/11/13,"5,546.28"
140436,OGILVIE FLEET LTD=============,00256782,2,"3,191.01",P/PAYMTS-CAR LEASG-RENTAL,04/11/13,
140436,OGILVIE FLEET LTD=============,00256782,3,-494.88,VAT CAR LEASING,04/11/13,
140436,OGILVIE FLEET LTD=============,00256782,4,494.88,LEASE CAR CHARGES,04/11/13,
291013D,MIKE TIPTON,0213,1,540.00,CONSULTANTS,04/11/13,540.00
301013C,HAYS ACCOUNTANCY & FINANCE====,1003574558,1,696.00,FRS STAFF AGENCY,04/11/13,696.00
301013C,HAYS ACCOUNTANCY & FINANCE====,1003663312,1,696.00,FRS STAFF AGENCY,04/11/13,696.00
800025504,AZTEC COMPUTING LTD===========,10420,1,"2,800.00",TELECOMMUNICATIONS,04/11/13,"2,800.00"
800025505,AZTEC COMPUTING LTD===========,10421,1,"11,375.00",MAINTENANCE & SUPPORT,04/11/13,"11,375.00"
800025506,AZTEC COMPUTING LTD===========,10422,1,350.00,TELECOMMUNICATIONS,04/11/13,350.00
800025516,AZTEC COMPUTING LTD===========,10423,1,"4,750.00",TELECOMMUNICATIONS,04/11/13,"4,750.00"
800025517,AZTEC COMPUTING LTD===========,10424,1,"7,000.00",MAINTENANCE & SUPPORT,04/11/13,"7,000.00"
800025510,AZTEC COMPUTING LTD===========,10426,1,"1,050.00",CONSULTANTS,04/11/13,"1,050.00"
800025511,AZTEC COMPUTING LTD===========,10427,1,"1,050.00",ACQUISITIONS,04/11/13,"1,050.00"
800025512,AZTEC COMPUTING LTD===========,10428,1,"1,050.00",TELECOMMUNICATIONS,04/11/13,"1,050.00"
291013D,IBM UK LIMITED================,105306208,1,182.00,MAINTENANCE & SUPPORT,04/11/13,"1,239.00"
291013D,IBM UK LIMITED================,105306208,2,329.00,MAINTENANCE & SUPPORT,04/11/13,
291013D,IBM UK LIMITED================,105306208,3,182.00,MAINTENANCE & SUPPORT,04/11/13,
291013D,IBM UK LIMITED================,105306208,4,182.00,MAINTENANCE & SUPPORT,04/11/13,
291013D,IBM UK LIMITED================,105306208,5,182.00,MAINTENANCE & SUPPORT,04/11/13,
291013D,IBM UK LIMITED================,105306208,6,182.00,MAINTENANCE & SUPPORT,04/11/13,
800025211,REDFERN TRAVEL LTD,1147738,1,332.62,PUBLIC TRANSPORT,04/11/13,332.62
301013C,CEDAFORCE LTD=================,11529,1,838.00,TACTICAL DAY TO DAY,04/11/13,838.00
301013C,AAI SECURITY SYSTEMS==========,124795,1,990.00,STRATEGIC (CYCLICAL),04/11/13,990.00
301013D,FIRSTFIRE LTD=================,13420,1,108.00,CLOTHING,04/11/13,324.00
301013D,FIRSTFIRE LTD=================,13420,2,54.00,CLOTHING,04/11/13,
301013D,FIRSTFIRE LTD=================,13420,3,108.00,CLOTHING,04/11/13,
301013D,FIRSTFIRE LTD=================,13420,4,54.00,CLOTHING,04/11/13,
140436,THAMES WATER UTILITIES LTD====,1414076262W,1,310.70,WATER & SEWERAGE RATES,04/11/13,310.70
140436,THAMES WATER UTILITIES LTD====,1560420001W,1,"1,998.16",WATER & SEWERAGE RATES,04/11/13,"1,998.16"
171013D,GREATER LONDON AUTHORITY======,1800003534,1,"45,951.50",GLA GROUP SHARED SERVICES,04/11/13,"45,951.50"
171013D,GREATER LONDON AUTHORITY======,1800003535,1,"29,750.00",GLA GROUP SHARED SERVICES,04/11/13,"29,750.00"
301013C,ARKAS LIMITED=================,24403,1,"1,780.19",STRATEGIC (CYCLICAL),04/11/13,"4,713.87"
301013C,ARKAS LIMITED=================,24403,2,"1,322.94",STRATEGIC (CYCLICAL),04/11/13,
301013C,ARKAS LIMITED=================,24403,3,"1,610.74",STRATEGIC (CYCLICAL),04/11/13,
800025480,ADECCO UK LIMITED=============,26581325,1,884.24,FRS STAFF AGENCY,04/11/13,884.24
800025481,ADECCO UK LIMITED=============,26581326,1,"1,105.30",FRS STAFF AGENCY,04/11/13,"1,105.30"
800025483,ADECCO UK LIMITED=============,26581328,1,439.60,FRS STAFF AGENCY,04/11/13,439.60
800025484,ADECCO UK LIMITED=============,26581329,1,"1,445.40",FRS STAFF AGENCY,04/11/13,"1,445.40"
800025485,ADECCO UK LIMITED=============,26581330,1,"1,541.79",FRS STAFF AGENCY,04/11/13,"1,541.79"
800025486,ADECCO UK LIMITED=============,26581331,1,594.65,FRS STAFF AGENCY,04/11/13,594.65
800025487,ADECCO UK LIMITED=============,26581332,1,405.16,FRS STAFF AGENCY,04/11/13,405.16
800025488,ADECCO UK LIMITED=============,26581333,1,729.36,CONSULTANTS,04/11/13,729.36
800025489,ADECCO UK LIMITED=============,26581334,1,439.60,FRS STAFF AGENCY,04/11/13,439.60
800025490,ADECCO UK LIMITED=============,26581335,1,"2,500.00",FRS STAFF AGENCY,04/11/13,"2,500.00"
800025491,ADECCO UK LIMITED=============,26581336,1,994.50,FRS STAFF AGENCY,04/11/13,994.50
800025492,ADECCO UK LIMITED=============,26581337,1,439.60,FRS STAFF AGENCY,04/11/13,439.60
800025493,ADECCO UK LIMITED=============,26581338,1,439.60,FRS STAFF AGENCY,04/11/13,439.60
800025494,ADECCO UK LIMITED=============,26581339,1,269.45,FRS STAFF AGENCY,04/11/13,269.45
800025496,ADECCO UK LIMITED=============,26581341,1,"1,949.85",FRS STAFF AGENCY,04/11/13,"1,949.85"
800025497,ADECCO UK LIMITED=============,26581342,1,475.72,FRS STAFF AGENCY,04/11/13,475.72
800025499,ADECCO UK LIMITED=============,26581345,1,439.60,FRS STAFF AGENCY,04/11/13,439.60
241013E,S W BRUCE & CO LTD,29461,1,"19,627.02",DEVELOPMENT  EXPENSES-CONTRACT,04/11/13,"19,627.02"
181013C,COMPUTACENTRE================,3805119518,1,"1,118.43",MAINTENANCE & SUPPORT,04/11/13,"1,118.43"
301013C,SAFE OPTIONS LTD==============,43870,1,657.50,FIXTURES & FITTINGS,04/11/13,657.50
301013C,SAFE OPTIONS LTD==============,43901,1,"1,315.00",FIXTURES & FITTINGS,04/11/13,"1,315.00"
291013D,CORE SURVEYSLTD===============,5280,1,410.50,ASBESTOS,04/11/13,410.50
800024955,*GREENHAM TRADING LTD=========,5612609,1,184.58,HYGIENE,04/11/13,373.71
800024955,*GREENHAM TRADING LTD=========,5612609,2,189.13,HYGIENE,04/11/13,
800024965,*GREENHAM TRADING LTD=========,5612968,1,7.71,HYGIENE,04/11/13,382.50
800024965,*GREENHAM TRADING LTD=========,5612968,2,2.60,CATERING EQUIPMENT,04/11/13,
800024965,*GREENHAM TRADING LTD=========,5612968,3,3.56,HYGIENE,04/11/13,
800024965,*GREENHAM TRADING LTD=========,5612968,4,20.52,HYGIENE,04/11/13,
800024965,*GREENHAM TRADING LTD=========,5612968,5,110.40,OPERATIONAL EQUIP-PURCHASE,04/11/13,
800024965,*GREENHAM TRADING LTD=========,5612968,6,10.05,HYGIENE,04/11/13,
800024965,*GREENHAM TRADING LTD=========,5612968,7,7.60,HYGIENE,04/11/13,
800024965,*GREENHAM TRADING LTD=========,5612968,8,4.20,HYGIENE,04/11/13,
800024965,*GREENHAM TRADING LTD=========,5612968,9,50.26,HYGIENE,04/11/13,
800024965,*GREENHAM TRADING LTD=========,5612968,10,55.20,OPERATIONAL EQUIP-PURCHASE,04/11/13,
800024965,*GREENHAM TRADING LTD=========,5612968,11,110.40,OPERATIONAL EQUIP-PURCHASE,04/11/13,
800024977,*GREENHAM TRADING LTD=========,5612984,1,16.86,HYGIENE,04/11/13,305.81
800024977,*GREENHAM TRADING LTD=========,5612984,2,12.06,HYGIENE,04/11/13,
800024977,*GREENHAM TRADING LTD=========,5612984,3,18.60,HYGIENE,04/11/13,
800024977,*GREENHAM TRADING LTD=========,5612984,4,8.22,HYGIENE,04/11/13,
800024977,*GREENHAM TRADING LTD=========,5612984,5,6.72,HYGIENE,04/11/13,
800024977,*GREENHAM TRADING LTD=========,5612984,6,4.56,HYGIENE,04/11/13,
800024977,*GREENHAM TRADING LTD=========,5612984,7,53.94,HYGIENE,04/11/13,
800024977,*GREENHAM TRADING LTD=========,5612984,8,31.00,HYGIENE,04/11/13,
800024977,*GREENHAM TRADING LTD=========,5612984,9,43.80,CLOTHING,04/11/13,
800024977,*GREENHAM TRADING LTD=========,5612984,10,14.45,HYGIENE,04/11/13,
800024977,*GREENHAM TRADING LTD=========,5612984,11,32.60,HYGIENE,04/11/13,
800024977,*GREENHAM TRADING LTD=========,5612984,12,16.86,HYGIENE,04/11/13,
800024977,*GREENHAM TRADING LTD=========,5612984,13,8.04,HYGIENE,04/11/13,
800024977,*GREENHAM TRADING LTD=========,5612984,14,16.86,HYGIENE,04/11/13,
800024977,*GREENHAM TRADING LTD=========,5612984,15,21.24,HYGIENE,04/11/13,
301013C,JFM MOVING SERVICES LTD=======,59189,1,454.00,REMOVALS,04/11/13,454.00
140428,BRITISH GAS BUSINESS==========,6413309131,1,424.00,ELECTRICITY,04/11/13,"12,683.83"
140428,BRITISH GAS BUSINESS==========,6413309131,2,332.11,ELECTRICITY,04/11/13,
140428,BRITISH GAS BUSINESS==========,6413309131,3,555.07,ELECTRICITY,04/11/13,
140428,BRITISH GAS BUSINESS==========,6413309131,4,310.72,ELECTRICITY,04/11/13,
140428,BRITISH GAS BUSINESS==========,6413309131,5,607.43,ELECTRICITY,04/11/13,
140428,BRITISH GAS BUSINESS==========,6413309131,6,338.30,ELECTRICITY,04/11/13,
140428,BRITISH GAS BUSINESS==========,6413309131,7,519.56,ELECTRICITY,04/11/13,
140428,BRITISH GAS BUSINESS==========,6413309131,8,280.88,ELECTRICITY,04/11/13,
140428,BRITISH GAS BUSINESS==========,6413309131,9,291.94,ELECTRICITY,04/11/13,
140428,BRITISH GAS BUSINESS==========,6413309131,10,510.15,ELECTRICITY,04/11/13,
140428,BRITISH GAS BUSINESS==========,6413309131,11,239.40,ELECTRICITY,04/11/13,
140428,BRITISH GAS BUSINESS==========,6413309131,12,364.05,ELECTRICITY,04/11/13,
140428,BRITISH GAS BUSINESS==========,6413309131,13,421.70,ELECTRICITY,04/11/13,
140428,BRITISH GAS BUSINESS==========,6413309131,14,529.68,ELECTRICITY,04/11/13,
140428,BRITISH GAS BUSINESS==========,6413309131,15,481.69,ELECTRICITY,04/11/13,
140428,BRITISH GAS BUSINESS==========,6413309131,16,388.20,ELECTRICITY,04/11/13,
140428,BRITISH GAS BUSINESS==========,6413309131,17,153.18,ELECTRICITY,04/11/13,
140428,BRITISH GAS BUSINESS==========,6413309131,18,244.88,ELECTRICITY,04/11/13,
140428,BRITISH GAS BUSINESS==========,6413309131,19,62.94,ELECTRICITY,04/11/13,
140428,BRITISH GAS BUSINESS==========,6413309131,20,36.85,ELECTRICITY,04/11/13,
140428,BRITISH GAS BUSINESS==========,6413309131,21,34.03,ELECTRICITY,04/11/13,
140428,BRITISH GAS BUSINESS==========,6413309131,22,53.95,ELECTRICITY,04/11/13,
140428,BRITISH GAS BUSINESS==========,6413309131,23,511.77,ELECTRICITY,04/11/13,
140428,BRITISH GAS BUSINESS==========,6413309131,24,35.79,ELECTRICITY,04/11/13,
140428,BRITISH GAS BUSINESS==========,6413309131,25,32.22,ELECTRICITY,04/11/13,
140428,BRITISH GAS BUSINESS==========,6413309131,26,18.25,ELECTRICITY,04/11/13,
140428,BRITISH GAS BUSINESS==========,6413309131,27,989.52,ELECTRICITY,04/11/13,
140428,BRITISH GAS BUSINESS==========,6413309131,28,808.32,ELECTRICITY,04/11/13,
140428,BRITISH GAS BUSINESS==========,6413309131,29,"1,255.40",ELECTRICITY,04/11/13,
140428,BRITISH GAS BUSINESS==========,6413309131,30,356.77,ELECTRICITY,04/11/13,
140428,BRITISH GAS BUSINESS==========,6413309131,31,256.37,ELECTRICITY,04/11/13,
140428,BRITISH GAS BUSINESS==========,6413309131,32,175.76,ELECTRICITY,04/11/13,
140428,BRITISH GAS BUSINESS==========,6413309131,33,351.66,ELECTRICITY,04/11/13,
140428,BRITISH GAS BUSINESS==========,6413309131,34,245.55,ELECTRICITY,04/11/13,
140428,BRITISH GAS BUSINESS==========,6413309131,35,465.74,ELECTRICITY,04/11/13,
140429,BRITISH GAS BUSINESS==========,6413309132,1,458.73,ELECTRICITY,04/11/13,"11,104.54"
140429,BRITISH GAS BUSINESS==========,6413309132,2,461.58,ELECTRICITY,04/11/13,
140429,BRITISH GAS BUSINESS==========,6413309132,3,15.69,ELECTRICITY,04/11/13,
140429,BRITISH GAS BUSINESS==========,6413309132,4,283.12,ELECTRICITY,04/11/13,
140429,BRITISH GAS BUSINESS==========,6413309132,5,36.97,ELECTRICITY,04/11/13,
140429,BRITISH GAS BUSINESS==========,6413309132,6,345.88,ELECTRICITY,04/11/13,
140429,BRITISH GAS BUSINESS==========,6413309132,7,321.40,ELECTRICITY,04/11/13,
140429,BRITISH GAS BUSINESS==========,6413309132,8,18.27,ELECTRICITY,04/11/13,
140429,BRITISH GAS BUSINESS==========,6413309132,9,66.05,ELECTRICITY,04/11/13,
140429,BRITISH GAS BUSINESS==========,6413309132,10,17.12,ELECTRICITY,04/11/13,
140429,BRITISH GAS BUSINESS==========,6413309132,11,16.75,ELECTRICITY,04/11/13,
140429,BRITISH GAS BUSINESS==========,6413309132,12,590.44,ELECTRICITY,04/11/13,
140429,BRITISH GAS BUSINESS==========,6413309132,13,234.37,ELECTRICITY,04/11/13,
140429,BRITISH GAS BUSINESS==========,6413309132,14,673.72,ELECTRICITY,04/11/13,
140429,BRITISH GAS BUSINESS==========,6413309132,15,16.03,ELECTRICITY,04/11/13,
140429,BRITISH GAS BUSINESS==========,6413309132,16,323.58,ELECTRICITY,04/11/13,
140429,BRITISH GAS BUSINESS==========,6413309132,17,447.44,ELECTRICITY,04/11/13,
140429,BRITISH GAS BUSINESS==========,6413309132,18,369.26,ELECTRICITY,04/11/13,
140429,BRITISH GAS BUSINESS==========,6413309132,19,220.36,ELECTRICITY,04/11/13,
140429,BRITISH GAS BUSINESS==========,6413309132,20,38.35,ELECTRICITY,04/11/13,
140429,BRITISH GAS BUSINESS==========,6413309132,21,234.99,ELECTRICITY,04/11/13,
140429,BRITISH GAS BUSINESS==========,6413309132,22,"1,703.28",ELECTRICITY,04/11/13,
140429,BRITISH GAS BUSINESS==========,6413309132,23,24.82,ELECTRICITY,04/11/13,
140429,BRITISH GAS BUSINESS==========,6413309132,24,640.69,ELECTRICITY,04/11/13,
140429,BRITISH GAS BUSINESS==========,6413309132,25,69.86,ELECTRICITY,04/11/13,
140429,BRITISH GAS BUSINESS==========,6413309132,26,308.89,ELECTRICITY,04/11/13,
140429,BRITISH GAS BUSINESS==========,6413309132,27,229.01,ELECTRICITY,04/11/13,
140429,BRITISH GAS BUSINESS==========,6413309132,28,261.06,ELECTRICITY,04/11/13,
140429,BRITISH GAS BUSINESS==========,6413309132,29,332.47,ELECTRICITY,04/11/13,
140429,BRITISH GAS BUSINESS==========,6413309132,30,539.69,ELECTRICITY,04/11/13,
140429,BRITISH GAS BUSINESS==========,6413309132,31,420.03,ELECTRICITY,04/11/13,
140429,BRITISH GAS BUSINESS==========,6413309132,32,155.90,ELECTRICITY,04/11/13,
140429,BRITISH GAS BUSINESS==========,6413309132,33,96.08,ELECTRICITY,04/11/13,
140429,BRITISH GAS BUSINESS==========,6413309132,34,366.66,ELECTRICITY,04/11/13,
140429,BRITISH GAS BUSINESS==========,6413309132,35,350.45,ELECTRICITY,04/11/13,
140429,BRITISH GAS BUSINESS==========,6413309132,36,415.55,ELECTRICITY,04/11/13,
140430,BRITISH GAS BUSINESS==========,6413309133,1,312.56,ELECTRICITY,04/11/13,"14,506.35"
140430,BRITISH GAS BUSINESS==========,6413309133,2,509.56,ELECTRICITY,04/11/13,
140430,BRITISH GAS BUSINESS==========,6413309133,3,525.65,ELECTRICITY,04/11/13,
140430,BRITISH GAS BUSINESS==========,6413309133,4,506.69,ELECTRICITY,04/11/13,
140430,BRITISH GAS BUSINESS==========,6413309133,5,552.72,ELECTRICITY,04/11/13,
140430,BRITISH GAS BUSINESS==========,6413309133,6,341.16,ELECTRICITY,04/11/13,
140430,BRITISH GAS BUSINESS==========,6413309133,7,300.31,ELECTRICITY,04/11/13,
140430,BRITISH GAS BUSINESS==========,6413309133,8,12.22,ELECTRICITY,04/11/13,
140430,BRITISH GAS BUSINESS==========,6413309133,9,357.54,ELECTRICITY,04/11/13,
140430,BRITISH GAS BUSINESS==========,6413309133,10,258.05,ELECTRICITY,04/11/13,
140430,BRITISH GAS BUSINESS==========,6413309133,11,447.12,ELECTRICITY,04/11/13,
140430,BRITISH GAS BUSINESS==========,6413309133,12,42.14,ELECTRICITY,04/11/13,
140430,BRITISH GAS BUSINESS==========,6413309133,13,28.03,ELECTRICITY,04/11/13,
140430,BRITISH GAS BUSINESS==========,6413309133,14,373.01,ELECTRICITY,04/11/13,
140430,BRITISH GAS BUSINESS==========,6413309133,15,324.76,ELECTRICITY,04/11/13,
140430,BRITISH GAS BUSINESS==========,6413309133,16,37.38,ELECTRICITY,04/11/13,
140430,BRITISH GAS BUSINESS==========,6413309133,17,381.91,ELECTRICITY,04/11/13,
140430,BRITISH GAS BUSINESS==========,6413309133,18,824.78,ELECTRICITY,04/11/13,
140430,BRITISH GAS BUSINESS==========,6413309133,19,603.75,ELECTRICITY,04/11/13,
140430,BRITISH GAS BUSINESS==========,6413309133,20,403.52,ELECTRICITY,04/11/13,
140430,BRITISH GAS BUSINESS==========,6413309133,21,204.73,ELECTRICITY,04/11/13,
140430,BRITISH GAS BUSINESS==========,6413309133,22,"1,853.25",ELECTRICITY,04/11/13,
140430,BRITISH GAS BUSINESS==========,6413309133,23,282.06,ELECTRICITY,04/11/13,
140430,BRITISH GAS BUSINESS==========,6413309133,24,528.02,ELECTRICITY,04/11/13,
140430,BRITISH GAS BUSINESS==========,6413309133,25,226.68,ELECTRICITY,04/11/13,
140430,BRITISH GAS BUSINESS==========,6413309133,26,272.70,ELECTRICITY,04/11/13,
140430,BRITISH GAS BUSINESS==========,6413309133,27,306.96,ELECTRICITY,04/11/13,
140430,BRITISH GAS BUSINESS==========,6413309133,28,507.79,ELECTRICITY,04/11/13,
140430,BRITISH GAS BUSINESS==========,6413309133,29,306.37,ELECTRICITY,04/11/13,
140430,BRITISH GAS BUSINESS==========,6413309133,30,460.40,ELECTRICITY,04/11/13,
140430,BRITISH GAS BUSINESS==========,6413309133,31,236.48,ELECTRICITY,04/11/13,
140430,BRITISH GAS BUSINESS==========,6413309133,32,944.54,ELECTRICITY,04/11/13,
140430,BRITISH GAS BUSINESS==========,6413309133,33,273.70,ELECTRICITY,04/11/13,
140430,BRITISH GAS BUSINESS==========,6413309133,34,456.99,ELECTRICITY,04/11/13,
140430,BRITISH GAS BUSINESS==========,6413309133,35,502.82,ELECTRICITY,04/11/13,
140431,BRITISH GAS BUSINESS==========,6413309134,1,335.29,ELECTRICITY,04/11/13,"14,499.07"
140431,BRITISH GAS BUSINESS==========,6413309134,2,328.43,ELECTRICITY,04/11/13,
140431,BRITISH GAS BUSINESS==========,6413309134,3,547.02,GAS,04/11/13,
140431,BRITISH GAS BUSINESS==========,6413309134,4,275.24,ELECTRICITY,04/11/13,
140431,BRITISH GAS BUSINESS==========,6413309134,5,271.08,ELECTRICITY,04/11/13,
140431,BRITISH GAS BUSINESS==========,6413309134,6,295.05,ELECTRICITY,04/11/13,
140431,BRITISH GAS BUSINESS==========,6413309134,7,396.67,ELECTRICITY,04/11/13,
140431,BRITISH GAS BUSINESS==========,6413309134,8,408.15,ELECTRICITY,04/11/13,
140431,BRITISH GAS BUSINESS==========,6413309134,9,370.92,ELECTRICITY,04/11/13,
140431,BRITISH GAS BUSINESS==========,6413309134,10,41.61,ELECTRICITY,04/11/13,
140431,BRITISH GAS BUSINESS==========,6413309134,11,24.86,ELECTRICITY,04/11/13,
140431,BRITISH GAS BUSINESS==========,6413309134,12,24.33,ELECTRICITY,04/11/13,
140431,BRITISH GAS BUSINESS==========,6413309134,13,20.10,ELECTRICITY,04/11/13,
140431,BRITISH GAS BUSINESS==========,6413309134,14,425.52,ELECTRICITY,04/11/13,
140431,BRITISH GAS BUSINESS==========,6413309134,15,253.44,ELECTRICITY,04/11/13,
140431,BRITISH GAS BUSINESS==========,6413309134,16,761.09,ELECTRICITY,04/11/13,
140431,BRITISH GAS BUSINESS==========,6413309134,17,304.95,ELECTRICITY,04/11/13,
140431,BRITISH GAS BUSINESS==========,6413309134,18,206.79,ELECTRICITY,04/11/13,
140431,BRITISH GAS BUSINESS==========,6413309134,19,249.68,ELECTRICITY,04/11/13,
140431,BRITISH GAS BUSINESS==========,6413309134,20,184.32,ELECTRICITY,04/11/13,
140431,BRITISH GAS BUSINESS==========,6413309134,21,430.52,ELECTRICITY,04/11/13,
140431,BRITISH GAS BUSINESS==========,6413309134,22,596.42,ELECTRICITY,04/11/13,
140431,BRITISH GAS BUSINESS==========,6413309134,23,"2,173.03",ELECTRICITY,04/11/13,
140431,BRITISH GAS BUSINESS==========,6413309134,24,244.75,ELECTRICITY,04/11/13,
140431,BRITISH GAS BUSINESS==========,6413309134,25,22.52,ELECTRICITY,04/11/13,
140431,BRITISH GAS BUSINESS==========,6413309134,26,175.77,ELECTRICITY,04/11/13,
140431,BRITISH GAS BUSINESS==========,6413309134,27,540.94,ELECTRICITY,04/11/13,
140431,BRITISH GAS BUSINESS==========,6413309134,28,542.11,ELECTRICITY,04/11/13,
140431,BRITISH GAS BUSINESS==========,6413309134,29,357.83,ELECTRICITY,04/11/13,
140431,BRITISH GAS BUSINESS==========,6413309134,30,461.19,ELECTRICITY,04/11/13,
140431,BRITISH GAS BUSINESS==========,6413309134,31,381.10,ELECTRICITY,04/11/13,
140431,BRITISH GAS BUSINESS==========,6413309134,32,830.57,ELECTRICITY,04/11/13,
140431,BRITISH GAS BUSINESS==========,6413309134,33,500.09,ELECTRICITY,04/11/13,
140431,BRITISH GAS BUSINESS==========,6413309134,34,"1,210.96",ELECTRICITY,04/11/13,
140431,BRITISH GAS BUSINESS==========,6413309134,35,306.73,ELECTRICITY,04/11/13,
140433,BRITISH GAS BUSINESS==========,6413309135,1,270.06,ELECTRICITY,04/11/13,"3,398.16"
140433,BRITISH GAS BUSINESS==========,6413309135,2,471.56,ELECTRICITY,04/11/13,
140433,BRITISH GAS BUSINESS==========,6413309135,3,36.86,ELECTRICITY,04/11/13,
140433,BRITISH GAS BUSINESS==========,6413309135,4,15.08,ELECTRICITY,04/11/13,
140433,BRITISH GAS BUSINESS==========,6413309135,5,29.80,ELECTRICITY,04/11/13,
140433,BRITISH GAS BUSINESS==========,6413309135,6,351.01,ELECTRICITY,04/11/13,
140433,BRITISH GAS BUSINESS==========,6413309135,7,381.29,ELECTRICITY,04/11/13,
140433,BRITISH GAS BUSINESS==========,6413309135,8,266.93,ELECTRICITY,04/11/13,
140433,BRITISH GAS BUSINESS==========,6413309135,9,615.34,ELECTRICITY,04/11/13,
140433,BRITISH GAS BUSINESS==========,6413309135,10,319.23,ELECTRICITY,04/11/13,
140433,BRITISH GAS BUSINESS==========,6413309135,11,393.88,ELECTRICITY,04/11/13,
140433,BRITISH GAS BUSINESS==========,6413309135,12,11.90,ELECTRICITY,04/11/13,
140433,BRITISH GAS BUSINESS==========,6413309135,13,235.22,ELECTRICITY,04/11/13,
140435,LONDON PENSIONS FUND AUTHORITY,6933,1,"85,575.06",LOCAL GOVT PENSION SCHEME PAYM,04/11/13,"85,575.06"
291013D,WOOD & WOOD INTERNATIONL SIGNS,82760,1,"5,230.00",STRATEGIC (NON CYCLICAL),04/11/13,"5,702.00"
291013D,WOOD & WOOD INTERNATIONL SIGNS,82760,2,472.00,STRATEGIC (NON CYCLICAL),04/11/13,
301013D,DRAEGER SAFETY UK LIMITED=====,90426805,1,725.00,PROTECTIVE EQUIPT - PARTS,04/11/13,725.00
301013D,DRAEGER SAFETY UK LIMITED=====,90426806,1,"1,134.80",PROTECTIVE EQUIPT - PARTS,04/11/13,"1,134.80"
301013D,DRAEGER SAFETY UK LIMITED=====,90427048,1,250.00,REPAIR & MAINTENANCE,04/11/13,256.00
301013D,DRAEGER SAFETY UK LIMITED=====,90427048,2,6.00,REPAIR & MAINTENANCE,04/11/13,
301013D,DRAEGER SAFETY UK LIMITED=====,90427884,1,810.00,PROTECTIVE EQUIPT - PARTS,04/11/13,"1,082.20"
301013D,DRAEGER SAFETY UK LIMITED=====,90427884,2,222.20,PROTECTIVE EQUIPT - PARTS,04/11/13,
301013D,DRAEGER SAFETY UK LIMITED=====,90427884,3,50.00,PROTECTIVE EQUIPT - PARTS,04/11/13,
301013D,DRAEGER SAFETY UK LIMITED=====,90428202,1,543.75,PROTECTIVE EQUIPT - PARTS,04/11/13,543.75
291013D,NCC SERVICES LTD==============,E851853,1,"1,125.00",MAINTENANCE & SUPPORT,04/11/13,"1,125.00"
301013C,KIER BUILDING SERV ENGINEERS==,F0045340,1,"7,191.00",STRATEGIC (NON CYCLICAL),04/11/13,"7,191.00"
301013C,KIER BUILDING SERV ENGINEERS==,F0045342,1,870.92,STRATEGIC (CYCLICAL),04/11/13,870.92
301013C,WM ENGINEERING SERVICES LTD===,I-4555,1,875.80,TACTICAL DAY TO DAY,04/11/13,875.80
301013D,PHOENIX SOFTWARE LTD==========,OP/I710410,1,"1,522.80",MAINTENANCE & SUPPORT,04/11/13,"1,645.10"
301013D,PHOENIX SOFTWARE LTD==========,OP/I710410,2,122.30,MAINTENANCE & SUPPORT,04/11/13,
291013D,PILLINGER CONTROLS LTD========,PI71923,1,"2,050.08",DAY TO DAY MINOR IMPS,04/11/13,"4,100.16"
291013D,PILLINGER CONTROLS LTD========,PI71923,2,"2,050.08",STRATEGIC (NON CYCLICAL),04/11/13,
800025020,*XMA LTD,U079878,1,134.80,STATIONERY CONSUMABLES,04/11/13,295.86
800025020,*XMA LTD,U079878,2,55.28,STATIONERY CONSUMABLES,04/11/13,
800025020,*XMA LTD,U079878,3,51.23,STATIONERY CONSUMABLES,04/11/13,
800025020,*XMA LTD,U079878,4,54.55,STATIONERY CONSUMABLES,04/11/13,
800025021,*XMA LTD,U079911,1,54.55,STATIONERY CONSUMABLES,04/11/13,322.12
800025021,*XMA LTD,U079911,2,51.23,STATIONERY CONSUMABLES,04/11/13,
800025021,*XMA LTD,U079911,3,55.28,STATIONERY CONSUMABLES,04/11/13,
800025021,*XMA LTD,U079911,4,54.55,STATIONERY CONSUMABLES,04/11/13,
800025021,*XMA LTD,U079911,5,51.23,STATIONERY CONSUMABLES,04/11/13,
800025021,*XMA LTD,U079911,6,55.28,STATIONERY CONSUMABLES,04/11/13,
140437,THAMES WATER UTILITIES LTD====,0705420579D,1,902.56,WATER & SEWERAGE RATES,07/11/13,902.56
011113C,HAYS ACCOUNTANCY & FINANCE====,1003689903,1,696.00,FRS STAFF AGENCY,07/11/13,696.00
041113D,*SPRUE SAFETY PRODUCTS LTD====,1052126,1,"1,416.00",FIRE DETECTORS,07/11/13,"1,416.00"
051113F,BUSINESS EDGE LIMITED,10862,1,"1,652.74",CONSULTANTS,07/11/13,"1,652.74"
041113D,ACL ELECTRICAL LIMITED,11002,1,"1,337.67",DEVELOPMENT  EXPENSES-CONTRACT,07/11/13,"6,754.41"
041113D,ACL ELECTRICAL LIMITED,11002,2,"1,729.12",DEVELOPMENT  EXPENSES-CONTRACT,07/11/13,
041113D,ACL ELECTRICAL LIMITED,11002,3,"1,801.62",DEVELOPMENT  EXPENSES-CONTRACT,07/11/13,
041113D,ACL ELECTRICAL LIMITED,11002,4,"1,886.00",DEVELOPMENT  EXPENSES-CONTRACT,07/11/13,
041113D,INFOR (UNITED KINGDOM) LIMITED,11306565-GB04G,1,"8,560.00",DAY TO DAY MINOR IMPS,07/11/13,"8,560.00"
041113D,INFOR (UNITED KINGDOM) LIMITED,11306567-GB04G,1,535.00,MAINTENANCE & SUPPORT,07/11/13,535.00
041113D,INFOR (UNITED KINGDOM) LIMITED,11306571-GB04G,1,"1,150.00",MAINTENANCE & SUPPORT,07/11/13,"1,150.00"
041113D,INFOR (UNITED KINGDOM) LIMITED,11306572-GB04G,1,"1,070.00",MAINTENANCE & SUPPORT,07/11/13,"1,070.00"
140438,MISS NATASHA JOFFE============,113377A,1,"1,050.00",COUNSELS FEES,07/11/13,"1,050.00"
051113F,VISTA LANDSCAPE MANAGEMENT LTD,118871,1,75.00,GROUNDS MAINTENANCE,07/11/13,825.00
051113F,VISTA LANDSCAPE MANAGEMENT LTD,118871,2,525.00,GROUNDS MAINTENANCE,07/11/13,
051113F,VISTA LANDSCAPE MANAGEMENT LTD,118871,3,50.00,GROUNDS MAINTENANCE,07/11/13,
051113F,VISTA LANDSCAPE MANAGEMENT LTD,118871,4,175.00,GROUNDS MAINTENANCE,07/11/13,
051113F,VISTA LANDSCAPE MANAGEMENT LTD,118874,1,150.00,GROUNDS MAINTENANCE,07/11/13,450.00
051113F,VISTA LANDSCAPE MANAGEMENT LTD,118874,2,100.00,GROUNDS MAINTENANCE,07/11/13,
051113F,VISTA LANDSCAPE MANAGEMENT LTD,118874,3,150.00,GROUNDS MAINTENANCE,07/11/13,
051113F,VISTA LANDSCAPE MANAGEMENT LTD,118874,4,50.00,GROUNDS MAINTENANCE,07/11/13,
051113F,VISTA LANDSCAPE MANAGEMENT LTD,118875,1,687.50,GROUNDS MAINTENANCE,07/11/13,"2,435.00"
051113F,VISTA LANDSCAPE MANAGEMENT LTD,118875,2,412.50,GROUNDS MAINTENANCE,07/11/13,
051113F,VISTA LANDSCAPE MANAGEMENT LTD,118875,3,350.00,GROUNDS MAINTENANCE,07/11/13,
051113F,VISTA LANDSCAPE MANAGEMENT LTD,118875,4,350.00,GROUNDS MAINTENANCE,07/11/13,
051113F,VISTA LANDSCAPE MANAGEMENT LTD,118875,5,225.00,GROUNDS MAINTENANCE,07/11/13,
051113F,VISTA LANDSCAPE MANAGEMENT LTD,118875,6,75.00,GROUNDS MAINTENANCE,07/11/13,
051113F,VISTA LANDSCAPE MANAGEMENT LTD,118875,7,335.00,GROUNDS MAINTENANCE,07/11/13,
051113F,VISTA LANDSCAPE MANAGEMENT LTD,118877,1,350.00,GROUNDS MAINTENANCE,07/11/13,850.00
051113F,VISTA LANDSCAPE MANAGEMENT LTD,118877,2,275.00,GROUNDS MAINTENANCE,07/11/13,
051113F,VISTA LANDSCAPE MANAGEMENT LTD,118877,3,150.00,GROUNDS MAINTENANCE,07/11/13,
051113F,VISTA LANDSCAPE MANAGEMENT LTD,118877,4,75.00,GROUNDS MAINTENANCE,07/11/13,
041113D,CPL PETROLEUM=================,1222457,1,"2,240.00",FUEL,07/11/13,"2,240.00"
291013D,RME SERVICES LIMITED,123204,1,"1,342.56",DEVELOPMENT  EXPENSES-CONTRACT,07/11/13,"1,342.56"
011113C,RICHARD EDWARD LTD============,125030,1,650.00,PRINTING,07/11/13,650.00
140437,THAMES WATER UTILITIES LTD====,13752-86795J,1,323.30,WATER & SEWERAGE RATES,07/11/13,323.30
011113C,RESPIREX======================,144163,1,"5,000.00",REPAIR & MAINTENANCE,07/11/13,"5,000.00"
051113F,H FINE & SON LTD==============,145120,1,736.50,UNIFORMS - POMS,07/11/13,736.50
051113F,ABARIS INTERNATIONAL LIMITED==,15847,1,427.02,OPERATIONAL EQUIP-PURCHASE,07/11/13,435.52
051113F,ABARIS INTERNATIONAL LIMITED==,15847,2,8.50,OPERATIONAL EQUIP-PURCHASE,07/11/13,
041113D,VIGILANCE PROPERTIES,1609,1,"7,500.00",PREMISES SECURITY,07/11/13,"7,500.00"
301013C,COMMUNITIES & LOCAL GOVERNMENT,1800019224,1,"84,661.56",MAINTENANCE & SUPPORT,07/11/13,"92,685.66"
301013C,COMMUNITIES & LOCAL GOVERNMENT,1800019224,2,"8,024.10",MAINTENANCE & SUPPORT,07/11/13,
140437,AFFINITY WATER,1823212-2J,1,369.25,WATER & SEWERAGE RATES,07/11/13,369.25
291013D,ENERGY AUDITING AGENCY LTD====,20132536,1,163.00,PROFESSIONAL SERVICES,07/11/13,489.00
291013D,ENERGY AUDITING AGENCY LTD====,20132536,2,163.00,PROFESSIONAL SERVICES,07/11/13,
291013D,ENERGY AUDITING AGENCY LTD====,20132536,3,163.00,PROFESSIONAL SERVICES,07/11/13,
291013D,ENERGY AUDITING AGENCY LTD====,20132537,1,163.00,PROFESSIONAL SERVICES,07/11/13,489.00
291013D,ENERGY AUDITING AGENCY LTD====,20132537,2,163.00,PROFESSIONAL SERVICES,07/11/13,
291013D,ENERGY AUDITING AGENCY LTD====,20132537,3,163.00,PROFESSIONAL SERVICES,07/11/13,
041113D,*LOCKHART CATERING EQUIPMENT,2062161,1,37.71,CATERING EQUIPMENT,07/11/13,298.33
041113D,*LOCKHART CATERING EQUIPMENT,2062161,2,61.60,CATERING EQUIPMENT,07/11/13,
041113D,*LOCKHART CATERING EQUIPMENT,2062161,3,113.52,CATERING EQUIPMENT,07/11/13,
041113D,*LOCKHART CATERING EQUIPMENT,2062161,4,31.66,CATERING EQUIPMENT,07/11/13,
041113D,*LOCKHART CATERING EQUIPMENT,2062161,5,27.82,CATERING EQUIPMENT,07/11/13,
041113D,*LOCKHART CATERING EQUIPMENT,2062161,6,26.02,CATERING EQUIPMENT,07/11/13,
291013D,SAFEGUARD PEST CON. & ENV.LTD,211608,1,440.00,PEST CONTROL,07/11/13,440.00
140438,MS HEATHER OLIVER,231918,1,770.00,PROFESSIONAL FEES ENFORCEMENT,07/11/13,770.00
011113C,CK DIRECT,3075,1,"7,825.00",CATERING FIXTURES,07/11/13,"7,825.00"
041113D,SPECTRUM======================,3157,1,780.00,SPECIALIST EQUIPMENT,07/11/13,780.00
140437,THAMES WATER UTILITIES LTD====,3229800367H,1,809.57,WATER & SEWERAGE RATES,07/11/13,809.57
011113D,STEPHEN AUSTIN & SONS LTD=====,32757,1,271.00,PRINTING,07/11/13,271.00
041113D,THE HEIGHTEC GROUP LTD========,36438,1,362.18,OPERATIONAL EQUIP-PURCHASE,07/11/13,362.18
140437,FOCUS & VISION TECHNOLOGY LTD,37109,1,658.10,MEDICAL EXPENSES,07/11/13,658.10
301013C,COMPUTACENTRE================,3805127187,1,"13,950.00",PURCHASES-COMPUTER/EQUIPMENT,07/11/13,"13,950.00"
291013D,COMPUTACENTRE================,3805136167,1,447.06,DAY TO DAY MINOR IMPS,07/11/13,658.17
291013D,COMPUTACENTRE================,3805136167,2,211.11,DAY TO DAY MINOR IMPS,07/11/13,
140438,MR STEVEN SNOWDEN=============,400647B,1,"4,000.00",COUNSELS FEES,07/11/13,"4,000.00"
251013C,W & E DERRICK BLDG. CONT.=====,4052,1,310.00,STRATEGIC (NON CYCLICAL),07/11/13,310.00
241013C,PRESCO========================,422578,1,312.47,STATIONERY CONSUMABLES,07/11/13,312.47
011113C,SPEEDINGS LIMITED=============,44163,1,292.50,REPAIR & MAINTENANCE,07/11/13,306.50
011113C,SPEEDINGS LIMITED=============,44163,2,14.00,REPAIR & MAINTENANCE,07/11/13,
041113D,MITIE SECURITY (LONDON) LTD===,45/535279,1,"1,666.25",PREMISES SECURITY,07/11/13,"1,666.25"
011113C,FAHEY BUILDERS LTD============,5172,1,"8,180.00",STRATEGIC (NON CYCLICAL),07/11/13,"11,180.00"
011113C,FAHEY BUILDERS LTD============,5172,2,"3,000.00",STRATEGIC (NON CYCLICAL),07/11/13,
051113F,FAHEY BUILDERS LTD============,5174,1,"5,875.00",STRATEGIC (NON CYCLICAL),07/11/13,"5,875.00"
041113D,C P GREGORY & ASSOCIATES LTD==,547,1,660.00,PROFESSIONAL DEVELOPMENT,07/11/13,660.00
041113D,C P GREGORY & ASSOCIATES LTD==,553,1,610.00,PROFESSIONAL DEVELOPMENT,07/11/13,610.00
011113C,URS SCOTT WILSON LIMITED,5687483,1,"4,739.34",PROF FEES-MISCELLANEOUS,07/11/13,"4,739.34"
291013D,URS SCOTT WILSON LIMITED,5687494,1,"1,806.98",PROF FEES-MISCELLANEOUS,07/11/13,"1,806.98"
041113D,CONTRACT CATERING CONSULTANTS=,6202,1,500.00,CONSULTANTS,07/11/13,500.00
011113C,GAS & AIR SERVICES (UK)=======,6233,1,360.00,PROTECTIVE EQUIPT - PARTS,07/11/13,366.50
011113C,GAS & AIR SERVICES (UK)=======,6233,2,6.50,REPAIR & MAINTENANCE,07/11/13,
051113F,TRY & LILLY LTD===============,63252,1,153.15,UNIFORMS - POMS,07/11/13,"1,686.05"
051113F,TRY & LILLY LTD===============,63252,2,153.15,UNIFORMS - POMS,07/11/13,
051113F,TRY & LILLY LTD===============,63252,3,196.50,UNIFORMS - POMS,07/11/13,
051113F,TRY & LILLY LTD===============,63252,4,196.50,UNIFORMS - POMS,07/11/13,
051113F,TRY & LILLY LTD===============,63252,5,393.00,UNIFORMS - POMS,07/11/13,
051113F,TRY & LILLY LTD===============,63252,6,196.50,UNIFORMS - POMS,07/11/13,
051113F,TRY & LILLY LTD===============,63252,7,397.25,UNIFORMS - POMS,07/11/13,
140437,THAMES WATER UTILITIES LTD====,68834-98179O,1,723.38,WATER & SEWERAGE RATES,07/11/13,723.38
041113D,*SP SERVICES,712152,1,299.50,HYGIENE,07/11/13,302.12
041113D,*SP SERVICES,712152,2,2.62,HYGIENE,07/11/13,
041113D,BLUE KELD SPRINGS LTD=========,8000866,1,"1,386.00",UNIFORMS - POMS,07/11/13,"1,386.00"
140438,MISS SARAH SIMCOCK,88616*,1,"1,500.00",COUNSELS FEES,07/11/13,"1,500.00"
011113C,THERMO FISHER SCIENTIFIC MESST,9110196917,1,"1,740.00",PROTECTIVE EQUIPT - PARTS,07/11/13,"1,766.00"
011113C,THERMO FISHER SCIENTIFIC MESST,9110196917,2,26.00,REPAIR & MAINTENANCE,07/11/13,
221013D,CAPITA SECURE INFO SOLUTIONS,93228815,1,"3,951.76",CONSULTANTS,07/11/13,"3,951.76"
221013D,CAPITA SECURE INFO SOLUTIONS,93228837,1,"1,608.00",CONSULTANTS,07/11/13,"1,608.00"
221013D,CAPITA SECURE INFO SOLUTIONS,93229867,1,"53,214.26",CAMS CONTRACT,07/11/13,"53,214.26"
011113D,FIRE SERVICE COLLEGE LTD======,93239516,1,"1,920.00",PROFESSIONAL DEVELOPMENT,07/11/13,"1,920.00"
291013D,*OFFICE DEPOT UK LTD,959102302/959129599,1,357.00,STATIONERY CONSUMABLES,07/11/13,451.20
291013D,*OFFICE DEPOT UK LTD,959102302/959129599,2,94.20,STATIONERY CONSUMABLES,07/11/13,
041113D,REPRO GRAFFIX LTD=============,9759,1,260.38,PRINTING,07/11/13,260.38
291013D,ASTEC SURVEYS LIMITED=========,ASL-13-213,1,295.00,ASBESTOS,07/11/13,295.00
011113D,THAMES WATER UTILITIES LTD====,CBA1311824,1,"1,185.00",CURRENT HYDRANT COSTS,07/11/13,"1,185.00"
011113D,THAMES WATER UTILITIES LTD====,CBA1311829,1,477.00,CURRENT HYDRANT COSTS,07/11/13,477.00
011113D,THAMES WATER UTILITIES LTD====,CBA1311837,1,307.00,CURRENT HYDRANT COSTS,07/11/13,307.00
011113D,THAMES WATER UTILITIES LTD====,CBA1311840,1,"1,185.00",CURRENT HYDRANT COSTS,07/11/13,"1,185.00"
011113D,THAMES WATER UTILITIES LTD====,CBA1311841,1,"1,185.00",CURRENT HYDRANT COSTS,07/11/13,"1,185.00"
011113C,THAMES WATER UTILITIES LTD====,CBA1311843,1,"1,185.00",CURRENT HYDRANT COSTS,07/11/13,"1,185.00"
011113C,THAMES WATER UTILITIES LTD====,CBA1311844,1,"1,185.00",CURRENT HYDRANT COSTS,07/11/13,"1,185.00"
011113C,THAMES WATER UTILITIES LTD====,CBA1311845,1,"1,185.00",CURRENT HYDRANT COSTS,07/11/13,"1,185.00"
011113C,THAMES WATER UTILITIES LTD====,CBA1311847,1,477.00,CURRENT HYDRANT COSTS,07/11/13,477.00
011113C,THAMES WATER UTILITIES LTD====,CBA1311848,1,"1,185.00",CURRENT HYDRANT COSTS,07/11/13,"1,185.00"
011113C,THAMES WATER UTILITIES LTD====,CBA1311851,1,"1,185.00",CURRENT HYDRANT COSTS,07/11/13,"1,185.00"
011113C,THAMES WATER UTILITIES LTD====,CBA1311852,1,"1,185.00",CURRENT HYDRANT COSTS,07/11/13,"1,185.00"
011113C,THAMES WATER UTILITIES LTD====,CBA1311854,1,307.00,CURRENT HYDRANT COSTS,07/11/13,307.00
011113C,THAMES WATER UTILITIES LTD====,CBA1311856,1,"1,185.00",CURRENT HYDRANT COSTS,07/11/13,"1,185.00"
011113C,THAMES WATER UTILITIES LTD====,CBA1311858,1,"1,185.00",CURRENT HYDRANT COSTS,07/11/13,"1,185.00"
011113D,THAMES WATER UTILITIES LTD====,CBA1311860,1,"1,082.00",CURRENT HYDRANT COSTS,07/11/13,"1,082.00"
051113F,SURVITEC SERVICE &DISTRIBUTION,CD30760416,1,228.00,PROTECTIVE EQUIPT - PARTS,07/11/13,694.00
051113F,SURVITEC SERVICE &DISTRIBUTION,CD30760416,2,228.00,PROTECTIVE EQUIPT - PARTS,07/11/13,
051113F,SURVITEC SERVICE &DISTRIBUTION,CD30760416,3,238.00,PROTECTIVE EQUIPT - PARTS,07/11/13,
140438,THE LAW SOCIETY===============,CRM01116539,1,"5,552.00",PRACT CERT & DRIVING LICENCES,07/11/13,"5,552.00"
011113C,WM ENGINEERING SERVICES LTD===,I-4566,1,"1,361.00",STRATEGIC (NON CYCLICAL),07/11/13,"1,361.00"
011113C,WM ENGINEERING SERVICES LTD===,I-4567,1,"1,678.00",STRATEGIC (NON CYCLICAL),07/11/13,"1,678.00"
011113C,WM ENGINEERING SERVICES LTD===,I-4585,1,380.00,STRATEGIC (NON CYCLICAL),07/11/13,380.00
041113D,HALL FUELS,I06410853,1,"1,042.06",FUEL,07/11/13,"1,042.06"
291013D,EXCITECH LTD,INV0041378,1,"1,950.00",MAINTENANCE & SUPPORT,07/11/13,"3,810.00"
291013D,EXCITECH LTD,INV0041378,2,930.00,MAINTENANCE & SUPPORT,07/11/13,
291013D,EXCITECH LTD,INV0041378,3,725.00,MAINTENANCE & SUPPORT,07/11/13,
291013D,EXCITECH LTD,INV0041378,4,205.00,MAINTENANCE & SUPPORT,07/11/13,
041113D,BALFOUR BEATTY WORKPLACE LTD,M123020,1,"9,860.28",STRATEGIC (NON CYCLICAL),07/11/13,"9,860.28"
011113D,RADIOCOMS SYSTEMS LIMITED=====,OP/I012749,1,10.00,RADIO,07/11/13,"3,821.00"
011113D,RADIOCOMS SYSTEMS LIMITED=====,OP/I012749,2,"3,811.00",RADIO,07/11/13,
800025552,ALLSTAR BUSINESS SOLUTIONS LTD,P2001780844,1,"1,243.14",FUEL,07/11/13,"20,355.28"
800025552,ALLSTAR BUSINESS SOLUTIONS LTD,P2001780844,2,713.83,FUEL,07/11/13,
800025552,ALLSTAR BUSINESS SOLUTIONS LTD,P2001780844,3,705.43,FUEL,07/11/13,
800025552,ALLSTAR BUSINESS SOLUTIONS LTD,P2001780844,4,503.03,FUEL,07/11/13,
800025552,ALLSTAR BUSINESS SOLUTIONS LTD,P2001780844,5,486.75,FUEL,07/11/13,
800025552,ALLSTAR BUSINESS SOLUTIONS LTD,P2001780844,6,407.56,FUEL,07/11/13,
800025552,ALLSTAR BUSINESS SOLUTIONS LTD,P2001780844,7,398.85,FUEL,07/11/13,
800025552,ALLSTAR BUSINESS SOLUTIONS LTD,P2001780844,8,350.29,FUEL,07/11/13,
800025552,ALLSTAR BUSINESS SOLUTIONS LTD,P2001780844,9,336.81,FUEL,07/11/13,
800025552,ALLSTAR BUSINESS SOLUTIONS LTD,P2001780844,10,334.49,FUEL,07/11/13,
800025552,ALLSTAR BUSINESS SOLUTIONS LTD,P2001780844,11,330.51,FUEL,07/11/13,
800025552,ALLSTAR BUSINESS SOLUTIONS LTD,P2001780844,12,318.31,FUEL,07/11/13,
800025552,ALLSTAR BUSINESS SOLUTIONS LTD,P2001780844,13,313.39,FUEL,07/11/13,
800025552,ALLSTAR BUSINESS SOLUTIONS LTD,P2001780844,14,309.95,FUEL,07/11/13,
800025552,ALLSTAR BUSINESS SOLUTIONS LTD,P2001780844,15,309.42,FUEL,07/11/13,
800025552,ALLSTAR BUSINESS SOLUTIONS LTD,P2001780844,16,292.31,FUEL,07/11/13,
800025552,ALLSTAR BUSINESS SOLUTIONS LTD,P2001780844,17,281.47,FUEL,07/11/13,
800025552,ALLSTAR BUSINESS SOLUTIONS LTD,P2001780844,18,270.91,FUEL,07/11/13,
800025552,ALLSTAR BUSINESS SOLUTIONS LTD,P2001780844,19,264.78,FUEL,07/11/13,
800025552,ALLSTAR BUSINESS SOLUTIONS LTD,P2001780844,20,261.78,FUEL,07/11/13,
800025552,ALLSTAR BUSINESS SOLUTIONS LTD,P2001780844,21,257.42,FUEL,07/11/13,
800025552,ALLSTAR BUSINESS SOLUTIONS LTD,P2001780844,22,253.79,FUEL,07/11/13,
800025552,ALLSTAR BUSINESS SOLUTIONS LTD,P2001780844,23,250.74,FUEL,07/11/13,
800025552,ALLSTAR BUSINESS SOLUTIONS LTD,P2001780844,24,247.85,FUEL,07/11/13,
800025552,ALLSTAR BUSINESS SOLUTIONS LTD,P2001780844,25,228.55,FUEL,07/11/13,
800025552,ALLSTAR BUSINESS SOLUTIONS LTD,P2001780844,26,223.28,FUEL,07/11/13,
800025552,ALLSTAR BUSINESS SOLUTIONS LTD,P2001780844,27,222.78,FUEL,07/11/13,
800025552,ALLSTAR BUSINESS SOLUTIONS LTD,P2001780844,28,219.61,FUEL,07/11/13,
800025552,ALLSTAR BUSINESS SOLUTIONS LTD,P2001780844,29,213.44,FUEL,07/11/13,
800025552,ALLSTAR BUSINESS SOLUTIONS LTD,P2001780844,30,209.11,FUEL,07/11/13,
800025552,ALLSTAR BUSINESS SOLUTIONS LTD,P2001780844,31,207.89,FUEL,07/11/13,
800025552,ALLSTAR BUSINESS SOLUTIONS LTD,P2001780844,32,203.14,FUEL,07/11/13,
800025552,ALLSTAR BUSINESS SOLUTIONS LTD,P2001780844,33,201.20,FUEL,07/11/13,
800025552,ALLSTAR BUSINESS SOLUTIONS LTD,P2001780844,34,200.88,FUEL,07/11/13,
800025552,ALLSTAR BUSINESS SOLUTIONS LTD,P2001780844,35,195.27,FUEL,07/11/13,
800025552,ALLSTAR BUSINESS SOLUTIONS LTD,P2001780844,36,190.68,FUEL,07/11/13,
800025552,ALLSTAR BUSINESS SOLUTIONS LTD,P2001780844,37,187.39,FUEL,07/11/13,
800025552,ALLSTAR BUSINESS SOLUTIONS LTD,P2001780844,38,185.82,FUEL,07/11/13,
800025552,ALLSTAR BUSINESS SOLUTIONS LTD,P2001780844,39,185.14,FUEL,07/11/13,
800025552,ALLSTAR BUSINESS SOLUTIONS LTD,P2001780844,40,185.11,FUEL,07/11/13,
800025552,ALLSTAR BUSINESS SOLUTIONS LTD,P2001780844,41,182.25,FUEL,07/11/13,
800025552,ALLSTAR BUSINESS SOLUTIONS LTD,P2001780844,42,179.80,FUEL,07/11/13,
800025552,ALLSTAR BUSINESS SOLUTIONS LTD,P2001780844,43,179.13,FUEL,07/11/13,
800025552,ALLSTAR BUSINESS SOLUTIONS LTD,P2001780844,44,175.81,FUEL,07/11/13,
800025552,ALLSTAR BUSINESS SOLUTIONS LTD,P2001780844,45,174.84,FUEL,07/11/13,
800025552,ALLSTAR BUSINESS SOLUTIONS LTD,P2001780844,46,172.76,FUEL,07/11/13,
800025552,ALLSTAR BUSINESS SOLUTIONS LTD,P2001780844,47,170.68,FUEL,07/11/13,
800025552,ALLSTAR BUSINESS SOLUTIONS LTD,P2001780844,48,166.45,FUEL,07/11/13,
800025552,ALLSTAR BUSINESS SOLUTIONS LTD,P2001780844,49,164.57,FUEL,07/11/13,
800025552,ALLSTAR BUSINESS SOLUTIONS LTD,P2001780844,50,162.38,FUEL,07/11/13,
800025552,ALLSTAR BUSINESS SOLUTIONS LTD,P2001780844,51,162.17,FUEL,07/11/13,
800025552,ALLSTAR BUSINESS SOLUTIONS LTD,P2001780844,52,159.26,FUEL,07/11/13,
800025552,ALLSTAR BUSINESS SOLUTIONS LTD,P2001780844,53,158.84,FUEL,07/11/13,
800025552,ALLSTAR BUSINESS SOLUTIONS LTD,P2001780844,54,155.50,FUEL,07/11/13,
800025552,ALLSTAR BUSINESS SOLUTIONS LTD,P2001780844,55,155.32,FUEL,07/11/13,
800025552,ALLSTAR BUSINESS SOLUTIONS LTD,P2001780844,56,155.25,FUEL,07/11/13,
800025552,ALLSTAR BUSINESS SOLUTIONS LTD,P2001780844,57,153.75,FUEL,07/11/13,
800025552,ALLSTAR BUSINESS SOLUTIONS LTD,P2001780844,58,151.39,FUEL,07/11/13,
800025552,ALLSTAR BUSINESS SOLUTIONS LTD,P2001780844,59,148.95,FUEL,07/11/13,
800025552,ALLSTAR BUSINESS SOLUTIONS LTD,P2001780844,60,139.74,FUEL,07/11/13,
800025552,ALLSTAR BUSINESS SOLUTIONS LTD,P2001780844,61,139.62,FUEL,07/11/13,
800025552,ALLSTAR BUSINESS SOLUTIONS LTD,P2001780844,62,139.10,FUEL,07/11/13,
800025552,ALLSTAR BUSINESS SOLUTIONS LTD,P2001780844,63,136.64,FUEL,07/11/13,
800025552,ALLSTAR BUSINESS SOLUTIONS LTD,P2001780844,64,135.22,FUEL,07/11/13,
800025552,ALLSTAR BUSINESS SOLUTIONS LTD,P2001780844,65,134.86,FUEL,07/11/13,
800025552,ALLSTAR BUSINESS SOLUTIONS LTD,P2001780844,66,134.23,FUEL,07/11/13,
800025552,ALLSTAR BUSINESS SOLUTIONS LTD,P2001780844,67,134.07,FUEL,07/11/13,
800025552,ALLSTAR BUSINESS SOLUTIONS LTD,P2001780844,68,130.78,FUEL,07/11/13,
800025552,ALLSTAR BUSINESS SOLUTIONS LTD,P2001780844,69,129.50,FUEL,07/11/13,
800025552,ALLSTAR BUSINESS SOLUTIONS LTD,P2001780844,70,129.15,FUEL,07/11/13,
800025552,ALLSTAR BUSINESS SOLUTIONS LTD,P2001780844,71,128.52,FUEL,07/11/13,
800025552,ALLSTAR BUSINESS SOLUTIONS LTD,P2001780844,72,127.92,FUEL,07/11/13,
800025552,ALLSTAR BUSINESS SOLUTIONS LTD,P2001780844,73,126.82,FUEL,07/11/13,
800025552,ALLSTAR BUSINESS SOLUTIONS LTD,P2001780844,74,126.17,FUEL,07/11/13,
800025552,ALLSTAR BUSINESS SOLUTIONS LTD,P2001780844,75,124.04,FUEL,07/11/13,
800025552,ALLSTAR BUSINESS SOLUTIONS LTD,P2001780844,76,123.38,FUEL,07/11/13,
800025552,ALLSTAR BUSINESS SOLUTIONS LTD,P2001780844,77,122.69,FUEL,07/11/13,
800025552,ALLSTAR BUSINESS SOLUTIONS LTD,P2001780844,78,121.97,FUEL,07/11/13,
800025552,ALLSTAR BUSINESS SOLUTIONS LTD,P2001780844,79,119.38,FUEL,07/11/13,
800025552,ALLSTAR BUSINESS SOLUTIONS LTD,P2001780844,80,119.31,FUEL,07/11/13,
800025552,ALLSTAR BUSINESS SOLUTIONS LTD,P2001780844,81,114.86,FUEL,07/11/13,
800025552,ALLSTAR BUSINESS SOLUTIONS LTD,P2001780844,82,114.84,FUEL,07/11/13,
800025552,ALLSTAR BUSINESS SOLUTIONS LTD,P2001780844,83,114.76,FUEL,07/11/13,
800025552,ALLSTAR BUSINESS SOLUTIONS LTD,P2001780844,84,112.33,FUEL,07/11/13,
800025552,ALLSTAR BUSINESS SOLUTIONS LTD,P2001780844,85,100.96,FUEL,07/11/13,
800025552,ALLSTAR BUSINESS SOLUTIONS LTD,P2001780844,86,89.30,FUEL,07/11/13,
800025552,ALLSTAR BUSINESS SOLUTIONS LTD,P2001780844,87,86.71,FUEL,07/11/13,
800025552,ALLSTAR BUSINESS SOLUTIONS LTD,P2001780844,88,85.74,FUEL,07/11/13,
800025552,ALLSTAR BUSINESS SOLUTIONS LTD,P2001780844,89,84.33,FUEL,07/11/13,
800025552,ALLSTAR BUSINESS SOLUTIONS LTD,P2001780844,90,74.13,FUEL,07/11/13,
800025552,ALLSTAR BUSINESS SOLUTIONS LTD,P2001780844,91,73.23,FUEL,07/11/13,
800025552,ALLSTAR BUSINESS SOLUTIONS LTD,P2001780844,92,66.13,FUEL,07/11/13,
800025552,ALLSTAR BUSINESS SOLUTIONS LTD,P2001780844,93,65.36,FUEL,07/11/13,
800025552,ALLSTAR BUSINESS SOLUTIONS LTD,P2001780844,94,62.73,FUEL,07/11/13,
800025552,ALLSTAR BUSINESS SOLUTIONS LTD,P2001780844,95,62.29,FUEL,07/11/13,
800025552,ALLSTAR BUSINESS SOLUTIONS LTD,P2001780844,96,61.83,FUEL,07/11/13,
800025552,ALLSTAR BUSINESS SOLUTIONS LTD,P2001780844,97,56.74,FUEL,07/11/13,
800025552,ALLSTAR BUSINESS SOLUTIONS LTD,P2001780844,98,55.98,FUEL,07/11/13,
800025552,ALLSTAR BUSINESS SOLUTIONS LTD,P2001780844,99,55.83,FUEL,07/11/13,
800025552,ALLSTAR BUSINESS SOLUTIONS LTD,P2001780844,100,52.36,FUEL,07/11/13,
800025552,ALLSTAR BUSINESS SOLUTIONS LTD,P2001780844,101,45.79,FUEL,07/11/13,
800025552,ALLSTAR BUSINESS SOLUTIONS LTD,P2001780844,102,44.53,FUEL,07/11/13,
800025552,ALLSTAR BUSINESS SOLUTIONS LTD,P2001780844,103,38.68,FUEL,07/11/13,
800025552,ALLSTAR BUSINESS SOLUTIONS LTD,P2001780844,104,30.57,FUEL,07/11/13,
800025552,ALLSTAR BUSINESS SOLUTIONS LTD,P2001780844,105,29.63,FUEL,07/11/13,
800025552,ALLSTAR BUSINESS SOLUTIONS LTD,P2001780844,106,21.33,FUEL,07/11/13,
051113F,ETC VENUES LTD================,PH-72775,1,437.50,CONSULTANTS,07/11/13,437.50
011113C,SECURITAS SECURITY SERVICES LT,S-SIN0176201,1,"160,000.00",GENERAL,07/11/13,"160,000.00"
011113C,SUTTON & EAST SURREY WATER PLC,SI029690,1,"1,071.00",CURRENT HYDRANT COSTS,07/11/13,"1,071.00"
011113C,SUTTON & EAST SURREY WATER PLC,SI029691,1,"1,071.00",CURRENT HYDRANT COSTS,07/11/13,"1,071.00"
011113C,SUTTON & EAST SURREY WATER PLC,SI029697,1,384.00,CURRENT HYDRANT COSTS,07/11/13,384.00
011113C,SUTTON & EAST SURREY WATER PLC,SI029699,1,"1,071.00",CURRENT HYDRANT COSTS,07/11/13,"1,071.00"
011113C,SUTTON & EAST SURREY WATER PLC,SI029700,1,"1,071.00",CURRENT HYDRANT COSTS,07/11/13,"1,071.00"
011113C,SUTTON & EAST SURREY WATER PLC,SI029702,1,"1,071.00",CURRENT HYDRANT COSTS,07/11/13,"1,071.00"
041113D,MAYPLACE PROPERTY SERVICES LIM,SI1020,1,750.00,STRATEGIC (NON CYCLICAL),07/11/13,"1,306.63"
041113D,MAYPLACE PROPERTY SERVICES LIM,SI1020,2,556.63,STRATEGIC (NON CYCLICAL),07/11/13,
251013C,GROUND CONTROL UMITED,SIN025489,1,400.00,GROUNDS MAINTENANCE,07/11/13,400.00
251013C,GROUND CONTROL UMITED,SIN025490,1,800.00,GROUNDS MAINTENANCE,07/11/13,"1,400.00"
251013C,GROUND CONTROL UMITED,SIN025490,2,600.00,GROUNDS MAINTENANCE,07/11/13,
251013C,GROUND CONTROL UMITED,SIN025491,1,100.00,GROUNDS MAINTENANCE,07/11/13,"1,970.00"
251013C,GROUND CONTROL UMITED,SIN025491,2,300.00,GROUNDS MAINTENANCE,07/11/13,
251013C,GROUND CONTROL UMITED,SIN025491,3,"1,200.00",GROUNDS MAINTENANCE,07/11/13,
251013C,GROUND CONTROL UMITED,SIN025491,4,250.00,GROUNDS MAINTENANCE,07/11/13,
251013C,GROUND CONTROL UMITED,SIN025491,5,120.00,GROUNDS MAINTENANCE,07/11/13,
011113C,ARVAL UK LTD,VS0000908633,1,"2,315.20",CONTRACT HIRE,07/11/13,"2,315.20"
902340,BANK OF SCOTLAND,593.485.01.108000/1113,1,"229,381.86",VEHICLES,08/11/13,"229,381.86"
051113D,MOOLANDS LTD,00000222,1,"8,790.00",STRATEGIC (NON CYCLICAL),11/11/13,"8,790.00"
140440,OGILVIE FLEET LTD=============,00259526,1,347.73,LEASE CAR CHARGES,11/11/13,347.73
140440,OGILVIE FLEET LTD=============,00259526,2,-29.91,VAT CAR LEASING,11/11/13,
140440,OGILVIE FLEET LTD=============,00259526,3,29.91,LEASE CAR CHARGES,11/11/13,
140440,OGILVIE FLEET LTD=============,00259527,1,358.68,LEASE CAR CHARGES,11/11/13,358.68
140440,OGILVIE FLEET LTD=============,00259527,2,-30.50,VAT CAR LEASING,11/11/13,
140440,OGILVIE FLEET LTD=============,00259527,3,30.50,LEASE CAR CHARGES,11/11/13,
051113D,*APTCO========================,101748,1,360.00,OPERATIONAL EQUIP-PURCHASE,11/11/13,360.00
301013C,REAM CONTRACTS LTD============,10504,1,"1,650.11",STRATEGIC (NON CYCLICAL),11/11/13,"1,650.11"
301013C,REAM CONTRACTS LTD============,10505,1,"8,965.00",STRATEGIC (NON CYCLICAL),11/11/13,"8,965.00"
051113D,A M SLASKI====================,1100,1,808.50,CONSULTANTS,11/11/13,808.50
061113C,MARTIN LAVELL LTD=============,1235600,1,373.00,BOOKS & JOURNALS,11/11/13,373.00
051113D,KIER BUILDING SERV ENGINEERS==,13041047,1,"35,405.70",TACTICAL DAY TO DAY,11/11/13,"72,340.40"
051113D,KIER BUILDING SERV ENGINEERS==,13041047,2,523.32,TACTICAL DAY TO DAY,11/11/13,
051113D,KIER BUILDING SERV ENGINEERS==,13041047,3,"1,745.65",TACTICAL DAY TO DAY,11/11/13,
051113D,KIER BUILDING SERV ENGINEERS==,13041047,4,"1,882.77",TACTICAL DAY TO DAY,11/11/13,
051113D,KIER BUILDING SERV ENGINEERS==,13041047,5,"24,326.07",STRATEGIC (CYCLICAL),11/11/13,
051113D,KIER BUILDING SERV ENGINEERS==,13041047,6,"1,187.39",STRATEGIC (CYCLICAL),11/11/13,
051113D,KIER BUILDING SERV ENGINEERS==,13041047,7,"1,488.35",STRATEGIC (CYCLICAL),11/11/13,
051113D,KIER BUILDING SERV ENGINEERS==,13041047,8,"5,781.15",STRATEGIC (CYCLICAL),11/11/13,
800025741,PRIMEPEACE LTD================,131001,1,"11,900.00",MAINTENANCE & SUPPORT,11/11/13,"16,250.00"
800025741,PRIMEPEACE LTD================,131001,2,200.00,MAINTENANCE & SUPPORT,11/11/13,
800025741,PRIMEPEACE LTD================,131001,3,"1,600.00",MAINTENANCE & SUPPORT,11/11/13,
800025741,PRIMEPEACE LTD================,131001,4,"1,550.00",MAINTENANCE & SUPPORT,11/11/13,
800025741,PRIMEPEACE LTD================,131001,5,"1,000.00",MAINTENANCE & SUPPORT,11/11/13,
051113D,HOK INTERNATIONAL LTD,133303400-1,1,"2,021.41",PROFESSIONAL SERVICES,11/11/13,"2,021.41"
071113C,RESPIREX======================,144228,1,"12,500.00",PROTECTIVE EQUIPMENT,11/11/13,"12,500.00"
051113D,B NOKES CONTRACTS LTD,1937,1,707.50,STRATEGIC (NON CYCLICAL),11/11/13,707.50
061113C,CARPETS & FLOOR COVERS DIRECT=,2255,1,537.60,FIXTURES & FITTINGS,11/11/13,537.60
061113C,CARPETS & FLOOR COVERS DIRECT=,2256,1,540.50,STRATEGIC (NON CYCLICAL),11/11/13,540.50
061113C,CARPETS & FLOOR COVERS DIRECT=,2257,1,"1,337.20",STRATEGIC (NON CYCLICAL),11/11/13,"1,337.20"
061113C,FALDER MATTHEWS T/A FM PRINT==,24465-1,1,385.00,PRINTING,11/11/13,385.00
800025498,ADECCO UK LIMITED=============,26581343,1,945.42,FRS STAFF AGENCY,11/11/13,945.42
800025649,ADECCO UK LIMITED=============,26589116,1,401.92,FRS STAFF AGENCY,11/11/13,401.92
800025650,ADECCO UK LIMITED=============,26589117,1,"1,105.30",FRS STAFF AGENCY,11/11/13,"1,105.30"
800025651,ADECCO UK LIMITED=============,26589118,1,475.72,FRS STAFF AGENCY,11/11/13,475.72
800025652,ADECCO UK LIMITED=============,26589119,1,439.60,FRS STAFF AGENCY,11/11/13,439.60
800025653,ADECCO UK LIMITED=============,26589120,1,416.70,FRS STAFF AGENCY,11/11/13,416.70
800025654,ADECCO UK LIMITED=============,26589121,1,475.72,FRS STAFF AGENCY,11/11/13,475.72
800025655,ADECCO UK LIMITED=============,26589122,1,439.60,FRS STAFF AGENCY,11/11/13,439.60
800025656,ADECCO UK LIMITED=============,26589123,1,729.36,CONSULTANTS,11/11/13,729.36
800025657,ADECCO UK LIMITED=============,26589124,1,401.92,FRS STAFF AGENCY,11/11/13,401.92
800025658,ADECCO UK LIMITED=============,26589125,1,"2,500.00",FRS STAFF AGENCY,11/11/13,"2,500.00"
800025659,ADECCO UK LIMITED=============,26589126,1,994.50,FRS STAFF AGENCY,11/11/13,994.50
800025660,ADECCO UK LIMITED=============,26589127,1,"1,340.16",FRS STAFF AGENCY,11/11/13,"1,340.16"
800025661,ADECCO UK LIMITED=============,26589128,1,"1,214.52",FRS STAFF AGENCY,11/11/13,"1,214.52"
800025662,ADECCO UK LIMITED=============,26589129,1,"1,298.28",FRS STAFF AGENCY,11/11/13,"1,298.28"
800025665,ADECCO UK LIMITED=============,26589134,1,269.45,FRS STAFF AGENCY,11/11/13,269.45
800025667,ADECCO UK LIMITED=============,26589136,1,594.65,FRS STAFF AGENCY,11/11/13,594.65
800025668,ADECCO UK LIMITED=============,26589137,1,"1,949.85",FRS STAFF AGENCY,11/11/13,"1,949.85"
800025669,ADECCO UK LIMITED=============,26589138,1,475.72,FRS STAFF AGENCY,11/11/13,475.72
800025671,ADECCO UK LIMITED=============,26589142,1,"1,450.89",FRS STAFF AGENCY,11/11/13,"1,450.89"
061113C,KNIGHTON CLEANING SERVICES LTD,37646,1,"2,145.42",GENERAL CLEANS,11/11/13,"84,030.59"
061113C,KNIGHTON CLEANING SERVICES LTD,37646,2,"1,984.67",GENERAL CLEANS,11/11/13,
061113C,KNIGHTON CLEANING SERVICES LTD,37646,3,"1,401.30",GENERAL CLEANS,11/11/13,
061113C,KNIGHTON CLEANING SERVICES LTD,37646,4,965.38,GENERAL CLEANS,11/11/13,
061113C,KNIGHTON CLEANING SERVICES LTD,37646,5,"1,132.66",GENERAL CLEANS,11/11/13,
061113C,KNIGHTON CLEANING SERVICES LTD,37646,6,775.42,GENERAL CLEANS,11/11/13,
061113C,KNIGHTON CLEANING SERVICES LTD,37646,7,"1,185.30",GENERAL CLEANS,11/11/13,
061113C,KNIGHTON CLEANING SERVICES LTD,37646,8,"1,048.17",GENERAL CLEANS,11/11/13,
061113C,KNIGHTON CLEANING SERVICES LTD,37646,9,744.37,GENERAL CLEANS,11/11/13,
061113C,KNIGHTON CLEANING SERVICES LTD,37646,10,"1,920.64",GENERAL CLEANS,11/11/13,
061113C,KNIGHTON CLEANING SERVICES LTD,37646,11,"1,190.81",GENERAL CLEANS,11/11/13,
061113C,KNIGHTON CLEANING SERVICES LTD,37646,12,"1,239.98",GENERAL CLEANS,11/11/13,
061113C,KNIGHTON CLEANING SERVICES LTD,37646,13,"1,057.98",GENERAL CLEANS,11/11/13,
061113C,KNIGHTON CLEANING SERVICES LTD,37646,14,"1,864.82",GENERAL CLEANS,11/11/13,
061113C,KNIGHTON CLEANING SERVICES LTD,37646,15,"2,215.12",GENERAL CLEANS,11/11/13,
061113C,KNIGHTON CLEANING SERVICES LTD,37646,16,749.21,GENERAL CLEANS,11/11/13,
061113C,KNIGHTON CLEANING SERVICES LTD,37646,17,"1,420.93",GENERAL CLEANS,11/11/13,
061113C,KNIGHTON CLEANING SERVICES LTD,37646,18,748.61,GENERAL CLEANS,11/11/13,
061113C,KNIGHTON CLEANING SERVICES LTD,37646,19,"1,487.35",GENERAL CLEANS,11/11/13,
061113C,KNIGHTON CLEANING SERVICES LTD,37646,20,"1,718.38",GENERAL CLEANS,11/11/13,
061113C,KNIGHTON CLEANING SERVICES LTD,37646,21,764.49,GENERAL CLEANS,11/11/13,
061113C,KNIGHTON CLEANING SERVICES LTD,37646,22,"2,259.49",GENERAL CLEANS,11/11/13,
061113C,KNIGHTON CLEANING SERVICES LTD,37646,23,"1,791.41",GENERAL CLEANS,11/11/13,
061113C,KNIGHTON CLEANING SERVICES LTD,37646,24,913.70,GENERAL CLEANS,11/11/13,
061113C,KNIGHTON CLEANING SERVICES LTD,37646,25,914.93,GENERAL CLEANS,11/11/13,
061113C,KNIGHTON CLEANING SERVICES LTD,37646,26,"1,062.89",GENERAL CLEANS,11/11/13,
061113C,KNIGHTON CLEANING SERVICES LTD,37646,27,"1,733.68",GENERAL CLEANS,11/11/13,
061113C,KNIGHTON CLEANING SERVICES LTD,37646,28,"1,030.35",GENERAL CLEANS,11/11/13,
061113C,KNIGHTON CLEANING SERVICES LTD,37646,29,809.26,GENERAL CLEANS,11/11/13,
061113C,KNIGHTON CLEANING SERVICES LTD,37646,30,952.65,GENERAL CLEANS,11/11/13,
061113C,KNIGHTON CLEANING SERVICES LTD,37646,31,"1,309.47",GENERAL CLEANS,11/11/13,
061113C,KNIGHTON CLEANING SERVICES LTD,37646,32,757.11,GENERAL CLEANS,11/11/13,
061113C,KNIGHTON CLEANING SERVICES LTD,37646,33,"1,525.99",GENERAL CLEANS,11/11/13,
061113C,KNIGHTON CLEANING SERVICES LTD,37646,34,"1,249.50",GENERAL CLEANS,11/11/13,
061113C,KNIGHTON CLEANING SERVICES LTD,37646,35,"1,369.17",GENERAL CLEANS,11/11/13,
061113C,KNIGHTON CLEANING SERVICES LTD,37646,36,769.25,GENERAL CLEANS,11/11/13,
061113C,KNIGHTON CLEANING SERVICES LTD,37646,37,866.18,GENERAL CLEANS,11/11/13,
061113C,KNIGHTON CLEANING SERVICES LTD,37646,38,867.72,GENERAL CLEANS,11/11/13,
061113C,KNIGHTON CLEANING SERVICES LTD,37646,39,921.09,GENERAL CLEANS,11/11/13,
061113C,KNIGHTON CLEANING SERVICES LTD,37646,40,940.18,GENERAL CLEANS,11/11/13,
061113C,KNIGHTON CLEANING SERVICES LTD,37646,41,686.16,GENERAL CLEANS,11/11/13,
061113C,KNIGHTON CLEANING SERVICES LTD,37646,42,"1,485.42",GENERAL CLEANS,11/11/13,
061113C,KNIGHTON CLEANING SERVICES LTD,37646,43,"1,311.33",GENERAL CLEANS,11/11/13,
061113C,KNIGHTON CLEANING SERVICES LTD,37646,44,932.88,GENERAL CLEANS,11/11/13,
061113C,KNIGHTON CLEANING SERVICES LTD,37646,45,"2,744.76",GENERAL CLEANS,11/11/13,
061113C,KNIGHTON CLEANING SERVICES LTD,37646,46,"1,014.46",GENERAL CLEANS,11/11/13,
061113C,KNIGHTON CLEANING SERVICES LTD,37646,47,"1,061.55",GENERAL CLEANS,11/11/13,
061113C,KNIGHTON CLEANING SERVICES LTD,37646,48,"1,027.02",GENERAL CLEANS,11/11/13,
061113C,KNIGHTON CLEANING SERVICES LTD,37646,49,931.42,GENERAL CLEANS,11/11/13,
061113C,KNIGHTON CLEANING SERVICES LTD,37646,50,"1,272.47",GENERAL CLEANS,11/11/13,
061113C,KNIGHTON CLEANING SERVICES LTD,37646,51,"2,238.52",GENERAL CLEANS,11/11/13,
061113C,KNIGHTON CLEANING SERVICES LTD,37646,52,863.96,GENERAL CLEANS,11/11/13,
061113C,KNIGHTON CLEANING SERVICES LTD,37646,53,"1,822.05",GENERAL CLEANS,11/11/13,
061113C,KNIGHTON CLEANING SERVICES LTD,37646,54,"1,024.83",GENERAL CLEANS,11/11/13,
061113C,KNIGHTON CLEANING SERVICES LTD,37646,55,676.12,GENERAL CLEANS,11/11/13,
061113C,KNIGHTON CLEANING SERVICES LTD,37646,56,667.63,GENERAL CLEANS,11/11/13,
061113C,KNIGHTON CLEANING SERVICES LTD,37646,57,"2,277.54",GENERAL CLEANS,11/11/13,
061113C,KNIGHTON CLEANING SERVICES LTD,37646,58,902.35,GENERAL CLEANS,11/11/13,
061113C,KNIGHTON CLEANING SERVICES LTD,37646,59,"1,561.89",GENERAL CLEANS,11/11/13,
061113C,KNIGHTON CLEANING SERVICES LTD,37646,60,"2,575.91",GENERAL CLEANS,11/11/13,
061113C,KNIGHTON CLEANING SERVICES LTD,37646,61,754.42,GENERAL CLEANS,11/11/13,
061113C,KNIGHTON CLEANING SERVICES LTD,37646,62,771.12,GENERAL CLEANS,11/11/13,
061113C,KNIGHTON CLEANING SERVICES LTD,37646,63,"1,483.56",GENERAL CLEANS,11/11/13,
061113C,KNIGHTON CLEANING SERVICES LTD,37646,64,"1,048.52",GENERAL CLEANS,11/11/13,
061113C,KNIGHTON CLEANING SERVICES LTD,37646,65,796.65,GENERAL CLEANS,11/11/13,
061113C,KNIGHTON CLEANING SERVICES LTD,37646,66,"1,035.93",GENERAL CLEANS,11/11/13,
061113C,KNIGHTON CLEANING SERVICES LTD,37646,67,"1,257.09",GENERAL CLEANS,11/11/13,
051113D,FAHEY BUILDERS LTD============,5175,1,"5,040.00",STRATEGIC (NON CYCLICAL),11/11/13,"5,040.00"
051113D,FAHEY BUILDERS LTD============,5176,1,"4,285.00",STRATEGIC (NON CYCLICAL),11/11/13,"4,285.00"
800025434,*GREENHAM TRADING LTD=========,5614289,1,6.90,HYGIENE,11/11/13,342.57
800025434,*GREENHAM TRADING LTD=========,5614289,2,31.00,HYGIENE,11/11/13,
800025434,*GREENHAM TRADING LTD=========,5614289,3,50.26,HYGIENE,11/11/13,
800025434,*GREENHAM TRADING LTD=========,5614289,4,222.36,HYGIENE,11/11/13,
800025434,*GREENHAM TRADING LTD=========,5614289,5,8.40,HYGIENE,11/11/13,
800025434,*GREENHAM TRADING LTD=========,5614289,6,15.50,HYGIENE,11/11/13,
800025434,*GREENHAM TRADING LTD=========,5614289,7,8.15,HYGIENE,11/11/13,
071113C,URS SCOTT WILSON LIMITED,5655228,1,"10,971.22",PROF FEES-MISCELLANEOUS,11/11/13,"10,971.22"
061113C,URS SCOTT WILSON LIMITED,5684356,1,"4,375.24",PROF FEES-MISCELLANEOUS,11/11/13,"4,375.24"
071113C,INTRAMARK LTD=================,63266 / 587,1,62.60,UNIFORMS - POMS,11/11/13,791.90
071113C,INTRAMARK LTD=================,63266 / 587,2,59.20,UNIFORMS - POMS,11/11/13,
071113C,INTRAMARK LTD=================,63266 / 587,3,55.00,UNIFORMS - POMS,11/11/13,
071113C,INTRAMARK LTD=================,63266 / 587,4,15.10,UNIFORMS - POMS,11/11/13,
071113C,INTRAMARK LTD=================,63266 / 587,5,52.60,UNIFORMS - POMS,11/11/13,
071113C,INTRAMARK LTD=================,63266 / 587,6,240.00,UNIFORMS - POMS,11/11/13,
071113C,INTRAMARK LTD=================,63266 / 587,7,56.20,UNIFORMS - POMS,11/11/13,
071113C,INTRAMARK LTD=================,63266 / 587,8,244.50,UNIFORMS - POMS,11/11/13,
071113C,INTRAMARK LTD=================,63266 / 587,9,6.70,UNIFORMS - POMS,11/11/13,
051113D,MOORE STEPHENS CONSULTING LTD=,673299,1,"1,000.00",MAINTENANCE & SUPPORT,11/11/13,"1,000.00"
071113C,MOORE STEPHENS CONSULTING LTD=,673301,1,"39,175.40",MAINTENANCE & SUPPORT,11/11/13,"39,175.40"
051113D,MOORE STEPHENS CONSULTING LTD=,673334,1,"3,000.00",TELECOMMUNICATIONS,11/11/13,"3,000.00"
051113D,MOORE STEPHENS CONSULTING LTD=,673335,1,"10,000.00",CONSULTANTS,11/11/13,"10,000.00"
071113C,MOORE STEPHENS CONSULTING LTD=,673336,1,500.00,CONSULTANTS,11/11/13,500.00
140440,DEFENCE BUSINESS SERVICES,7339596,1,"16,965.00",HIRE OF FACILITIES,11/11/13,"16,965.00"
051113D,NEXUS PROPERTY SERVICES,79938,1,"2,719.12",GENERAL,11/11/13,"2,719.12"
071113C,DRAEGER SAFETY UK LIMITED=====,90428560,1,500.40,PROTECTIVE EQUIPT - PARTS,11/11/13,500.40
071113C,DRAEGER SAFETY UK LIMITED=====,90428561,1,502.83,PROTECTIVE EQUIPT - PARTS,11/11/13,502.83
071113C,THERMO FISHER SCIENTIFIC MESST,9110197030,1,"5,145.00",REPAIR & MAINTENANCE,11/11/13,"5,171.00"
071113C,THERMO FISHER SCIENTIFIC MESST,9110197030,2,26.00,REPAIR & MAINTENANCE,11/11/13,
061113D,NORTHUMBRIAN WATER LTD========,913036218,1,301.00,CURRENT HYDRANT COSTS,11/11/13,301.00
061113D,NORTHUMBRIAN WATER LTD========,913036293,1,301.00,CURRENT HYDRANT COSTS,11/11/13,301.00
061113D,NORTHUMBRIAN WATER LTD========,913036307,1,374.00,CURRENT HYDRANT COSTS,11/11/13,374.00
061113D,NORTHUMBRIAN WATER LTD========,913036404,1,292.00,CURRENT HYDRANT COSTS,11/11/13,292.00
061113D,NORTHUMBRIAN WATER LTD========,913036420,1,301.00,CURRENT HYDRANT COSTS,11/11/13,301.00
061113D,NORTHUMBRIAN WATER LTD========,91303648X,1,301.00,CURRENT HYDRANT COSTS,11/11/13,301.00
051113D,BRISTOL UNIFORMS LTD==========,BC-10-13-S1188,1,351.20,CLOTHING,11/11/13,351.20
061113D,THAMES WATER UTILITIES LTD====,CBA1311940,1,"1,185.00",CURRENT HYDRANT COSTS,11/11/13,"1,185.00"
061113D,THAMES WATER UTILITIES LTD====,CBA1311941,1,"1,185.00",CURRENT HYDRANT COSTS,11/11/13,"1,185.00"
061113D,THAMES WATER UTILITIES LTD====,CBA1311942,1,"1,185.00",CURRENT HYDRANT COSTS,11/11/13,"1,185.00"
061113D,THAMES WATER UTILITIES LTD====,CBA1311945,1,"1,185.00",CURRENT HYDRANT COSTS,11/11/13,"1,185.00"
061113D,THAMES WATER UTILITIES LTD====,CBA1311947,1,"1,185.00",CURRENT HYDRANT COSTS,11/11/13,"1,185.00"
061113D,THAMES WATER UTILITIES LTD====,CBA1311948,1,"1,185.00",CURRENT HYDRANT COSTS,11/11/13,"1,185.00"
061113D,THAMES WATER UTILITIES LTD====,CBA1311955,1,"1,185.00",CURRENT HYDRANT COSTS,11/11/13,"1,185.00"
061113D,THAMES WATER UTILITIES LTD====,CBA1311958,1,280.00,CURRENT HYDRANT COSTS,11/11/13,280.00
061113D,THAMES WATER UTILITIES LTD====,CBA1311959,1,"1,185.00",CURRENT HYDRANT COSTS,11/11/13,"1,185.00"
061113D,THAMES WATER UTILITIES LTD====,CBA1311978,1,"1,185.00",CURRENT HYDRANT COSTS,11/11/13,"1,185.00"
061113D,THAMES WATER UTILITIES LTD====,CBA1311979,1,"1,185.00",CURRENT HYDRANT COSTS,11/11/13,"1,185.00"
061113D,THAMES WATER UTILITIES LTD====,CBA1311980,1,"1,185.00",CURRENT HYDRANT COSTS,11/11/13,"1,185.00"
061113D,THAMES WATER UTILITIES LTD====,CBA1311981,1,"1,185.00",CURRENT HYDRANT COSTS,11/11/13,"1,185.00"
061113D,THAMES WATER UTILITIES LTD====,CBA1311987,1,"1,082.00",HYDRANTS,11/11/13,"1,082.00"
071113C,E&S B DAVIS LTD,DAV/46150,1,"3,780.00",OPERATIONAL EQUIP-PURCHASE,11/11/13,"3,780.00"
011113D,HALL FUELS,I06412685,1,"3,343.50",FUEL,11/11/13,"3,343.50"
301013D,HALL FUELS,I06412686,1,"3,343.50",FUEL,11/11/13,"3,343.50"
241013C,BABCOCK SUPPORT SERVICES,II5000093,1,"29,349.63",STRATEGIC (CYCLICAL),11/11/13,"29,349.63"
291013D,LEARNING TREE INTERNATIONAL LT,IN498816,1,"1,645.00",PROFESSIONAL DEVELOPMENT,11/11/13,"1,645.00"
140440,JCT600 CONTRACTS LIMITED======,INV00039668,1,510.21,MILEAGE CHARGES,11/11/13,510.21
140440,JCT600 CONTRACTS LIMITED======,INV00046883,1,322.43,LEASE CAR CHARGES,11/11/13,322.43
140440,JCT600 CONTRACTS LIMITED======,INV00046883,2,-27.09,VAT CAR LEASING,11/11/13,
140440,JCT600 CONTRACTS LIMITED======,INV00046883,3,27.09,LEASE CAR CHARGES,11/11/13,
140440,JCT600 CONTRACTS LIMITED======,INV00046884,1,562.19,LEASE CAR CHARGES,11/11/13,562.19
140440,JCT600 CONTRACTS LIMITED======,INV00046884,2,-49.82,VAT CAR LEASING,11/11/13,
140440,JCT600 CONTRACTS LIMITED======,INV00046884,3,49.82,LEASE CAR CHARGES,11/11/13,
140440,JCT600 CONTRACTS LIMITED======,INV00046885,1,337.02,LEASE CAR CHARGES,11/11/13,337.02
140440,JCT600 CONTRACTS LIMITED======,INV00046885,2,-28.98,VAT CAR LEASING,11/11/13,
140440,JCT600 CONTRACTS LIMITED======,INV00046885,3,28.98,LEASE CAR CHARGES,11/11/13,
140440,JCT600 CONTRACTS LIMITED======,INV00046887,1,431.61,LEASE CAR CHARGES,11/11/13,431.61
140440,JCT600 CONTRACTS LIMITED======,INV00046887,2,-37.72,VAT CAR LEASING,11/11/13,
140440,JCT600 CONTRACTS LIMITED======,INV00046887,3,37.72,LEASE CAR CHARGES,11/11/13,
140440,JCT600 CONTRACTS LIMITED======,INV00046888,1,462.69,LEASE CAR CHARGES,11/11/13,462.69
140440,JCT600 CONTRACTS LIMITED======,INV00046888,2,-40.48,VAT CAR LEASING,11/11/13,
140440,JCT600 CONTRACTS LIMITED======,INV00046888,3,40.48,LEASE CAR CHARGES,11/11/13,
140440,JCT600 CONTRACTS LIMITED======,INV000468886,1,343.36,LEASE CAR CHARGES,11/11/13,343.36
140440,JCT600 CONTRACTS LIMITED======,INV000468886,2,-30.44,VAT CAR LEASING,11/11/13,
140440,JCT600 CONTRACTS LIMITED======,INV000468886,3,30.44,LEASE CAR CHARGES,11/11/13,
140440,JCT600 CONTRACTS LIMITED======,INV00046889,1,447.63,LEASE CAR CHARGES,11/11/13,447.63
140440,JCT600 CONTRACTS LIMITED======,INV00046889,2,-39.41,VAT CAR LEASING,11/11/13,
140440,JCT600 CONTRACTS LIMITED======,INV00046889,3,39.41,LEASE CAR CHARGES,11/11/13,
140440,JCT600 CONTRACTS LIMITED======,INV00046890,1,537.45,LEASE CAR CHARGES,11/11/13,537.45
140440,JCT600 CONTRACTS LIMITED======,INV00046890,2,-48.01,VAT CAR LEASING,11/11/13,
140440,JCT600 CONTRACTS LIMITED======,INV00046890,3,48.01,LEASE CAR CHARGES,11/11/13,
051113D,BALFOUR BEATTY WORKPLACE LTD,M124122,1,"1,469.85",CATERING FIXTURES,11/11/13,"1,469.85"
041113D,BALFOUR BEATTY WORKPLACE LTD,M124362,1,500.00,STRATEGIC (NON CYCLICAL),11/11/13,500.00
041113D,BALFOUR BEATTY WORKPLACE LTD,M124363,1,"2,167.00",STRATEGIC (NON CYCLICAL),11/11/13,"2,167.00"
041113D,BALFOUR BEATTY WORKPLACE LTD,M124364,1,"1,511.45",STRATEGIC (NON CYCLICAL),11/11/13,"1,511.45"
051113D,RADIOCOMS SYSTEMS LIMITED=====,OP/I012803,1,315.00,RADIO,11/11/13,325.00
051113D,RADIOCOMS SYSTEMS LIMITED=====,OP/I012803,2,10.00,RADIO,11/11/13,
071113C,PULLMAN MOTORS================,PULL192,1,"2,400.00",OPERATIONAL EQUIP-PURCHASE,11/11/13,"2,400.00"
071113C,PULLMAN MOTORS================,PULL194,1,500.00,OPERATIONAL EQUIP-PURCHASE,11/11/13,500.00
051113D,BABCOCK CRITICAL SERVICES LTD,SIND000842,1,"117,298.00",PURCHASES-VEHICLES,11/11/13,"167,103.80"
051113D,BABCOCK CRITICAL SERVICES LTD,SIND000842,2,"49,805.80",PURCHASES-VEHICLES,11/11/13,
800025645,*XMA LTD,U135028,1,55.28,STATIONERY CONSUMABLES,11/11/13,386.96
800025645,*XMA LTD,U135028,2,331.68,STATIONERY CONSUMABLES,11/11/13,
800025643,*XMA LTD,U135136,1,36.80,STATIONERY CONSUMABLES,11/11/13,"1,164.22"
800025643,*XMA LTD,U135136,2,54.55,STATIONERY CONSUMABLES,11/11/13,
800025643,*XMA LTD,U135136,3,51.23,STATIONERY CONSUMABLES,11/11/13,
800025643,*XMA LTD,U135136,4,55.28,STATIONERY CONSUMABLES,11/11/13,
800025643,*XMA LTD,U135136,5,327.30,STATIONERY CONSUMABLES,11/11/13,
800025643,*XMA LTD,U135136,6,307.38,STATIONERY CONSUMABLES,11/11/13,
800025643,*XMA LTD,U135136,7,331.68,STATIONERY CONSUMABLES,11/11/13,
051113D,DNV CERTIFICATION LTD=========,ZNOUK2271191136,1,"4,678.90",CONSULTANTS,11/11/13,"4,678.90"
051113D,DNV CERTIFICATION LTD=========,ZNOUK2271191137,1,"11,289.11",CONSULTANTS,11/11/13,"11,289.11"
051113D,DNV CERTIFICATION LTD=========,ZNOUK2271191138,1,"7,791.00",CONSULTANTS,11/11/13,"7,791.00"
051113D,DNV CERTIFICATION LTD=========,ZNOUK2271191139,1,"6,342.96",CONSULTANTS,11/11/13,"6,342.96"
902341,NAT WEST BANK=================,OCT2013,1,649.00,BANK CHARGES,12/11/13,649.00
111113C,MOOLANDS LTD,00000017,1,"1,200.00",TACTICAL DAY TO DAY,14/11/13,"1,200.00"
081113C,APPLUS LLT,00198,1,"3,750.00",GENERAL,14/11/13,"3,750.00"
081113C,CUMBRIA COUNTY COUNCIL========,0237008,1,"7,078.98",FIRE AUTHORITIES,14/11/13,"7,078.98"
140442,THAMES WATER UTILITIES LTD====,0694888143H,1,272.58,WATER & SEWERAGE RATES,14/11/13,272.58
140443,MISS NATASHA JOFFE============,107336D,1,600.00,COUNSELS FEES,14/11/13,600.00
111113D,VISTA LANDSCAPE MANAGEMENT LTD,118992,1,180.00,GROUNDS MAINTENANCE,14/11/13,330.00
111113D,VISTA LANDSCAPE MANAGEMENT LTD,118992,2,75.00,GROUNDS MAINTENANCE,14/11/13,
111113D,VISTA LANDSCAPE MANAGEMENT LTD,118992,3,75.00,GROUNDS MAINTENANCE,14/11/13,
111113D,VISTA LANDSCAPE MANAGEMENT LTD,118993,1,350.00,GROUNDS MAINTENANCE,14/11/13,675.00
111113D,VISTA LANDSCAPE MANAGEMENT LTD,118993,2,325.00,GROUNDS MAINTENANCE,14/11/13,
111113D,VISTA LANDSCAPE MANAGEMENT LTD,118994,1,300.00,GROUNDS MAINTENANCE,14/11/13,"1,737.50"
111113D,VISTA LANDSCAPE MANAGEMENT LTD,118994,2,50.00,GROUNDS MAINTENANCE,14/11/13,
111113D,VISTA LANDSCAPE MANAGEMENT LTD,118994,3,150.00,GROUNDS MAINTENANCE,14/11/13,
111113D,VISTA LANDSCAPE MANAGEMENT LTD,118994,4,412.50,GROUNDS MAINTENANCE,14/11/13,
111113D,VISTA LANDSCAPE MANAGEMENT LTD,118994,5,412.50,GROUNDS MAINTENANCE,14/11/13,
111113D,VISTA LANDSCAPE MANAGEMENT LTD,118994,6,412.50,GROUNDS MAINTENANCE,14/11/13,
800025646,*NPS (SHOES) LTD,12257,1,30.05,CLOTHING,14/11/13,"1,679.15"
800025646,*NPS (SHOES) LTD,12257,2,30.05,CLOTHING,14/11/13,
800025646,*NPS (SHOES) LTD,12257,3,30.05,CLOTHING,14/11/13,
800025646,*NPS (SHOES) LTD,12257,4,30.05,CLOTHING,14/11/13,
800025646,*NPS (SHOES) LTD,12257,5,30.05,CLOTHING,14/11/13,
800025646,*NPS (SHOES) LTD,12257,6,30.05,CLOTHING,14/11/13,
800025646,*NPS (SHOES) LTD,12257,7,30.05,CLOTHING,14/11/13,
800025646,*NPS (SHOES) LTD,12257,8,30.05,CLOTHING,14/11/13,
800025646,*NPS (SHOES) LTD,12257,9,30.05,CLOTHING,14/11/13,
800025646,*NPS (SHOES) LTD,12257,10,30.05,CLOTHING,14/11/13,
800025646,*NPS (SHOES) LTD,12257,11,30.05,CLOTHING,14/11/13,
800025646,*NPS (SHOES) LTD,12257,12,30.05,CLOTHING,14/11/13,
800025646,*NPS (SHOES) LTD,12257,13,30.05,CLOTHING,14/11/13,
800025646,*NPS (SHOES) LTD,12257,14,30.05,CLOTHING,14/11/13,
800025646,*NPS (SHOES) LTD,12257,15,29.45,CLOTHING,14/11/13,
800025646,*NPS (SHOES) LTD,12257,16,29.45,CLOTHING,14/11/13,
800025646,*NPS (SHOES) LTD,12257,17,29.45,CLOTHING,14/11/13,
800025646,*NPS (SHOES) LTD,12257,18,29.45,CLOTHING,14/11/13,
800025646,*NPS (SHOES) LTD,12257,19,29.45,CLOTHING,14/11/13,
800025646,*NPS (SHOES) LTD,12257,20,29.45,CLOTHING,14/11/13,
800025646,*NPS (SHOES) LTD,12257,21,29.45,CLOTHING,14/11/13,
800025646,*NPS (SHOES) LTD,12257,22,29.45,CLOTHING,14/11/13,
800025646,*NPS (SHOES) LTD,12257,23,29.45,CLOTHING,14/11/13,
800025646,*NPS (SHOES) LTD,12257,24,41.10,CLOTHING,14/11/13,
800025646,*NPS (SHOES) LTD,12257,25,41.10,CLOTHING,14/11/13,
800025646,*NPS (SHOES) LTD,12257,26,41.10,CLOTHING,14/11/13,
800025646,*NPS (SHOES) LTD,12257,27,28.45,CLOTHING,14/11/13,
800025646,*NPS (SHOES) LTD,12257,28,30.05,CLOTHING,14/11/13,
800025646,*NPS (SHOES) LTD,12257,29,30.05,CLOTHING,14/11/13,
800025646,*NPS (SHOES) LTD,12257,30,30.05,CLOTHING,14/11/13,
800025646,*NPS (SHOES) LTD,12257,31,30.05,CLOTHING,14/11/13,
800025646,*NPS (SHOES) LTD,12257,32,30.05,CLOTHING,14/11/13,
800025646,*NPS (SHOES) LTD,12257,33,30.05,CLOTHING,14/11/13,
800025646,*NPS (SHOES) LTD,12257,34,30.05,CLOTHING,14/11/13,
800025646,*NPS (SHOES) LTD,12257,35,30.05,CLOTHING,14/11/13,
800025646,*NPS (SHOES) LTD,12257,36,30.05,CLOTHING,14/11/13,
800025646,*NPS (SHOES) LTD,12257,37,29.45,CLOTHING,14/11/13,
800025646,*NPS (SHOES) LTD,12257,38,29.45,CLOTHING,14/11/13,
800025646,*NPS (SHOES) LTD,12257,39,29.45,CLOTHING,14/11/13,
800025646,*NPS (SHOES) LTD,12257,40,29.45,CLOTHING,14/11/13,
800025646,*NPS (SHOES) LTD,12257,41,29.45,CLOTHING,14/11/13,
800025646,*NPS (SHOES) LTD,12257,42,29.45,CLOTHING,14/11/13,
800025646,*NPS (SHOES) LTD,12257,43,29.45,CLOTHING,14/11/13,
800025646,*NPS (SHOES) LTD,12257,44,29.45,CLOTHING,14/11/13,
800025646,*NPS (SHOES) LTD,12257,45,29.45,CLOTHING,14/11/13,
800025646,*NPS (SHOES) LTD,12257,46,29.45,CLOTHING,14/11/13,
800025646,*NPS (SHOES) LTD,12257,47,29.45,CLOTHING,14/11/13,
800025646,*NPS (SHOES) LTD,12257,48,29.45,CLOTHING,14/11/13,
800025646,*NPS (SHOES) LTD,12257,49,29.45,CLOTHING,14/11/13,
800025646,*NPS (SHOES) LTD,12257,50,29.45,CLOTHING,14/11/13,
800025646,*NPS (SHOES) LTD,12257,51,29.45,CLOTHING,14/11/13,
800025646,*NPS (SHOES) LTD,12257,52,29.45,CLOTHING,14/11/13,
800025646,*NPS (SHOES) LTD,12257,53,29.45,CLOTHING,14/11/13,
800025646,*NPS (SHOES) LTD,12257,54,29.45,CLOTHING,14/11/13,
800025646,*NPS (SHOES) LTD,12257,55,41.10,CLOTHING,14/11/13,
800025647,*NPS (SHOES) LTD,12321,1,30.05,CLOTHING,14/11/13,"1,946.20"
800025647,*NPS (SHOES) LTD,12321,2,30.05,CLOTHING,14/11/13,
800025647,*NPS (SHOES) LTD,12321,3,35.00,CLOTHING,14/11/13,
800025647,*NPS (SHOES) LTD,12321,4,30.05,CLOTHING,14/11/13,
800025647,*NPS (SHOES) LTD,12321,5,35.00,CLOTHING,14/11/13,
800025647,*NPS (SHOES) LTD,12321,6,30.05,CLOTHING,14/11/13,
800025647,*NPS (SHOES) LTD,12321,7,30.05,CLOTHING,14/11/13,
800025647,*NPS (SHOES) LTD,12321,8,30.05,CLOTHING,14/11/13,
800025647,*NPS (SHOES) LTD,12321,9,30.05,CLOTHING,14/11/13,
800025647,*NPS (SHOES) LTD,12321,10,30.05,CLOTHING,14/11/13,
800025647,*NPS (SHOES) LTD,12321,11,30.05,CLOTHING,14/11/13,
800025647,*NPS (SHOES) LTD,12321,12,30.05,CLOTHING,14/11/13,
800025647,*NPS (SHOES) LTD,12321,13,30.05,CLOTHING,14/11/13,
800025647,*NPS (SHOES) LTD,12321,14,30.05,CLOTHING,14/11/13,
800025647,*NPS (SHOES) LTD,12321,15,30.05,CLOTHING,14/11/13,
800025647,*NPS (SHOES) LTD,12321,16,29.45,CLOTHING,14/11/13,
800025647,*NPS (SHOES) LTD,12321,17,29.45,CLOTHING,14/11/13,
800025647,*NPS (SHOES) LTD,12321,18,29.45,CLOTHING,14/11/13,
800025647,*NPS (SHOES) LTD,12321,19,29.45,CLOTHING,14/11/13,
800025647,*NPS (SHOES) LTD,12321,20,29.45,CLOTHING,14/11/13,
800025647,*NPS (SHOES) LTD,12321,21,29.45,CLOTHING,14/11/13,
800025647,*NPS (SHOES) LTD,12321,22,29.45,CLOTHING,14/11/13,
800025647,*NPS (SHOES) LTD,12321,23,29.45,CLOTHING,14/11/13,
800025647,*NPS (SHOES) LTD,12321,24,29.45,CLOTHING,14/11/13,
800025647,*NPS (SHOES) LTD,12321,25,29.45,CLOTHING,14/11/13,
800025647,*NPS (SHOES) LTD,12321,26,28.45,CLOTHING,14/11/13,
800025647,*NPS (SHOES) LTD,12321,27,41.10,CLOTHING,14/11/13,
800025647,*NPS (SHOES) LTD,12321,28,41.10,CLOTHING,14/11/13,
800025647,*NPS (SHOES) LTD,12321,29,41.10,CLOTHING,14/11/13,
800025647,*NPS (SHOES) LTD,12321,30,41.10,CLOTHING,14/11/13,
800025647,*NPS (SHOES) LTD,12321,31,41.10,CLOTHING,14/11/13,
800025647,*NPS (SHOES) LTD,12321,32,41.10,CLOTHING,14/11/13,
800025647,*NPS (SHOES) LTD,12321,33,41.10,CLOTHING,14/11/13,
800025647,*NPS (SHOES) LTD,12321,34,41.10,CLOTHING,14/11/13,
800025647,*NPS (SHOES) LTD,12321,35,30.05,CLOTHING,14/11/13,
800025647,*NPS (SHOES) LTD,12321,36,30.05,CLOTHING,14/11/13,
800025647,*NPS (SHOES) LTD,12321,37,30.05,CLOTHING,14/11/13,
800025647,*NPS (SHOES) LTD,12321,38,30.05,CLOTHING,14/11/13,
800025647,*NPS (SHOES) LTD,12321,39,30.05,CLOTHING,14/11/13,
800025647,*NPS (SHOES) LTD,12321,40,30.05,CLOTHING,14/11/13,
800025647,*NPS (SHOES) LTD,12321,41,30.05,CLOTHING,14/11/13,
800025647,*NPS (SHOES) LTD,12321,42,30.05,CLOTHING,14/11/13,
800025647,*NPS (SHOES) LTD,12321,43,30.05,CLOTHING,14/11/13,
800025647,*NPS (SHOES) LTD,12321,44,30.05,CLOTHING,14/11/13,
800025647,*NPS (SHOES) LTD,12321,45,30.05,CLOTHING,14/11/13,
800025647,*NPS (SHOES) LTD,12321,46,30.05,CLOTHING,14/11/13,
800025647,*NPS (SHOES) LTD,12321,47,30.05,CLOTHING,14/11/13,
800025647,*NPS (SHOES) LTD,12321,48,30.05,CLOTHING,14/11/13,
800025647,*NPS (SHOES) LTD,12321,49,30.05,CLOTHING,14/11/13,
800025647,*NPS (SHOES) LTD,12321,50,30.05,CLOTHING,14/11/13,
800025647,*NPS (SHOES) LTD,12321,51,30.05,CLOTHING,14/11/13,
800025647,*NPS (SHOES) LTD,12321,52,29.45,CLOTHING,14/11/13,
800025647,*NPS (SHOES) LTD,12321,53,29.45,CLOTHING,14/11/13,
800025647,*NPS (SHOES) LTD,12321,54,29.45,CLOTHING,14/11/13,
800025647,*NPS (SHOES) LTD,12321,55,29.45,CLOTHING,14/11/13,
800025647,*NPS (SHOES) LTD,12321,56,29.45,CLOTHING,14/11/13,
800025647,*NPS (SHOES) LTD,12321,57,29.45,CLOTHING,14/11/13,
800025647,*NPS (SHOES) LTD,12321,58,29.45,CLOTHING,14/11/13,
800025647,*NPS (SHOES) LTD,12321,59,29.45,CLOTHING,14/11/13,
800025647,*NPS (SHOES) LTD,12321,60,29.45,CLOTHING,14/11/13,
800025647,*NPS (SHOES) LTD,12321,61,29.45,CLOTHING,14/11/13,
800025647,*NPS (SHOES) LTD,12321,62,28.45,CLOTHING,14/11/13,
111113C,ATKINS LIMITED================,13031793,1,"47,078.25",MAINTENANCE & SUPPORT,14/11/13,"47,078.25"
140442,EDF ENERGY===================,178567842,1,"1,102.00",ELECTRICITY,14/11/13,"1,102.00"
140442,EDF ENERGY===================,1785907937,1,"2,766.70",WATER & SEWERAGE RATES,14/11/13,"2,766.70"
140442,EDF ENERGY===================,1786209538,1,"9,448.81",ELECTRICITY,14/11/13,"9,448.81"
140442,EDF ENERGY===================,1786484438,1,218.51,ELECTRICITY,14/11/13,"4,370.30"
140442,EDF ENERGY===================,1786484438,2,"4,151.79",ELECTRICITY,14/11/13,
140442,EDF ENERGY===================,1793376235,1,"10,708.13",ELECTRICITY,14/11/13,"10,708.13"
140442,EDF ENERGY===================,1813823628,1,"16,475.55",ELECTRICITY,14/11/13,"16,475.55"
081113C,ENERGY AUDITING AGENCY LTD====,20132596,1,323.85,PROFESSIONAL SERVICES,14/11/13,"2,914.74"
081113C,ENERGY AUDITING AGENCY LTD====,20132596,2,323.86,PROFESSIONAL SERVICES,14/11/13,
081113C,ENERGY AUDITING AGENCY LTD====,20132596,3,323.86,PROFESSIONAL SERVICES,14/11/13,
081113C,ENERGY AUDITING AGENCY LTD====,20132596,4,323.86,PROFESSIONAL SERVICES,14/11/13,
081113C,ENERGY AUDITING AGENCY LTD====,20132596,5,323.86,PROFESSIONAL SERVICES,14/11/13,
081113C,ENERGY AUDITING AGENCY LTD====,20132596,6,323.86,PROFESSIONAL SERVICES,14/11/13,
081113C,ENERGY AUDITING AGENCY LTD====,20132596,7,323.86,PROFESSIONAL SERVICES,14/11/13,
081113C,ENERGY AUDITING AGENCY LTD====,20132596,8,323.86,PROFESSIONAL SERVICES,14/11/13,
081113C,ENERGY AUDITING AGENCY LTD====,20132596,9,323.87,PROFESSIONAL SERVICES,14/11/13,
061113C,SAFEGUARD PEST CON. & ENV.LTD,211637,1,300.00,PEST CONTROL,14/11/13,300.00
111113C,ARKTIS LTD,21421,1,265.00,OPERATIONAL EQUIP-PURCHASE,14/11/13,265.00
111113D,BRISTOL UNIFORMS LTD==========,232458,1,"3,782.03",CLOTHING,14/11/13,"3,782.03"
111113D,WORKPLACE PRODUCTS============,251330,1,376.47,GENERAL CONSUMABLES,14/11/13,376.47
111113D,FRS COUNTRYWEAR LTD===========,254278,1,"1,176.00",UNIFORMS - POMS,14/11/13,"1,176.00"
111113C,CHILLISAUCE LTD,25458A,1,"1,312.50",PROFESSIONAL DEVELOPMENT,14/11/13,"1,312.50"
800025756,ADECCO UK LIMITED=============,26563418/10044460,1,308.20,FRS STAFF AGENCY,14/11/13,308.20
800025751,ADECCO UK LIMITED=============,26584537,1,"1,292.20",FRS STAFF AGENCY,14/11/13,"1,292.20"
800025752,ADECCO UK LIMITED=============,26584538,1,"1,292.20",FRS STAFF AGENCY,14/11/13,"1,292.20"
800025753,ADECCO UK LIMITED=============,26584539,1,"1,292.20",FRS STAFF AGENCY,14/11/13,"1,292.20"
800025754,ADECCO UK LIMITED=============,26584540,1,"1,292.20",FRS STAFF AGENCY,14/11/13,"1,292.20"
800025755,ADECCO UK LIMITED=============,26584541,1,"1,292.20",FRS STAFF AGENCY,14/11/13,"1,292.20"
800025744,ADECCO UK LIMITED=============,26585584/10044960,1,339.78,FRS STAFF AGENCY,14/11/13,339.78
800025743,ADECCO UK LIMITED=============,26585587/10044963,1,254.24,FRS STAFF AGENCY,14/11/13,254.24
800025745,ADECCO UK LIMITED=============,26589132,1,514.71,FRS STAFF AGENCY,14/11/13,514.71
800025746,ADECCO UK LIMITED=============,26589133,1,857.85,FRS STAFF AGENCY,14/11/13,857.85
800025749,ADECCO UK LIMITED=============,26589144,1,"1,116.11",FRS STAFF AGENCY,14/11/13,"1,116.11"
081113C,MACE LIMITED,26915/0613202,1,"2,076.35",PROF FEES-MISCELLANEOUS,14/11/13,"4,184.27"
081113C,MACE LIMITED,26915/0613202,2,"2,107.92",PROF FEES-MISCELLANEOUS,14/11/13,
111113D,MCGRATH BROS (WASTE CONTROL) L,302466,1,292.50,REFUSE COLLECTION,14/11/13,292.50
111113D,MCGRATH BROS (WASTE CONTROL) L,302475,1,450.00,REFUSE COLLECTION,14/11/13,450.00
140442,THAMES WATER UTILITIES LTD====,3251898471J,1,"1,308.23",WATER & SEWERAGE RATES,14/11/13,"1,308.23"
111113D,STEPHEN AUSTIN & SONS LTD=====,32831,1,785.00,GENERAL CONSUMABLES,14/11/13,785.00
140442,FOCUS & VISION TECHNOLOGY LTD,37172,1,619.08,MEDICAL EXPENSES,14/11/13,619.08
140442,FOCUS & VISION TECHNOLOGY LTD,37197,1,255.90,MEDICAL EXPENSES,14/11/13,255.90
140442,FOCUS & VISION TECHNOLOGY LTD,37215,1,352.80,MEDICAL EXPENSES,14/11/13,352.80
081113C,KNIGHTON CLEANING SERVICES LTD,37647,1,972.90,GENERAL CLEANS,14/11/13,"74,208.29"
081113C,KNIGHTON CLEANING SERVICES LTD,37647,2,"1,072.79",GENERAL CLEANS,14/11/13,
081113C,KNIGHTON CLEANING SERVICES LTD,37647,3,"1,006.42",GENERAL CLEANS,14/11/13,
081113C,KNIGHTON CLEANING SERVICES LTD,37647,4,"1,212.03",GENERAL CLEANS,14/11/13,
081113C,KNIGHTON CLEANING SERVICES LTD,37647,5,588.44,GENERAL CLEANS,14/11/13,
081113C,KNIGHTON CLEANING SERVICES LTD,37647,6,"1,352.92",GENERAL CLEANS,14/11/13,
081113C,KNIGHTON CLEANING SERVICES LTD,37647,7,"1,962.26",GENERAL CLEANS,14/11/13,
081113C,KNIGHTON CLEANING SERVICES LTD,37647,8,"2,019.86",GENERAL CLEANS,14/11/13,
081113C,KNIGHTON CLEANING SERVICES LTD,37647,9,"3,162.88",GENERAL CLEANS,14/11/13,
081113C,KNIGHTON CLEANING SERVICES LTD,37647,10,995.59,GENERAL CLEANS,14/11/13,
081113C,KNIGHTON CLEANING SERVICES LTD,37647,11,879.86,GENERAL CLEANS,14/11/13,
081113C,KNIGHTON CLEANING SERVICES LTD,37647,12,"1,061.47",GENERAL CLEANS,14/11/13,
081113C,KNIGHTON CLEANING SERVICES LTD,37647,13,"1,208.43",GENERAL CLEANS,14/11/13,
081113C,KNIGHTON CLEANING SERVICES LTD,37647,14,"1,003.19",GENERAL CLEANS,14/11/13,
081113C,KNIGHTON CLEANING SERVICES LTD,37647,15,"1,048.85",GENERAL CLEANS,14/11/13,
081113C,KNIGHTON CLEANING SERVICES LTD,37647,16,"1,071.34",GENERAL CLEANS,14/11/13,
081113C,KNIGHTON CLEANING SERVICES LTD,37647,17,"1,333.85",GENERAL CLEANS,14/11/13,
081113C,KNIGHTON CLEANING SERVICES LTD,37647,18,"1,214.66",GENERAL CLEANS,14/11/13,
081113C,KNIGHTON CLEANING SERVICES LTD,37647,19,581.88,GENERAL CLEANS,14/11/13,
081113C,KNIGHTON CLEANING SERVICES LTD,37647,20,"12,111.60",GENERAL CLEANS,14/11/13,
081113C,KNIGHTON CLEANING SERVICES LTD,37647,21,"1,167.31",GENERAL CLEANS,14/11/13,
081113C,KNIGHTON CLEANING SERVICES LTD,37647,22,390.32,GENERAL CLEANS,14/11/13,
081113C,KNIGHTON CLEANING SERVICES LTD,37647,23,"1,480.68",GENERAL CLEANS,14/11/13,
081113C,KNIGHTON CLEANING SERVICES LTD,37647,24,"3,106.56",GENERAL CLEANS,14/11/13,
081113C,KNIGHTON CLEANING SERVICES LTD,37647,25,620.95,GENERAL CLEANS,14/11/13,
081113C,KNIGHTON CLEANING SERVICES LTD,37647,26,"1,694.87",GENERAL CLEANS,14/11/13,
081113C,KNIGHTON CLEANING SERVICES LTD,37647,27,837.31,GENERAL CLEANS,14/11/13,
081113C,KNIGHTON CLEANING SERVICES LTD,37647,28,"1,277.50",GENERAL CLEANS,14/11/13,
081113C,KNIGHTON CLEANING SERVICES LTD,37647,29,762.11,GENERAL CLEANS,14/11/13,
081113C,KNIGHTON CLEANING SERVICES LTD,37647,30,891.43,GENERAL CLEANS,14/11/13,
081113C,KNIGHTON CLEANING SERVICES LTD,37647,31,"1,883.42",GENERAL CLEANS,14/11/13,
081113C,KNIGHTON CLEANING SERVICES LTD,37647,32,"1,218.44",GENERAL CLEANS,14/11/13,
081113C,KNIGHTON CLEANING SERVICES LTD,37647,33,884.34,GENERAL CLEANS,14/11/13,
081113C,KNIGHTON CLEANING SERVICES LTD,37647,34,"1,177.51",GENERAL CLEANS,14/11/13,
081113C,KNIGHTON CLEANING SERVICES LTD,37647,35,"1,203.19",GENERAL CLEANS,14/11/13,
081113C,KNIGHTON CLEANING SERVICES LTD,37647,36,"7,662.97",GENERAL CLEANS,14/11/13,
081113C,KNIGHTON CLEANING SERVICES LTD,37647,37,718.82,GENERAL CLEANS,14/11/13,
081113C,KNIGHTON CLEANING SERVICES LTD,37647,38,897.31,GENERAL CLEANS,14/11/13,
081113C,KNIGHTON CLEANING SERVICES LTD,37647,39,"1,806.36",GENERAL CLEANS,14/11/13,
081113C,KNIGHTON CLEANING SERVICES LTD,37647,40,"1,050.32",GENERAL CLEANS,14/11/13,
081113C,KNIGHTON CLEANING SERVICES LTD,37647,41,797.40,GENERAL CLEANS,14/11/13,
081113C,KNIGHTON CLEANING SERVICES LTD,37647,42,"1,584.60",GENERAL CLEANS,14/11/13,
081113C,KNIGHTON CLEANING SERVICES LTD,37647,43,"1,288.59",GENERAL CLEANS,14/11/13,
081113C,KNIGHTON CLEANING SERVICES LTD,37647,44,"1,283.46",GENERAL CLEANS,14/11/13,
081113C,KNIGHTON CLEANING SERVICES LTD,37647,45,"1,188.30",GENERAL CLEANS,14/11/13,
081113C,KNIGHTON CLEANING SERVICES LTD,37647,46,"1,002.57",GENERAL CLEANS,14/11/13,
081113C,KNIGHTON CLEANING SERVICES LTD,37647,47,470.43,GENERAL CLEANS,14/11/13,
081113C,OPEN UNIVERSITY===============,383135,1,755.00,PROFESSIONAL DEVELOPMENT,14/11/13,755.00
041113D,WILLMOTT DIXON CONSTRUCTION,442374,1,"435,552.19",DEVELOPMENT  EXPENSES-CONTRACT,14/11/13,"435,552.19"
081113D,SPORTSAFE UK LTD==============,448015,1,73.94,GYM EQUIPMENT,14/11/13,594.82
081113D,SPORTSAFE UK LTD==============,448015,2,103.88,GYM EQUIPMENT,14/11/13,
081113D,SPORTSAFE UK LTD==============,448015,3,40.28,GYM EQUIPMENT,14/11/13,
081113D,SPORTSAFE UK LTD==============,448015,4,184.00,GYM EQUIPMENT,14/11/13,
081113D,SPORTSAFE UK LTD==============,448015,5,25.72,GYM EQUIPMENT,14/11/13,
081113D,SPORTSAFE UK LTD==============,448015,6,98.00,GYM EQUIPMENT,14/11/13,
081113D,SPORTSAFE UK LTD==============,448015,7,69.00,GYM EQUIPMENT,14/11/13,
081113D,SPORTSAFE UK LTD==============,448017,1,23.00,GYM EQUIPMENT,14/11/13,414.76
081113D,SPORTSAFE UK LTD==============,448017,2,207.76,GYM EQUIPMENT,14/11/13,
081113D,SPORTSAFE UK LTD==============,448017,3,184.00,GYM EQUIPMENT,14/11/13,
081113C,SPORTSAFE UK LTD==============,450471,1,299.00,GYM EQUIPMENT,14/11/13,299.00
140443,MISS SAIMA HANIF==============,48117/INVSH40,1,565.00,COUNSELS FEES,14/11/13,565.00
111113C,FAHEY BUILDERS LTD============,5177,1,"1,950.00",STRATEGIC (NON CYCLICAL),14/11/13,"1,950.00"
111113C,FAHEY BUILDERS LTD============,5178,1,950.00,STRATEGIC (NON CYCLICAL),14/11/13,950.00
081113C,FAHEY BUILDERS LTD============,5179,1,"3,840.00",STRATEGIC (NON CYCLICAL),14/11/13,"3,840.00"
800025542,*GREENHAM TRADING LTD=========,5615478,1,43.80,CLOTHING,14/11/13,318.25
800025542,*GREENHAM TRADING LTD=========,5615478,2,13.60,HYGIENE,14/11/13,
800025542,*GREENHAM TRADING LTD=========,5615478,3,28.10,HYGIENE,14/11/13,
800025542,*GREENHAM TRADING LTD=========,5615478,4,125.65,HYGIENE,14/11/13,
800025542,*GREENHAM TRADING LTD=========,5615478,5,41.10,HYGIENE,14/11/13,
800025542,*GREENHAM TRADING LTD=========,5615478,6,2.50,HYGIENE,14/11/13,
800025542,*GREENHAM TRADING LTD=========,5615478,7,4.20,HYGIENE,14/11/13,
800025542,*GREENHAM TRADING LTD=========,5615478,8,14.60,HYGIENE,14/11/13,
800025542,*GREENHAM TRADING LTD=========,5615478,9,44.70,OPERATIONAL EQUIP-PURCHASE,14/11/13,
111113C,URS SCOTT WILSON LIMITED,5676672,1,"1,423.94",PROF FEES-MISCELLANEOUS,14/11/13,"12,350.39"
111113C,URS SCOTT WILSON LIMITED,5676672,2,"10,926.45",PROF FEES-MISCELLANEOUS,14/11/13,
111113C,URS SCOTT WILSON LIMITED,5684249,1,"3,059.00",PROF FEES-MISCELLANEOUS,14/11/13,"12,237.75"
111113C,URS SCOTT WILSON LIMITED,5684249,2,"3,059.00",PROF FEES-MISCELLANEOUS,14/11/13,
111113C,URS SCOTT WILSON LIMITED,5684249,3,"3,059.00",PROF FEES-MISCELLANEOUS,14/11/13,
111113C,URS SCOTT WILSON LIMITED,5684249,4,"3,060.75",PROF FEES-MISCELLANEOUS,14/11/13,
111113D,ELTHAM WELDING SUPPLIES LTD,5752,1,369.93,PROTECTIVE EQUIPT - PARTS,14/11/13,369.93
081113C,INTRAMARK LTD=================,62541,1,576.00,UNIFORMS - POMS,14/11/13,799.90
081113C,INTRAMARK LTD=================,62541,2,66.20,UNIFORMS - POMS,14/11/13,
081113C,INTRAMARK LTD=================,62541,3,29.35,UNIFORMS - POMS,14/11/13,
081113C,INTRAMARK LTD=================,62541,4,29.60,UNIFORMS - POMS,14/11/13,
081113C,INTRAMARK LTD=================,62541,5,98.75,UNIFORMS - POMS,14/11/13,
140442,AFFINITY WATER,6311023-1W,1,554.42,WATER & SEWERAGE RATES,14/11/13,554.42
051113D,MERLIN ELECTRICAL SERVICES LTD,6436,1,620.23,STRATEGIC (NON CYCLICAL),14/11/13,620.23
140442,THAMES WATER UTILITIES LTD====,65149-96346W,1,346.81,WATER & SEWERAGE RATES,14/11/13,346.81
111113D,*LYRECO,6721545931,1,414.90,STATIONERY CONSUMABLES,14/11/13,414.90
081113C,MOORE STEPHENS CONSULTING LTD=,673337,1,"1,750.00",MAINTENANCE & SUPPORT,14/11/13,"3,750.00"
081113C,MOORE STEPHENS CONSULTING LTD=,673337,2,"1,000.00",MAINTENANCE & SUPPORT,14/11/13,
081113C,MOORE STEPHENS CONSULTING LTD=,673337,3,"1,000.00",MAINTENANCE & SUPPORT,14/11/13,
081113C,SWEETT  UK LTD,7028912,1,490.00,PROF FEES-MISCELLANEOUS,14/11/13,490.00
140442,THAMES WATER UTILITIES LTD====,8011125203D,1,558.10,WATER & SEWERAGE RATES,14/11/13,558.10
111113C,*OFFICE DEPOT UK LTD,959168526,1,"1,190.00",STATIONERY CONSUMABLES,14/11/13,"1,454.00"
111113C,*OFFICE DEPOT UK LTD,959168526,2,264.00,STATIONERY CONSUMABLES,14/11/13,
111113C,OPERATIONAL RESEARCH IN HEALTH,95X/LFB1/38,1,"16,400.00",CONSULTANTS,14/11/13,"16,400.00"
140442,THAMES WATER UTILITIES LTD====,98709-62314/,1,392.36,WATER & SEWERAGE RATES,14/11/13,392.36
111113C,E&S B DAVIS LTD,DAV/45792,1,720.00,OPERATIONAL EQUIP-PURCHASE,14/11/13,720.00
081113C,ERNST AND YOUNG,GB10100056449,1,"22,494.00",EXTERNAL AUDIT,14/11/13,"22,494.00"
081113D,WM ENGINEERING SERVICES LTD===,I-4581,1,283.50,TACTICAL DAY TO DAY,14/11/13,283.50
081113D,WM ENGINEERING SERVICES LTD===,I-4582,1,269.00,TACTICAL DAY TO DAY,14/11/13,269.00
081113C,HALL FUELS,I06394663,1,"4,911.72",FUEL,14/11/13,"4,911.72"
081113C,HALL FUELS,I06405492,1,"2,232.60",FUEL,14/11/13,"2,232.60"
111113D,HALL FUELS,I06421545,1,"3,332.70",FUEL,14/11/13,"3,332.70"
081113C,QA LIMITED,ICE254019,1,718.00,PROFESSIONAL DEVELOPMENT,14/11/13,718.00
041113D,SERVOCA SECURE SOLUTIONS LTD,IN004714,1,"2,456.64",PREMISES SECURITY,14/11/13,"2,456.64"
081113C,PURDY CONTRACTS LTD,IN229996,1,"9,821.59",STRATEGIC (NON CYCLICAL),14/11/13,"10,082.59"
081113C,PURDY CONTRACTS LTD,IN229996,2,261.00,STRATEGIC (NON CYCLICAL),14/11/13,
140443,IMSERV,INV147649,1,155.42,ELECTRICITY,14/11/13,"1,554.20"
140443,IMSERV,INV147649,2,155.42,ELECTRICITY,14/11/13,
140443,IMSERV,INV147649,3,155.42,ELECTRICITY,14/11/13,
140443,IMSERV,INV147649,4,155.42,ELECTRICITY,14/11/13,
140443,IMSERV,INV147649,5,155.42,ELECTRICITY,14/11/13,
140443,IMSERV,INV147649,6,155.42,ELECTRICITY,14/11/13,
140443,IMSERV,INV147649,7,155.42,ELECTRICITY,14/11/13,
140443,IMSERV,INV147649,8,155.42,ELECTRICITY,14/11/13,
140443,IMSERV,INV147649,9,155.42,ELECTRICITY,14/11/13,
140443,IMSERV,INV147649,10,155.42,ELECTRICITY,14/11/13,
081113C,JACKSON LIFT GROUP============,JS343954R,1,215.00,STRATEGIC (CYCLICAL),14/11/13,"5,058.00"
081113C,JACKSON LIFT GROUP============,JS343954R,2,532.00,STRATEGIC (CYCLICAL),14/11/13,
081113C,JACKSON LIFT GROUP============,JS343954R,3,"1,122.00",STRATEGIC (CYCLICAL),14/11/13,
081113C,JACKSON LIFT GROUP============,JS343954R,4,648.00,STRATEGIC (CYCLICAL),14/11/13,
081113C,JACKSON LIFT GROUP============,JS343954R,5,142.00,STRATEGIC (CYCLICAL),14/11/13,
081113C,JACKSON LIFT GROUP============,JS343954R,6,455.00,STRATEGIC (CYCLICAL),14/11/13,
081113C,JACKSON LIFT GROUP============,JS343954R,7,420.00,STRATEGIC (CYCLICAL),14/11/13,
081113C,JACKSON LIFT GROUP============,JS343954R,8,283.00,STRATEGIC (CYCLICAL),14/11/13,
081113C,JACKSON LIFT GROUP============,JS343954R,9,679.00,STRATEGIC (CYCLICAL),14/11/13,
081113C,JACKSON LIFT GROUP============,JS343954R,10,420.00,STRATEGIC (CYCLICAL),14/11/13,
081113C,JACKSON LIFT GROUP============,JS343954R,11,142.00,STRATEGIC (CYCLICAL),14/11/13,
081113C,CANNON'S MSA LTD,NV1066795,1,"2,331.25",PROTECTIVE EQUIPMENT R & D,14/11/13,"2,331.25"
081113C,PHOENIX SOFTWARE LTD==========,OP/I710876,1,"11,585.00",MAINTENANCE & SUPPORT,14/11/13,"11,585.00"
800025759,ALLSTAR BUSINESS SOLUTIONS LTD,P2001852297,1,"1,474.05",FUEL,14/11/13,"21,847.18"
800025759,ALLSTAR BUSINESS SOLUTIONS LTD,P2001852297,2,962.68,FUEL,14/11/13,
800025759,ALLSTAR BUSINESS SOLUTIONS LTD,P2001852297,3,631.46,FUEL,14/11/13,
800025759,ALLSTAR BUSINESS SOLUTIONS LTD,P2001852297,4,624.29,FUEL,14/11/13,
800025759,ALLSTAR BUSINESS SOLUTIONS LTD,P2001852297,5,526.60,FUEL,14/11/13,
800025759,ALLSTAR BUSINESS SOLUTIONS LTD,P2001852297,6,517.00,FUEL,14/11/13,
800025759,ALLSTAR BUSINESS SOLUTIONS LTD,P2001852297,7,447.11,FUEL,14/11/13,
800025759,ALLSTAR BUSINESS SOLUTIONS LTD,P2001852297,8,415.78,FUEL,14/11/13,
800025759,ALLSTAR BUSINESS SOLUTIONS LTD,P2001852297,9,395.97,FUEL,14/11/13,
800025759,ALLSTAR BUSINESS SOLUTIONS LTD,P2001852297,10,386.88,FUEL,14/11/13,
800025759,ALLSTAR BUSINESS SOLUTIONS LTD,P2001852297,11,368.09,FUEL,14/11/13,
800025759,ALLSTAR BUSINESS SOLUTIONS LTD,P2001852297,12,333.15,FUEL,14/11/13,
800025759,ALLSTAR BUSINESS SOLUTIONS LTD,P2001852297,13,327.42,FUEL,14/11/13,
800025759,ALLSTAR BUSINESS SOLUTIONS LTD,P2001852297,14,318.87,FUEL,14/11/13,
800025759,ALLSTAR BUSINESS SOLUTIONS LTD,P2001852297,15,312.29,FUEL,14/11/13,
800025759,ALLSTAR BUSINESS SOLUTIONS LTD,P2001852297,16,301.64,FUEL,14/11/13,
800025759,ALLSTAR BUSINESS SOLUTIONS LTD,P2001852297,17,301.43,FUEL,14/11/13,
800025759,ALLSTAR BUSINESS SOLUTIONS LTD,P2001852297,18,298.71,FUEL,14/11/13,
800025759,ALLSTAR BUSINESS SOLUTIONS LTD,P2001852297,19,289.87,FUEL,14/11/13,
800025759,ALLSTAR BUSINESS SOLUTIONS LTD,P2001852297,20,282.77,FUEL,14/11/13,
800025759,ALLSTAR BUSINESS SOLUTIONS LTD,P2001852297,21,279.83,FUEL,14/11/13,
800025759,ALLSTAR BUSINESS SOLUTIONS LTD,P2001852297,22,274.82,FUEL,14/11/13,
800025759,ALLSTAR BUSINESS SOLUTIONS LTD,P2001852297,23,273.75,FUEL,14/11/13,
800025759,ALLSTAR BUSINESS SOLUTIONS LTD,P2001852297,24,271.56,FUEL,14/11/13,
800025759,ALLSTAR BUSINESS SOLUTIONS LTD,P2001852297,25,269.55,FUEL,14/11/13,
800025759,ALLSTAR BUSINESS SOLUTIONS LTD,P2001852297,26,265.02,FUEL,14/11/13,
800025759,ALLSTAR BUSINESS SOLUTIONS LTD,P2001852297,27,250.23,FUEL,14/11/13,
800025759,ALLSTAR BUSINESS SOLUTIONS LTD,P2001852297,28,248.60,FUEL,14/11/13,
800025759,ALLSTAR BUSINESS SOLUTIONS LTD,P2001852297,29,242.09,FUEL,14/11/13,
800025759,ALLSTAR BUSINESS SOLUTIONS LTD,P2001852297,30,223.48,FUEL,14/11/13,
800025759,ALLSTAR BUSINESS SOLUTIONS LTD,P2001852297,31,220.42,FUEL,14/11/13,
800025759,ALLSTAR BUSINESS SOLUTIONS LTD,P2001852297,32,217.76,FUEL,14/11/13,
800025759,ALLSTAR BUSINESS SOLUTIONS LTD,P2001852297,33,212.11,FUEL,14/11/13,
800025759,ALLSTAR BUSINESS SOLUTIONS LTD,P2001852297,34,207.11,FUEL,14/11/13,
800025759,ALLSTAR BUSINESS SOLUTIONS LTD,P2001852297,35,198.63,FUEL,14/11/13,
800025759,ALLSTAR BUSINESS SOLUTIONS LTD,P2001852297,36,195.59,FUEL,14/11/13,
800025759,ALLSTAR BUSINESS SOLUTIONS LTD,P2001852297,37,188.60,FUEL,14/11/13,
800025759,ALLSTAR BUSINESS SOLUTIONS LTD,P2001852297,38,186.22,FUEL,14/11/13,
800025759,ALLSTAR BUSINESS SOLUTIONS LTD,P2001852297,39,185.57,FUEL,14/11/13,
800025759,ALLSTAR BUSINESS SOLUTIONS LTD,P2001852297,40,183.50,FUEL,14/11/13,
800025759,ALLSTAR BUSINESS SOLUTIONS LTD,P2001852297,41,176.95,FUEL,14/11/13,
800025759,ALLSTAR BUSINESS SOLUTIONS LTD,P2001852297,42,175.64,FUEL,14/11/13,
800025759,ALLSTAR BUSINESS SOLUTIONS LTD,P2001852297,43,175.56,FUEL,14/11/13,
800025759,ALLSTAR BUSINESS SOLUTIONS LTD,P2001852297,44,174.55,FUEL,14/11/13,
800025759,ALLSTAR BUSINESS SOLUTIONS LTD,P2001852297,45,172.76,FUEL,14/11/13,
800025759,ALLSTAR BUSINESS SOLUTIONS LTD,P2001852297,46,172.53,FUEL,14/11/13,
800025759,ALLSTAR BUSINESS SOLUTIONS LTD,P2001852297,47,166.67,FUEL,14/11/13,
800025759,ALLSTAR BUSINESS SOLUTIONS LTD,P2001852297,48,162.80,FUEL,14/11/13,
800025759,ALLSTAR BUSINESS SOLUTIONS LTD,P2001852297,49,162.67,FUEL,14/11/13,
800025759,ALLSTAR BUSINESS SOLUTIONS LTD,P2001852297,50,158.67,FUEL,14/11/13,
800025759,ALLSTAR BUSINESS SOLUTIONS LTD,P2001852297,51,157.04,FUEL,14/11/13,
800025759,ALLSTAR BUSINESS SOLUTIONS LTD,P2001852297,52,156.74,FUEL,14/11/13,
800025759,ALLSTAR BUSINESS SOLUTIONS LTD,P2001852297,53,155.26,FUEL,14/11/13,
800025759,ALLSTAR BUSINESS SOLUTIONS LTD,P2001852297,54,154.77,FUEL,14/11/13,
800025759,ALLSTAR BUSINESS SOLUTIONS LTD,P2001852297,55,153.86,FUEL,14/11/13,
800025759,ALLSTAR BUSINESS SOLUTIONS LTD,P2001852297,56,150.22,FUEL,14/11/13,
800025759,ALLSTAR BUSINESS SOLUTIONS LTD,P2001852297,57,146.78,FUEL,14/11/13,
800025759,ALLSTAR BUSINESS SOLUTIONS LTD,P2001852297,58,141.07,FUEL,14/11/13,
800025759,ALLSTAR BUSINESS SOLUTIONS LTD,P2001852297,59,139.59,FUEL,14/11/13,
800025759,ALLSTAR BUSINESS SOLUTIONS LTD,P2001852297,60,137.70,FUEL,14/11/13,
800025759,ALLSTAR BUSINESS SOLUTIONS LTD,P2001852297,61,136.53,FUEL,14/11/13,
800025759,ALLSTAR BUSINESS SOLUTIONS LTD,P2001852297,62,132.98,FUEL,14/11/13,
800025759,ALLSTAR BUSINESS SOLUTIONS LTD,P2001852297,63,130.81,FUEL,14/11/13,
800025759,ALLSTAR BUSINESS SOLUTIONS LTD,P2001852297,64,129.57,FUEL,14/11/13,
800025759,ALLSTAR BUSINESS SOLUTIONS LTD,P2001852297,65,129.53,FUEL,14/11/13,
800025759,ALLSTAR BUSINESS SOLUTIONS LTD,P2001852297,66,128.75,FUEL,14/11/13,
800025759,ALLSTAR BUSINESS SOLUTIONS LTD,P2001852297,67,127.39,FUEL,14/11/13,
800025759,ALLSTAR BUSINESS SOLUTIONS LTD,P2001852297,68,124.85,FUEL,14/11/13,
800025759,ALLSTAR BUSINESS SOLUTIONS LTD,P2001852297,69,124.66,FUEL,14/11/13,
800025759,ALLSTAR BUSINESS SOLUTIONS LTD,P2001852297,70,121.74,FUEL,14/11/13,
800025759,ALLSTAR BUSINESS SOLUTIONS LTD,P2001852297,71,119.74,FUEL,14/11/13,
800025759,ALLSTAR BUSINESS SOLUTIONS LTD,P2001852297,72,119.72,FUEL,14/11/13,
800025759,ALLSTAR BUSINESS SOLUTIONS LTD,P2001852297,73,119.72,FUEL,14/11/13,
800025759,ALLSTAR BUSINESS SOLUTIONS LTD,P2001852297,74,117.17,FUEL,14/11/13,
800025759,ALLSTAR BUSINESS SOLUTIONS LTD,P2001852297,75,114.30,FUEL,14/11/13,
800025759,ALLSTAR BUSINESS SOLUTIONS LTD,P2001852297,76,113.61,FUEL,14/11/13,
800025759,ALLSTAR BUSINESS SOLUTIONS LTD,P2001852297,77,111.70,FUEL,14/11/13,
800025759,ALLSTAR BUSINESS SOLUTIONS LTD,P2001852297,78,110.59,FUEL,14/11/13,
800025759,ALLSTAR BUSINESS SOLUTIONS LTD,P2001852297,79,108.18,FUEL,14/11/13,
800025759,ALLSTAR BUSINESS SOLUTIONS LTD,P2001852297,80,106.20,FUEL,14/11/13,
800025759,ALLSTAR BUSINESS SOLUTIONS LTD,P2001852297,81,106.20,FUEL,14/11/13,
800025759,ALLSTAR BUSINESS SOLUTIONS LTD,P2001852297,82,103.75,FUEL,14/11/13,
800025759,ALLSTAR BUSINESS SOLUTIONS LTD,P2001852297,83,102.37,FUEL,14/11/13,
800025759,ALLSTAR BUSINESS SOLUTIONS LTD,P2001852297,84,101.95,FUEL,14/11/13,
800025759,ALLSTAR BUSINESS SOLUTIONS LTD,P2001852297,85,100.81,FUEL,14/11/13,
800025759,ALLSTAR BUSINESS SOLUTIONS LTD,P2001852297,86,96.77,FUEL,14/11/13,
800025759,ALLSTAR BUSINESS SOLUTIONS LTD,P2001852297,87,95.73,FUEL,14/11/13,
800025759,ALLSTAR BUSINESS SOLUTIONS LTD,P2001852297,88,89.78,FUEL,14/11/13,
800025759,ALLSTAR BUSINESS SOLUTIONS LTD,P2001852297,89,89.60,FUEL,14/11/13,
800025759,ALLSTAR BUSINESS SOLUTIONS LTD,P2001852297,90,88.27,FUEL,14/11/13,
800025759,ALLSTAR BUSINESS SOLUTIONS LTD,P2001852297,91,86.49,FUEL,14/11/13,
800025759,ALLSTAR BUSINESS SOLUTIONS LTD,P2001852297,92,83.52,FUEL,14/11/13,
800025759,ALLSTAR BUSINESS SOLUTIONS LTD,P2001852297,93,83.01,FUEL,14/11/13,
800025759,ALLSTAR BUSINESS SOLUTIONS LTD,P2001852297,94,82.06,FUEL,14/11/13,
800025759,ALLSTAR BUSINESS SOLUTIONS LTD,P2001852297,95,80.00,FUEL,14/11/13,
800025759,ALLSTAR BUSINESS SOLUTIONS LTD,P2001852297,96,76.84,FUEL,14/11/13,
800025759,ALLSTAR BUSINESS SOLUTIONS LTD,P2001852297,97,72.89,FUEL,14/11/13,
800025759,ALLSTAR BUSINESS SOLUTIONS LTD,P2001852297,98,72.50,FUEL,14/11/13,
800025759,ALLSTAR BUSINESS SOLUTIONS LTD,P2001852297,99,68.76,FUEL,14/11/13,
800025759,ALLSTAR BUSINESS SOLUTIONS LTD,P2001852297,100,68.70,FUEL,14/11/13,
800025759,ALLSTAR BUSINESS SOLUTIONS LTD,P2001852297,101,65.31,FUEL,14/11/13,
800025759,ALLSTAR BUSINESS SOLUTIONS LTD,P2001852297,102,64.79,FUEL,14/11/13,
800025759,ALLSTAR BUSINESS SOLUTIONS LTD,P2001852297,103,51.58,FUEL,14/11/13,
800025759,ALLSTAR BUSINESS SOLUTIONS LTD,P2001852297,104,49.84,FUEL,14/11/13,
800025759,ALLSTAR BUSINESS SOLUTIONS LTD,P2001852297,105,42.72,FUEL,14/11/13,
800025759,ALLSTAR BUSINESS SOLUTIONS LTD,P2001852297,106,37.50,FUEL,14/11/13,
800025759,ALLSTAR BUSINESS SOLUTIONS LTD,P2001852297,107,37.30,FUEL,14/11/13,
800025759,ALLSTAR BUSINESS SOLUTIONS LTD,P2001852297,108,18.07,FUEL,14/11/13,
111113D,PILLINGER CONTROLS LTD========,PI71964,1,"2,460.10",DAY TO DAY MINOR IMPS,14/11/13,"4,100.16"
111113D,PILLINGER CONTROLS LTD========,PI71964,2,"1,640.06",STRATEGIC (NON CYCLICAL),14/11/13,
081113C,PILLINGER CONTROLS LTD========,PI71965,1,"2,050.08",DAY TO DAY MINOR IMPS,14/11/13,"4,100.16"
081113C,PILLINGER CONTROLS LTD========,PI71965,2,"2,050.08",STRATEGIC (NON CYCLICAL),14/11/13,
111113D,PEGASUS COURIERS - LONDON=====,PL014525,1,433.90,POSTAL SERVICES,14/11/13,433.90
081113C,SECURITAS SECURITY SERVICES LT,S-SIN0184371,1,"409,820.36",GENERAL,14/11/13,"409,820.36"
111113C,HUNTER LODGE==================,SI-05372,1,"20,000.00",ADVERTISING,14/11/13,"37,939.99"
111113C,HUNTER LODGE==================,SI-05372,2,"17,939.99",ADVERTISING,14/11/13,
061113C,ULTIMA RISK MANAGEMENT========,URM/103924,1,"1,687.50",MAINTENANCE & SUPPORT,14/11/13,"3,375.00"
061113C,ULTIMA RISK MANAGEMENT========,URM/103924,2,"1,687.50",CONSULTANTS,14/11/13,
081113C,ARTELIA,000000006354,1,"6,599.63",CONSULTANTS,18/11/13,"6,599.63"
061113D,HEALTH MANAGEMENT LIMITED=====,0000104908,1,383.08,DRUG & ALCOHOL TESTS,18/11/13,383.08
061113D,HEALTH MANAGEMENT LIMITED=====,0000104910,1,"3,600.00",THIRD PARTY REPORTS,18/11/13,"3,600.00"
131113D,BRE GLOBAL LTD,0011211132,1,"10,000.00",CONSULTANTS,18/11/13,"10,000.00"
121113E,ESRI (UK) LIMITED=============,084088,1,"2,190.00",CONSULTANTS,18/11/13,"2,349.41"
121113E,ESRI (UK) LIMITED=============,084088,2,159.41,CONSULTANTS,18/11/13,
081113C,HAYS ACCOUNTANCY & FINANCE====,1003710596,1,696.00,FRS STAFF AGENCY,18/11/13,696.00
800025509,AZTEC COMPUTING LTD===========,10425,1,"7,000.00",MAINTENANCE & SUPPORT,18/11/13,"7,000.00"
131113D,MOOLANDS LTD,10429,1,763.04,TACTICAL DAY TO DAY,18/11/13,763.04
131113C,*SPRUE SAFETY PRODUCTS LTD====,1051555,1,"1,264.00",FIRE DETECTORS,18/11/13,"1,264.00"
131113C,*SPRUE SAFETY PRODUCTS LTD====,1052191,1,876.40,FIRE DETECTORS,18/11/13,876.40
051113D,GAS CONTROL EQUIPMENT LTD=====,11303558,1,925.00,PROFESSIONAL DEVELOPMENT,18/11/13,"1,850.00"
051113D,GAS CONTROL EQUIPMENT LTD=====,11303558,2,925.00,PROFESSIONAL DEVELOPMENT,18/11/13,
800025989,REDFERN TRAVEL LTD,1161906,1,319.70,PUBLIC TRANSPORT,18/11/13,319.70
800025986,REDFERN TRAVEL LTD,1161920,1,319.70,PUBLIC TRANSPORT,18/11/13,319.70
800025984,REDFERN TRAVEL LTD,1162702,1,621.75,OVERSEAS TRAVEL,18/11/13,621.75
800026006,REDFERN TRAVEL LTD,1167966,1,289.98,PUBLIC TRANSPORT,18/11/13,289.98
800026003,REDFERN TRAVEL LTD,1168245,1,560.55,OVERSEAS TRAVEL,18/11/13,560.55
800025996,REDFERN TRAVEL LTD,1168410,1,519.25,OVERSEAS TRAVEL,18/11/13,519.25
800026010,REDFERN TRAVEL LTD,1168476,1,494.80,PUBLIC TRANSPORT,18/11/13,494.80
800026011,REDFERN TRAVEL LTD,1169966,1,495.40,PUBLIC TRANSPORT,18/11/13,495.40
800026008,REDFERN TRAVEL LTD,1170547,1,256.78,PUBLIC TRANSPORT,18/11/13,256.78
800026027,REDFERN TRAVEL LTD,1170900,1,532.20,PUBLIC TRANSPORT,18/11/13,532.20
800026033,REDFERN TRAVEL LTD,1170998,1,720.75,OVERSEAS TRAVEL,18/11/13,720.75
800026030,REDFERN TRAVEL LTD,1171395,1,838.20,PUBLIC TRANSPORT,18/11/13,838.20
800026040,REDFERN TRAVEL LTD,1174701,1,319.70,PUBLIC TRANSPORT,18/11/13,319.70
800026039,REDFERN TRAVEL LTD,1174703,1,319.70,PUBLIC TRANSPORT,18/11/13,319.70
800026053,REDFERN TRAVEL LTD,1175488,1,359.70,PUBLIC TRANSPORT,18/11/13,359.70
800026057,REDFERN TRAVEL LTD,1176630,1,959.10,PUBLIC TRANSPORT,18/11/13,959.10
800026065,REDFERN TRAVEL LTD,1178531,1,277.40,PUBLIC TRANSPORT,18/11/13,277.40
800026070,REDFERN TRAVEL LTD,1179478,1,267.40,PUBLIC TRANSPORT,18/11/13,267.40
061113C,VISTA LANDSCAPE MANAGEMENT LTD,118986,1,142.31,GROUNDS MAINTENANCE,18/11/13,"3,024.91"
061113C,VISTA LANDSCAPE MANAGEMENT LTD,118986,2,24.77,GROUNDS MAINTENANCE,18/11/13,
061113C,VISTA LANDSCAPE MANAGEMENT LTD,118986,3,27.29,GROUNDS MAINTENANCE,18/11/13,
061113C,VISTA LANDSCAPE MANAGEMENT LTD,118986,4,30.32,GROUNDS MAINTENANCE,18/11/13,
061113C,VISTA LANDSCAPE MANAGEMENT LTD,118986,5,111.28,GROUNDS MAINTENANCE,18/11/13,
061113C,VISTA LANDSCAPE MANAGEMENT LTD,118986,6,23.48,GROUNDS MAINTENANCE,18/11/13,
061113C,VISTA LANDSCAPE MANAGEMENT LTD,118986,7,31.20,GROUNDS MAINTENANCE,18/11/13,
061113C,VISTA LANDSCAPE MANAGEMENT LTD,118986,8,24.52,GROUNDS MAINTENANCE,18/11/13,
061113C,VISTA LANDSCAPE MANAGEMENT LTD,118986,9,21.11,GROUNDS MAINTENANCE,18/11/13,
061113C,VISTA LANDSCAPE MANAGEMENT LTD,118986,10,21.20,GROUNDS MAINTENANCE,18/11/13,
061113C,VISTA LANDSCAPE MANAGEMENT LTD,118986,11,24.74,GROUNDS MAINTENANCE,18/11/13,
061113C,VISTA LANDSCAPE MANAGEMENT LTD,118986,12,35.29,GROUNDS MAINTENANCE,18/11/13,
061113C,VISTA LANDSCAPE MANAGEMENT LTD,118986,13,122.19,GROUNDS MAINTENANCE,18/11/13,
061113C,VISTA LANDSCAPE MANAGEMENT LTD,118986,14,20.52,GROUNDS MAINTENANCE,18/11/13,
061113C,VISTA LANDSCAPE MANAGEMENT LTD,118986,15,92.06,GROUNDS MAINTENANCE,18/11/13,
061113C,VISTA LANDSCAPE MANAGEMENT LTD,118986,16,27.21,GROUNDS MAINTENANCE,18/11/13,
061113C,VISTA LANDSCAPE MANAGEMENT LTD,118986,17,23.91,GROUNDS MAINTENANCE,18/11/13,
061113C,VISTA LANDSCAPE MANAGEMENT LTD,118986,18,139.80,GROUNDS MAINTENANCE,18/11/13,
061113C,VISTA LANDSCAPE MANAGEMENT LTD,118986,19,22.33,GROUNDS MAINTENANCE,18/11/13,
061113C,VISTA LANDSCAPE MANAGEMENT LTD,118986,20,23.87,GROUNDS MAINTENANCE,18/11/13,
061113C,VISTA LANDSCAPE MANAGEMENT LTD,118986,21,17.53,GROUNDS MAINTENANCE,18/11/13,
061113C,VISTA LANDSCAPE MANAGEMENT LTD,118986,22,23.00,GROUNDS MAINTENANCE,18/11/13,
061113C,VISTA LANDSCAPE MANAGEMENT LTD,118986,23,23.85,GROUNDS MAINTENANCE,18/11/13,
061113C,VISTA LANDSCAPE MANAGEMENT LTD,118986,24,27.55,GROUNDS MAINTENANCE,18/11/13,
061113C,VISTA LANDSCAPE MANAGEMENT LTD,118986,25,25.72,GROUNDS MAINTENANCE,18/11/13,
061113C,VISTA LANDSCAPE MANAGEMENT LTD,118986,26,66.27,GROUNDS MAINTENANCE,18/11/13,
061113C,VISTA LANDSCAPE MANAGEMENT LTD,118986,27,21.41,GROUNDS MAINTENANCE,18/11/13,
061113C,VISTA LANDSCAPE MANAGEMENT LTD,118986,28,21.28,GROUNDS MAINTENANCE,18/11/13,
061113C,VISTA LANDSCAPE MANAGEMENT LTD,118986,29,19.18,GROUNDS MAINTENANCE,18/11/13,
061113C,VISTA LANDSCAPE MANAGEMENT LTD,118986,30,89.20,GROUNDS MAINTENANCE,18/11/13,
061113C,VISTA LANDSCAPE MANAGEMENT LTD,118986,31,94.10,GROUNDS MAINTENANCE,18/11/13,
061113C,VISTA LANDSCAPE MANAGEMENT LTD,118986,32,22.58,GROUNDS MAINTENANCE,18/11/13,
061113C,VISTA LANDSCAPE MANAGEMENT LTD,118986,33,278.31,GROUNDS MAINTENANCE,18/11/13,
061113C,VISTA LANDSCAPE MANAGEMENT LTD,118986,34,22.07,GROUNDS MAINTENANCE,18/11/13,
061113C,VISTA LANDSCAPE MANAGEMENT LTD,118986,35,71.29,GROUNDS MAINTENANCE,18/11/13,
061113C,VISTA LANDSCAPE MANAGEMENT LTD,118986,36,20.59,GROUNDS MAINTENANCE,18/11/13,
061113C,VISTA LANDSCAPE MANAGEMENT LTD,118986,37,22.08,GROUNDS MAINTENANCE,18/11/13,
061113C,VISTA LANDSCAPE MANAGEMENT LTD,118986,38,21.40,GROUNDS MAINTENANCE,18/11/13,
061113C,VISTA LANDSCAPE MANAGEMENT LTD,118986,39,88.90,GROUNDS MAINTENANCE,18/11/13,
061113C,VISTA LANDSCAPE MANAGEMENT LTD,118986,40,130.36,GROUNDS MAINTENANCE,18/11/13,
061113C,VISTA LANDSCAPE MANAGEMENT LTD,118986,41,19.12,GROUNDS MAINTENANCE,18/11/13,
061113C,VISTA LANDSCAPE MANAGEMENT LTD,118986,42,749.82,GROUNDS MAINTENANCE,18/11/13,
061113C,VISTA LANDSCAPE MANAGEMENT LTD,118986,43,70.24,GROUNDS MAINTENANCE,18/11/13,
061113C,VISTA LANDSCAPE MANAGEMENT LTD,118986,44,62.34,GROUNDS MAINTENANCE,18/11/13,
061113C,VISTA LANDSCAPE MANAGEMENT LTD,118986,45,27.32,GROUNDS MAINTENANCE,18/11/13,
131113D,RICHARD EDWARD LTD============,125058,1,660.00,PRINTING,18/11/13,660.00
131113C,HL PROFESSIONAL SERVICES LTD,130803,1,"2,250.00",PROF FEES-MISCELLANEOUS,18/11/13,"2,250.00"
121113E,ABARIS INTERNATIONAL LIMITED==,15584,1,"1,058.50",CLOTHING,18/11/13,"1,058.50"
121113C,ABARIS INTERNATIONAL LIMITED==,15587,1,14.00,OPERATIONAL EQUIP-PURCHASE,18/11/13,340.50
121113C,ABARIS INTERNATIONAL LIMITED==,15587,2,35.00,OPERATIONAL EQUIP-PURCHASE,18/11/13,
121113C,ABARIS INTERNATIONAL LIMITED==,15587,3,28.00,OPERATIONAL EQUIP-PURCHASE,18/11/13,
121113C,ABARIS INTERNATIONAL LIMITED==,15587,4,14.00,OPERATIONAL EQUIP-PURCHASE,18/11/13,
121113C,ABARIS INTERNATIONAL LIMITED==,15587,5,6.00,OPERATIONAL EQUIP-PURCHASE,18/11/13,
121113C,ABARIS INTERNATIONAL LIMITED==,15587,6,36.00,OPERATIONAL EQUIP-PURCHASE,18/11/13,
121113C,ABARIS INTERNATIONAL LIMITED==,15587,7,24.00,OPERATIONAL EQUIP-PURCHASE,18/11/13,
121113C,ABARIS INTERNATIONAL LIMITED==,15587,8,6.00,OPERATIONAL EQUIP-PURCHASE,18/11/13,
121113C,ABARIS INTERNATIONAL LIMITED==,15587,9,6.00,OPERATIONAL EQUIP-PURCHASE,18/11/13,
121113C,ABARIS INTERNATIONAL LIMITED==,15587,10,171.50,CLOTHING,18/11/13,
121113C,ABARIS INTERNATIONAL LIMITED==,15599,1,85.00,CLOTHING,18/11/13,"1,300.00"
121113C,ABARIS INTERNATIONAL LIMITED==,15599,2,85.00,CLOTHING,18/11/13,
121113C,ABARIS INTERNATIONAL LIMITED==,15599,3,85.00,CLOTHING,18/11/13,
121113C,ABARIS INTERNATIONAL LIMITED==,15599,4,85.00,CLOTHING,18/11/13,
121113C,ABARIS INTERNATIONAL LIMITED==,15599,5,85.00,CLOTHING,18/11/13,
121113C,ABARIS INTERNATIONAL LIMITED==,15599,6,85.00,CLOTHING,18/11/13,
121113C,ABARIS INTERNATIONAL LIMITED==,15599,7,85.00,CLOTHING,18/11/13,
121113C,ABARIS INTERNATIONAL LIMITED==,15599,8,85.00,CLOTHING,18/11/13,
121113C,ABARIS INTERNATIONAL LIMITED==,15599,9,85.00,CLOTHING,18/11/13,
121113C,ABARIS INTERNATIONAL LIMITED==,15599,10,85.00,CLOTHING,18/11/13,
121113C,ABARIS INTERNATIONAL LIMITED==,15599,11,85.00,CLOTHING,18/11/13,
121113C,ABARIS INTERNATIONAL LIMITED==,15599,12,85.00,CLOTHING,18/11/13,
121113C,ABARIS INTERNATIONAL LIMITED==,15599,13,280.00,CLOTHING,18/11/13,
111113D,ENERGY AUDITING AGENCY LTD====,20132632,1,326.00,PROFESSIONAL SERVICES,18/11/13,815.00
111113D,ENERGY AUDITING AGENCY LTD====,20132632,2,326.00,PROFESSIONAL SERVICES,18/11/13,
111113D,ENERGY AUDITING AGENCY LTD====,20132632,3,163.00,PROFESSIONAL SERVICES,18/11/13,
081113C,ENERGY AUDITING AGENCY LTD====,20132633,1,323.86,PROFESSIONAL SERVICES,18/11/13,"5,505.62"
081113C,ENERGY AUDITING AGENCY LTD====,20132633,2,323.86,PROFESSIONAL SERVICES,18/11/13,
081113C,ENERGY AUDITING AGENCY LTD====,20132633,3,323.86,PROFESSIONAL SERVICES,18/11/13,
081113C,ENERGY AUDITING AGENCY LTD====,20132633,4,323.86,PROFESSIONAL SERVICES,18/11/13,
081113C,ENERGY AUDITING AGENCY LTD====,20132633,5,323.86,PROFESSIONAL SERVICES,18/11/13,
081113C,ENERGY AUDITING AGENCY LTD====,20132633,6,323.86,PROFESSIONAL SERVICES,18/11/13,
081113C,ENERGY AUDITING AGENCY LTD====,20132633,7,323.86,PROFESSIONAL SERVICES,18/11/13,
081113C,ENERGY AUDITING AGENCY LTD====,20132633,8,323.86,PROFESSIONAL SERVICES,18/11/13,
081113C,ENERGY AUDITING AGENCY LTD====,20132633,9,323.86,PROFESSIONAL SERVICES,18/11/13,
081113C,ENERGY AUDITING AGENCY LTD====,20132633,10,323.86,PROFESSIONAL SERVICES,18/11/13,
081113C,ENERGY AUDITING AGENCY LTD====,20132633,11,323.86,PROFESSIONAL SERVICES,18/11/13,
081113C,ENERGY AUDITING AGENCY LTD====,20132633,12,323.86,PROFESSIONAL SERVICES,18/11/13,
081113C,ENERGY AUDITING AGENCY LTD====,20132633,13,323.86,PROFESSIONAL SERVICES,18/11/13,
081113C,ENERGY AUDITING AGENCY LTD====,20132633,14,323.86,PROFESSIONAL SERVICES,18/11/13,
081113C,ENERGY AUDITING AGENCY LTD====,20132633,15,323.86,PROFESSIONAL SERVICES,18/11/13,
081113C,ENERGY AUDITING AGENCY LTD====,20132633,16,323.86,PROFESSIONAL SERVICES,18/11/13,
081113C,ENERGY AUDITING AGENCY LTD====,20132633,17,323.86,PROFESSIONAL SERVICES,18/11/13,
081113C,ENERGY AUDITING AGENCY LTD====,20132641,1,323.86,PROFESSIONAL SERVICES,18/11/13,323.86
140445,AFFINITY WATER,2075273&K,1,564.52,WATER & SEWERAGE RATES,18/11/13,564.52
140446,MR JOHN GREANY,229302,1,700.00,PROFESSIONAL FEES ENFORCEMENT,18/11/13,700.00
111113D,PRECISE MEDIA MONITORING LTD==,259736,1,"1,891.61",PRESS OFFICE,18/11/13,"1,891.61"
800025482,ADECCO UK LIMITED=============,26581327,1,594.65,FRS STAFF AGENCY,18/11/13,594.65
800025666,ADECCO UK LIMITED=============,26589135,1,704.90,FRS STAFF AGENCY,18/11/13,704.90
800025670,ADECCO UK LIMITED=============,26589139,1,945.42,FRS STAFF AGENCY,18/11/13,945.42
800025672,ADECCO UK LIMITED=============,26589143,1,704.90,FRS STAFF AGENCY,18/11/13,704.90
800025896,ADECCO UK LIMITED=============,26597309,1,401.92,FRS STAFF AGENCY,18/11/13,401.92
800025897,ADECCO UK LIMITED=============,26597310,1,"1,105.30",FRS STAFF AGENCY,18/11/13,"1,105.30"
800025898,ADECCO UK LIMITED=============,26597311,1,475.72,FRS STAFF AGENCY,18/11/13,475.72
800025899,ADECCO UK LIMITED=============,26597312,1,"1,458.45",FRS STAFF AGENCY,18/11/13,"1,458.45"
800025900,ADECCO UK LIMITED=============,26597313,1,351.68,FRS STAFF AGENCY,18/11/13,351.68
800025901,ADECCO UK LIMITED=============,26597314,1,"2,250.00",FRS STAFF AGENCY,18/11/13,"2,250.00"
800025902,ADECCO UK LIMITED=============,26597315,1,994.50,FRS STAFF AGENCY,18/11/13,994.50
800025903,ADECCO UK LIMITED=============,26597316,1,594.65,FRS STAFF AGENCY,18/11/13,594.65
800025904,ADECCO UK LIMITED=============,26597317,1,594.65,FRS STAFF AGENCY,18/11/13,594.65
800025905,ADECCO UK LIMITED=============,26597318,1,594.65,FRS STAFF AGENCY,18/11/13,594.65
800025906,ADECCO UK LIMITED=============,26597319,1,594.65,FRS STAFF AGENCY,18/11/13,594.65
800025907,ADECCO UK LIMITED=============,26597320,1,594.65,FRS STAFF AGENCY,18/11/13,594.65
800025908,ADECCO UK LIMITED=============,26597321,1,594.65,FRS STAFF AGENCY,18/11/13,594.65
800025910,ADECCO UK LIMITED=============,26597323,1,857.85,FRS STAFF AGENCY,18/11/13,857.85
800025911,ADECCO UK LIMITED=============,26597324,1,563.08,FRS STAFF AGENCY,18/11/13,563.08
800025912,ADECCO UK LIMITED=============,26597325,1,351.68,FRS STAFF AGENCY,18/11/13,351.68
800025913,ADECCO UK LIMITED=============,26597326,1,439.60,FRS STAFF AGENCY,18/11/13,439.60
800025914,ADECCO UK LIMITED=============,26597327,1,351.68,FRS STAFF AGENCY,18/11/13,351.68
800025916,ADECCO UK LIMITED=============,26597329,1,356.79,FRS STAFF AGENCY,18/11/13,356.79
800025917,ADECCO UK LIMITED=============,26597330,1,"1,949.85",FRS STAFF AGENCY,18/11/13,"1,949.85"
800025918,ADECCO UK LIMITED=============,26597331,1,475.72,FRS STAFF AGENCY,18/11/13,475.72
800025919,ADECCO UK LIMITED=============,26597332,1,945.42,FRS STAFF AGENCY,18/11/13,945.42
800025921,ADECCO UK LIMITED=============,26597334,1,"1,450.89",FRS STAFF AGENCY,18/11/13,"1,450.89"
800025922,ADECCO UK LIMITED=============,26597335,1,"1,450.89",FRS STAFF AGENCY,18/11/13,"1,450.89"
800025923,ADECCO UK LIMITED=============,26597336,1,704.90,FRS STAFF AGENCY,18/11/13,704.90
800025924,ADECCO UK LIMITED=============,26597337,1,263.76,FRS STAFF AGENCY,18/11/13,263.76
800025925,ADECCO UK LIMITED=============,26597338,1,594.65,FRS STAFF AGENCY,18/11/13,594.65
800025926,ADECCO UK LIMITED=============,26597339,1,427.04,FRS STAFF AGENCY,18/11/13,427.04
800025927,ADECCO UK LIMITED=============,26597340,1,263.76,FRS STAFF AGENCY,18/11/13,263.76
800025928,ADECCO UK LIMITED=============,26597341,1,729.36,CONSULTANTS,18/11/13,729.36
140440,SOUTHWARK & SOUTHBANK LIMITED,29,1,541.86,RENTS,18/11/13,541.86
121113E,CIVIL DEFENCE SUPPLY LTD======,29267,1,564.00,PROTECTIVE EQUIPMENT R & D,18/11/13,564.00
121113C,CANON (UK) LTD===============,300744767,1,280.00,MAINTENANCE & SUPPORT,18/11/13,"19,477.29"
121113C,CANON (UK) LTD===============,300744767,2,"1,347.29",MAINTENANCE & SUPPORT,18/11/13,
121113C,CANON (UK) LTD===============,300744767,3,"13,600.00",MAINTENANCE & SUPPORT,18/11/13,
121113C,CANON (UK) LTD===============,300744767,4,"4,250.00",MAINTENANCE & SUPPORT,18/11/13,
111113C,MCGRATH BROS (WASTE CONTROL) L,305395,1,292.50,REFUSE COLLECTION,18/11/13,292.50
111113D,MCGRATH BROS (WASTE CONTROL) L,306431,1,302.36,REFUSE COLLECTION,18/11/13,"19,845.38"
111113D,MCGRATH BROS (WASTE CONTROL) L,306431,2,139.20,REFUSE COLLECTION,18/11/13,
111113D,MCGRATH BROS (WASTE CONTROL) L,306431,3,243.72,REFUSE COLLECTION,18/11/13,
111113D,MCGRATH BROS (WASTE CONTROL) L,306431,4,94.51,REFUSE COLLECTION,18/11/13,
111113D,MCGRATH BROS (WASTE CONTROL) L,306431,5,139.20,REFUSE COLLECTION,18/11/13,
111113D,MCGRATH BROS (WASTE CONTROL) L,306431,6,102.55,REFUSE COLLECTION,18/11/13,
111113D,MCGRATH BROS (WASTE CONTROL) L,306431,7,163.32,REFUSE COLLECTION,18/11/13,
111113D,MCGRATH BROS (WASTE CONTROL) L,306431,8,143.52,REFUSE COLLECTION,18/11/13,
111113D,MCGRATH BROS (WASTE CONTROL) L,306431,9,139.20,REFUSE COLLECTION,18/11/13,
111113D,MCGRATH BROS (WASTE CONTROL) L,306431,10,102.55,REFUSE COLLECTION,18/11/13,
111113D,MCGRATH BROS (WASTE CONTROL) L,306431,11,82.04,REFUSE COLLECTION,18/11/13,
111113D,MCGRATH BROS (WASTE CONTROL) L,306431,12,142.75,REFUSE COLLECTION,18/11/13,
111113D,MCGRATH BROS (WASTE CONTROL) L,306431,13,159.60,REFUSE COLLECTION,18/11/13,
111113D,MCGRATH BROS (WASTE CONTROL) L,306431,14,313.30,REFUSE COLLECTION,18/11/13,
111113D,MCGRATH BROS (WASTE CONTROL) L,306431,15,139.20,REFUSE COLLECTION,18/11/13,
111113D,MCGRATH BROS (WASTE CONTROL) L,306431,16,281.14,REFUSE COLLECTION,18/11/13,
111113D,MCGRATH BROS (WASTE CONTROL) L,306431,17,102.55,REFUSE COLLECTION,18/11/13,
111113D,MCGRATH BROS (WASTE CONTROL) L,306431,18,333.10,REFUSE COLLECTION,18/11/13,
111113D,MCGRATH BROS (WASTE CONTROL) L,306431,19,302.36,REFUSE COLLECTION,18/11/13,
111113D,MCGRATH BROS (WASTE CONTROL) L,306431,20,398.84,REFUSE COLLECTION,18/11/13,
111113D,MCGRATH BROS (WASTE CONTROL) L,306431,21,171.36,REFUSE COLLECTION,18/11/13,
111113D,MCGRATH BROS (WASTE CONTROL) L,306431,22,102.55,REFUSE COLLECTION,18/11/13,
111113D,MCGRATH BROS (WASTE CONTROL) L,306431,23,102.55,REFUSE COLLECTION,18/11/13,
111113D,MCGRATH BROS (WASTE CONTROL) L,306431,24,94.51,REFUSE COLLECTION,18/11/13,
111113D,MCGRATH BROS (WASTE CONTROL) L,306431,25,102.55,REFUSE COLLECTION,18/11/13,
111113D,MCGRATH BROS (WASTE CONTROL) L,306431,26,119.40,REFUSE COLLECTION,18/11/13,
111113D,MCGRATH BROS (WASTE CONTROL) L,306431,27,102.55,REFUSE COLLECTION,18/11/13,
111113D,MCGRATH BROS (WASTE CONTROL) L,306431,28,297.22,REFUSE COLLECTION,18/11/13,
111113D,MCGRATH BROS (WASTE CONTROL) L,306431,29,216.82,REFUSE COLLECTION,18/11/13,
111113D,MCGRATH BROS (WASTE CONTROL) L,306431,30,102.55,REFUSE COLLECTION,18/11/13,
111113D,MCGRATH BROS (WASTE CONTROL) L,306431,31,131.16,REFUSE COLLECTION,18/11/13,
111113D,MCGRATH BROS (WASTE CONTROL) L,306431,32,297.22,REFUSE COLLECTION,18/11/13,
111113D,MCGRATH BROS (WASTE CONTROL) L,306431,33,131.16,REFUSE COLLECTION,18/11/13,
111113D,MCGRATH BROS (WASTE CONTROL) L,306431,34,139.20,REFUSE COLLECTION,18/11/13,
111113D,MCGRATH BROS (WASTE CONTROL) L,306431,35,163.32,REFUSE COLLECTION,18/11/13,
111113D,MCGRATH BROS (WASTE CONTROL) L,306431,36,119.40,REFUSE COLLECTION,18/11/13,
111113D,MCGRATH BROS (WASTE CONTROL) L,306431,37,179.40,REFUSE COLLECTION,18/11/13,
111113D,MCGRATH BROS (WASTE CONTROL) L,306431,38,142.75,REFUSE COLLECTION,18/11/13,
111113D,MCGRATH BROS (WASTE CONTROL) L,306431,39,94.51,REFUSE COLLECTION,18/11/13,
111113D,MCGRATH BROS (WASTE CONTROL) L,306431,40,252.70,REFUSE COLLECTION,18/11/13,
111113D,MCGRATH BROS (WASTE CONTROL) L,306431,41,252.70,REFUSE COLLECTION,18/11/13,
111113D,MCGRATH BROS (WASTE CONTROL) L,306431,42,139.20,REFUSE COLLECTION,18/11/13,
111113D,MCGRATH BROS (WASTE CONTROL) L,306431,43,102.55,REFUSE COLLECTION,18/11/13,
111113D,MCGRATH BROS (WASTE CONTROL) L,306431,44,94.51,REFUSE COLLECTION,18/11/13,
111113D,MCGRATH BROS (WASTE CONTROL) L,306431,45,302.36,REFUSE COLLECTION,18/11/13,
111113D,MCGRATH BROS (WASTE CONTROL) L,306431,46,232.90,REFUSE COLLECTION,18/11/13,
111113D,MCGRATH BROS (WASTE CONTROL) L,306431,47,131.16,REFUSE COLLECTION,18/11/13,
111113D,MCGRATH BROS (WASTE CONTROL) L,306431,48,102.55,REFUSE COLLECTION,18/11/13,
111113D,MCGRATH BROS (WASTE CONTROL) L,306431,49,94.51,REFUSE COLLECTION,18/11/13,
111113D,MCGRATH BROS (WASTE CONTROL) L,306431,50,131.16,REFUSE COLLECTION,18/11/13,
111113D,MCGRATH BROS (WASTE CONTROL) L,306431,51,317.02,REFUSE COLLECTION,18/11/13,
111113D,MCGRATH BROS (WASTE CONTROL) L,306431,52,94.51,REFUSE COLLECTION,18/11/13,
111113D,MCGRATH BROS (WASTE CONTROL) L,306431,53,102.55,REFUSE COLLECTION,18/11/13,
111113D,MCGRATH BROS (WASTE CONTROL) L,306431,54,111.36,REFUSE COLLECTION,18/11/13,
111113D,MCGRATH BROS (WASTE CONTROL) L,306431,55,102.55,REFUSE COLLECTION,18/11/13,
111113D,MCGRATH BROS (WASTE CONTROL) L,306431,56,142.75,REFUSE COLLECTION,18/11/13,
111113D,MCGRATH BROS (WASTE CONTROL) L,306431,57,102.55,REFUSE COLLECTION,18/11/13,
111113D,MCGRATH BROS (WASTE CONTROL) L,306431,58,179.40,REFUSE COLLECTION,18/11/13,
111113D,MCGRATH BROS (WASTE CONTROL) L,306431,59,90.08,REFUSE COLLECTION,18/11/13,
111113D,MCGRATH BROS (WASTE CONTROL) L,306431,60,297.22,REFUSE COLLECTION,18/11/13,
111113D,MCGRATH BROS (WASTE CONTROL) L,306431,61,139.20,REFUSE COLLECTION,18/11/13,
111113D,MCGRATH BROS (WASTE CONTROL) L,306431,62,139.20,REFUSE COLLECTION,18/11/13,
111113D,MCGRATH BROS (WASTE CONTROL) L,306431,63,94.51,REFUSE COLLECTION,18/11/13,
111113D,MCGRATH BROS (WASTE CONTROL) L,306431,64,281.14,REFUSE COLLECTION,18/11/13,
111113D,MCGRATH BROS (WASTE CONTROL) L,306431,65,102.55,REFUSE COLLECTION,18/11/13,
111113D,MCGRATH BROS (WASTE CONTROL) L,306431,66,297.22,REFUSE COLLECTION,18/11/13,
111113D,MCGRATH BROS (WASTE CONTROL) L,306431,67,102.55,REFUSE COLLECTION,18/11/13,
111113D,MCGRATH BROS (WASTE CONTROL) L,306431,68,139.20,REFUSE COLLECTION,18/11/13,
111113D,MCGRATH BROS (WASTE CONTROL) L,306431,69,139.20,REFUSE COLLECTION,18/11/13,
111113D,MCGRATH BROS (WASTE CONTROL) L,306431,70,139.20,REFUSE COLLECTION,18/11/13,
111113D,MCGRATH BROS (WASTE CONTROL) L,306431,71,55.68,REFUSE COLLECTION,18/11/13,
111113D,MCGRATH BROS (WASTE CONTROL) L,306431,72,102.55,REFUSE COLLECTION,18/11/13,
111113D,MCGRATH BROS (WASTE CONTROL) L,306431,73,317.78,REFUSE COLLECTION,18/11/13,
111113D,MCGRATH BROS (WASTE CONTROL) L,306431,74,94.51,REFUSE COLLECTION,18/11/13,
111113D,MCGRATH BROS (WASTE CONTROL) L,306431,75,139.20,REFUSE COLLECTION,18/11/13,
111113D,MCGRATH BROS (WASTE CONTROL) L,306431,77,139.20,REFUSE COLLECTION,18/11/13,
111113D,MCGRATH BROS (WASTE CONTROL) L,306431,78,126.67,REFUSE COLLECTION,18/11/13,
111113D,MCGRATH BROS (WASTE CONTROL) L,306431,79,102.55,REFUSE COLLECTION,18/11/13,
111113D,MCGRATH BROS (WASTE CONTROL) L,306431,80,102.55,REFUSE COLLECTION,18/11/13,
111113D,MCGRATH BROS (WASTE CONTROL) L,306431,81,94.51,REFUSE COLLECTION,18/11/13,
111113D,MCGRATH BROS (WASTE CONTROL) L,306431,82,102.55,REFUSE COLLECTION,18/11/13,
111113D,MCGRATH BROS (WASTE CONTROL) L,306431,83,302.26,REFUSE COLLECTION,18/11/13,
111113D,MCGRATH BROS (WASTE CONTROL) L,306431,84,297.22,REFUSE COLLECTION,18/11/13,
111113D,MCGRATH BROS (WASTE CONTROL) L,306431,85,139.20,REFUSE COLLECTION,18/11/13,
111113D,MCGRATH BROS (WASTE CONTROL) L,306431,86,94.51,REFUSE COLLECTION,18/11/13,
111113D,MCGRATH BROS (WASTE CONTROL) L,306431,87,142.75,REFUSE COLLECTION,18/11/13,
111113D,MCGRATH BROS (WASTE CONTROL) L,306431,88,139.20,REFUSE COLLECTION,18/11/13,
111113D,MCGRATH BROS (WASTE CONTROL) L,306431,89,94.51,REFUSE COLLECTION,18/11/13,
111113D,MCGRATH BROS (WASTE CONTROL) L,306431,90,536.03,REFUSE COLLECTION,18/11/13,
111113D,MCGRATH BROS (WASTE CONTROL) L,306431,91,90.08,REFUSE COLLECTION,18/11/13,
111113D,MCGRATH BROS (WASTE CONTROL) L,306431,92,94.61,REFUSE COLLECTION,18/11/13,
111113D,MCGRATH BROS (WASTE CONTROL) L,306431,93,297.22,REFUSE COLLECTION,18/11/13,
111113D,MCGRATH BROS (WASTE CONTROL) L,306431,94,102.55,REFUSE COLLECTION,18/11/13,
111113D,MCGRATH BROS (WASTE CONTROL) L,306431,95,139.20,REFUSE COLLECTION,18/11/13,
111113D,MCGRATH BROS (WASTE CONTROL) L,306431,96,139.20,REFUSE COLLECTION,18/11/13,
111113D,MCGRATH BROS (WASTE CONTROL) L,306431,97,297.22,REFUSE COLLECTION,18/11/13,
111113D,MCGRATH BROS (WASTE CONTROL) L,306431,98,139.20,REFUSE COLLECTION,18/11/13,
111113D,MCGRATH BROS (WASTE CONTROL) L,306431,99,"1,785.03",REFUSE COLLECTION,18/11/13,
111113D,MCGRATH BROS (WASTE CONTROL) L,306431,100,102.55,REFUSE COLLECTION,18/11/13,
111113D,MCGRATH BROS (WASTE CONTROL) L,306431,101,131.16,REFUSE COLLECTION,18/11/13,
111113D,MCGRATH BROS (WASTE CONTROL) L,306431,102,139.20,REFUSE COLLECTION,18/11/13,
111113D,MCGRATH BROS (WASTE CONTROL) L,306431,103,328.06,REFUSE COLLECTION,18/11/13,
111113D,MCGRATH BROS (WASTE CONTROL) L,306431,104,94.51,REFUSE COLLECTION,18/11/13,
111113D,MCGRATH BROS (WASTE CONTROL) L,306431,105,126.67,REFUSE COLLECTION,18/11/13,
111113D,MCGRATH BROS (WASTE CONTROL) L,306431,106,119.40,REFUSE COLLECTION,18/11/13,
111113D,MCGRATH BROS (WASTE CONTROL) L,306431,107,223.92,REFUSE COLLECTION,18/11/13,
111113D,MCGRATH BROS (WASTE CONTROL) L,306431,108,131.16,REFUSE COLLECTION,18/11/13,
111113D,MCGRATH BROS (WASTE CONTROL) L,306431,109,131.16,REFUSE COLLECTION,18/11/13,
111113D,MCGRATH BROS (WASTE CONTROL) L,306431,110,142.75,REFUSE COLLECTION,18/11/13,
111113D,MCGRATH BROS (WASTE CONTROL) L,306431,111,94.51,REFUSE COLLECTION,18/11/13,
111113D,MCGRATH BROS (WASTE CONTROL) L,306431,112,102.55,REFUSE COLLECTION,18/11/13,
111113D,MCGRATH BROS (WASTE CONTROL) L,306431,113,102.55,REFUSE COLLECTION,18/11/13,
111113D,MCGRATH BROS (WASTE CONTROL) L,306431,114,82.04,REFUSE COLLECTION,18/11/13,
131113C,BRAMBLE.CC LTD================,3311,1,889.00,PURCHASES-SOFTWARE,18/11/13,889.00
131113C,KNIGHTON CLEANING SERVICES LTD,37694,1,435.00,SPECIAL CLEANS,18/11/13,435.00
121113C,COMPUTACENTRE================,3805157748,1,"7,695.00",PURCHASES-COMPUTER/EQUIPMENT,18/11/13,"7,695.00"
140445,CANON (UK) LTD===============,401391285,1,"2,696.01",OFFICE EQUIPMENT,18/11/13,"2,696.01"
121113E,FIRMSTEP====================,4103,1,"4,540.00",MAINTENANCE & SUPPORT,18/11/13,"4,540.00"
131113C,MITIE SECURITY (LONDON) LTD===,45/535280/45/533051,1,"2,467.50",PREMISES SECURITY,18/11/13,"4,130.00"
131113C,MITIE SECURITY (LONDON) LTD===,45/535280/45/533051,2,"1,662.50",PREMISES SECURITY,18/11/13,
131113C,R J HOLLAND LTD===============,4835,1,"3,277.00",STRATEGIC (NON CYCLICAL),18/11/13,"3,762.00"
131113C,R J HOLLAND LTD===============,4835,2,485.00,STRATEGIC (NON CYCLICAL),18/11/13,
131113C,R J HOLLAND LTD===============,4836,1,"2,877.00",STRATEGIC (NON CYCLICAL),18/11/13,"3,372.00"
131113C,R J HOLLAND LTD===============,4836,2,495.00,STRATEGIC (NON CYCLICAL),18/11/13,
131113C,R J HOLLAND LTD===============,4837,1,"1,796.00",STRATEGIC (NON CYCLICAL),18/11/13,"1,796.00"
121113C,UNIFY,549G6000851264,1,"1,000.00",TELECOMMUNICATIONS,18/11/13,"1,000.00"
121113C,UNIFY,549G6000851396,1,325.00,TELECOMMUNICATIONS,18/11/13,325.00
121113C,UNIFY,549G6000852512,1,325.00,TELECOMMUNICATIONS,18/11/13,325.00
121113C,UNIFY,549G6000852513,1,325.00,TELECOMMUNICATIONS,18/11/13,378.32
121113C,UNIFY,549G6000852513,2,53.32,TELECOMMUNICATIONS,18/11/13,
131113C,URS SCOTT WILSON LIMITED,5688821,1,"3,302.88",PROF FEES-MISCELLANEOUS,18/11/13,"9,618.16"
131113C,URS SCOTT WILSON LIMITED,5688821,2,"6,315.28",PROF FEES-MISCELLANEOUS,18/11/13,
121113E,GAS & AIR SERVICES (UK)=======,6243,1,"1,321.42",REPAIR & MAINTENANCE,18/11/13,"1,321.42"
111113C,SWEETT  UK LTD,7029801,1,"1,000.00",STRATEGIC (NON CYCLICAL),18/11/13,"1,000.00"
111113C,SWEETT  UK LTD,7029802,1,500.00,STRATEGIC (NON CYCLICAL),18/11/13,500.00
111113C,SWEETT  UK LTD,7030085,1,550.00,STRATEGIC (NON CYCLICAL),18/11/13,550.00
140446,MR JONATHAN MOFFETT,83316C,1,"1,435.00",PROFESSIONAL FEES GENERAL,18/11/13,"1,435.00"
140446,MR JONATHAN MOFFETT,86273,1,"4,500.00",PROFESSIONAL FEES GENERAL,18/11/13,"4,500.00"
140446,MR JONATHAN MOFFETT,86273*,1,"11,770.00",PROFESSIONAL FEES GENERAL,18/11/13,"11,770.00"
140445,THAMES WATER UTILITIES LTD====,9007430523H,1,585.26,WATER & SEWERAGE RATES,18/11/13,585.26
121113C,DRAEGER SAFETY UK LIMITED=====,90429120,1,318.25,PROTECTIVE EQUIPT - PARTS,18/11/13,"1,351.85"
121113C,DRAEGER SAFETY UK LIMITED=====,90429120,2,567.40,PROTECTIVE EQUIPT - PARTS,18/11/13,
121113C,DRAEGER SAFETY UK LIMITED=====,90429120,3,466.20,PROTECTIVE EQUIPT - PARTS,18/11/13,
121113C,DRAEGER SAFETY UK LIMITED=====,90429181,1,212.40,PROTECTIVE EQUIPT - PARTS,18/11/13,355.00
121113C,DRAEGER SAFETY UK LIMITED=====,90429181,2,142.60,PROTECTIVE EQUIPT - PARTS,18/11/13,
121113E,NORTHUMBRIAN WATER LTD========,913041661,1,"1,535.16",CURRENT HYDRANT COSTS,18/11/13,"1,535.16"
121113E,NORTHUMBRIAN WATER LTD========,913041688,1,"2,562.21",CURRENT HYDRANT COSTS,18/11/13,"2,562.21"
121113C,*OFFICE DEPOT UK LTD,959168527,1,238.00,STATIONERY CONSUMABLES,18/11/13,250.56
121113C,*OFFICE DEPOT UK LTD,959168527,2,12.56,STATIONERY CONSUMABLES,18/11/13,
140445,THAMES WATER UTILITIES LTD====,9765275302B,1,"1,044.33",WATER & SEWERAGE RATES,18/11/13,"1,044.33"
121113E,THAMES WATER UTILITIES LTD====,CBA1312471,1,511.50,CURRENT HYDRANT COSTS,18/11/13,511.50
121113E,THAMES WATER UTILITIES LTD====,CBA1312486,1,"1,185.00",CURRENT HYDRANT COSTS,18/11/13,"1,185.00"
121113E,THAMES WATER UTILITIES LTD====,CBA1312492,1,307.00,CURRENT HYDRANT COSTS,18/11/13,307.00
121113E,THAMES WATER UTILITIES LTD====,CBA1312504,1,"1,185.00",CURRENT HYDRANT COSTS,18/11/13,"1,185.00"
121113E,THAMES WATER UTILITIES LTD====,CBA1312508,1,"1,185.00",CURRENT HYDRANT COSTS,18/11/13,"1,185.00"
121113E,THAMES WATER UTILITIES LTD====,CBA1312510,1,307.00,CURRENT HYDRANT COSTS,18/11/13,307.00
121113E,THAMES WATER UTILITIES LTD====,CBA1312528,1,"1,185.00",CURRENT HYDRANT COSTS,18/11/13,"1,185.00"
121113E,THAMES WATER UTILITIES LTD====,CBA1312540,1,477.00,CURRENT HYDRANT COSTS,18/11/13,477.00
121113E,THE SALVATION ARMY============,CONTRIBUTION13/14,1,"16,480.00",DONATIONS,18/11/13,"16,480.00"
131113D,E&S B DAVIS LTD,DAV/46326,1,320.00,OPERATIONAL EQUIP-PURCHASE,18/11/13,320.00
131113D,E&S B DAVIS LTD,DAV/46566,1,720.00,OPERATIONAL EQUIP-PURCHASE,18/11/13,720.00
131113D,E&S B DAVIS LTD,DAV/46567,1,720.00,OPERATIONAL EQUIP-PURCHASE,18/11/13,720.00
131113C,E&S B DAVIS LTD,DAV/46737,1,360.00,OPERATIONAL EQUIP-PURCHASE,18/11/13,360.00
131113C,HALL FUELS,I06390143,1,"2,212.60",FUEL,18/11/13,"2,212.60"
131113C,HALL FUELS,I06413773,1,"3,343.50",FUEL,18/11/13,"3,343.50"
081113C,BLUESKY SHAREPOINT CONSULTING,INV-1251,1,"1,700.00",CONSULTANTS,18/11/13,"1,700.00"
111113C,WALTER FRANK & SONS LIMITED===,INV/06491,1,540.00,OPERATIONAL EQUIP-PURCHASE,18/11/13,540.00
131113D,MUSCO LIGHTING EUROPE LTD=====,INV0003943,1,"3,853.33",GENERAL,18/11/13,"3,853.33"
140445,JCT600 CONTRACTS LIMITED======,INV00047403,1,"2,182.71",LEASE CAR CHARGES,18/11/13,"5,690.64"
140445,JCT600 CONTRACTS LIMITED======,INV00047403,2,"3,507.93",P/PAYMTS-CAR LEASG-RENTAL,18/11/13,
140445,JCT600 CONTRACTS LIMITED======,INV00047403,3,-487.58,VAT CAR LEASING,18/11/13,
140445,JCT600 CONTRACTS LIMITED======,INV00047403,4,487.58,LEASE CAR CHARGES,18/11/13,
140445,JCT600 CONTRACTS LIMITED======,INV00047404,1,"2,306.11",LEASE CAR CHARGES,18/11/13,"6,281.58"
140445,JCT600 CONTRACTS LIMITED======,INV00047404,2,"3,975.47",P/PAYMTS-CAR LEASG-RENTAL,18/11/13,
140445,JCT600 CONTRACTS LIMITED======,INV00047404,3,-557.73,VAT CAR LEASING,18/11/13,
140445,JCT600 CONTRACTS LIMITED======,INV00047404,4,557.73,LEASE CAR CHARGES,18/11/13,
051113D,SOCITM LIMITED===============,INV3314,1,"1,330.00",PROFESSIONAL DEVELOPMENT,18/11/13,"1,330.00"
121113E,HANDSET SOLUTIONS LTD,INV9776,1,275.94,OFFICE EQUIPMENT,18/11/13,348.09
121113E,HANDSET SOLUTIONS LTD,INV9776,2,16.50,OFFICE EQUIPMENT,18/11/13,
121113E,HANDSET SOLUTIONS LTD,INV9776,3,47.70,OFFICE EQUIPMENT,18/11/13,
121113E,HANDSET SOLUTIONS LTD,INV9776,4,7.95,OFFICE EQUIPMENT,18/11/13,
131113C,SMITH O'SULLIVAN LTD.=========,LFB/BFS/004,1,847.68,STRATEGIC (NON CYCLICAL),18/11/13,847.68
131113D,UNIVERSITY OF ST ANDREWS,LONDONFIRE100022050*,1,"1,970.00",PROFESSIONAL DEVELOPMENT,18/11/13,"1,970.00"
131113C,PILLINGER CONTROLS LTD========,PI71992,1,525.00,DAY TO DAY MINOR IMPS,18/11/13,525.00
902343,BABCOCK TRAINING LTD,PTSI009821,1,"1,550,923.11",OUTSOURCED TRAINING,18/11/13,"1,550,923.11"
111113D,HUNTER LODGE==================,S-015004,1,"11,120.00",ADVERTISING,18/11/13,"11,120.00"
111113D,HUNTER LODGE==================,S-015006,1,700.00,ADVERTISING,18/11/13,700.00
131113C,SECURITAS SECURITY SERVICES LT,S-SIN0176907/SCR002011,1,"84,018.66",GENERAL,18/11/13,"84,018.66"
131113D,SECURITAS SECURITY SERVICES LT,S-SIN0181055,1,"12,467.52",GENERAL,18/11/13,"12,467.52"
131113D,SECURITAS SECURITY SERVICES LT,S-SIN0183547,1,"141,862.58",GENERAL,18/11/13,"141,862.58"
131113C,SECURITAS SECURITY SERVICES LT,S-SIN0183549,1,"118,920.96",GENERAL,18/11/13,"118,920.96"
131113C,SUTTON & EAST SURREY WATER PLC,SI029701,1,"1,071.00",CURRENT HYDRANT COSTS,18/11/13,"1,071.00"
140446,MEDICAL BILLING & COLLECTION,SL/14714/1,1,275.00,DOCTORS/MEDICAL FEES,18/11/13,275.00
800025611,*XMA LTD,U180462,1,55.28,STATIONERY CONSUMABLES,18/11/13,283.74
800025611,*XMA LTD,U180462,2,54.55,STATIONERY CONSUMABLES,18/11/13,
800025611,*XMA LTD,U180462,3,51.23,STATIONERY CONSUMABLES,18/11/13,
800025611,*XMA LTD,U180462,4,55.28,STATIONERY CONSUMABLES,18/11/13,
800025611,*XMA LTD,U180462,5,67.40,STATIONERY CONSUMABLES,18/11/13,
181113C,L B OF HARROW=================,ADPSD288,1,"6,538.00",DEVELOPMENT  EXPENSES-CONTRACT,19/11/13,"6,538.00"
121113E,HEALTH MANAGEMENT LIMITED=====,0000104899,1,"107,035.75",OHS CONTRACT,21/11/13,"107,035.75"
111113C,ADAM PHONES LTD===============,01015263,1,523.66,CELLULAR TELEPHONES,21/11/13,532.37
111113C,ADAM PHONES LTD===============,01015263,2,8.71,CELLULAR TELEPHONES,21/11/13,
071113C,FIRST PRODUCTS (SUSSEX) LTD,02/13 13,1,"23,667.60",OPERATIONAL EQUIP-PURCHASE,21/11/13,"23,667.60"
181113C,GEORGE JONES & SON LTD========,036595,1,"7,484.08",STRATEGIC (NON CYCLICAL),21/11/13,"7,484.08"
151113D,*APTCO========================,101756,1,360.00,OPERATIONAL EQUIP-PURCHASE,21/11/13,360.00
800026093,AZTEC COMPUTING LTD===========,10429,1,"4,200.00",MAINTENANCE & SUPPORT,21/11/13,"4,200.00"
800026077,*JAMES HUNTER (OUTFITTERS) LTD,107337,1,282.67,CLOTHING,21/11/13,282.67
800026088,*JAMES HUNTER (OUTFITTERS) LTD,107348,1,308.66,CLOTHING,21/11/13,308.66
181113G,ALL RIGHT NOW LTD,110140,1,567.99,STATIONERY CONSUMABLES,21/11/13,567.99
800026046,REDFERN TRAVEL LTD,1173275,1,253.87,PUBLIC TRANSPORT,21/11/13,253.87
181113C,CHANGING YOUNG MINDS,12/11/2013,1,300.00,PROFESSIONAL DEVELOPMENT,21/11/13,300.00
140448,BOURNE CONSTRUCTION COMPANY,13/479,1,320.00,STRATEGIC (CYCLICAL),21/11/13,960.00
140448,BOURNE CONSTRUCTION COMPANY,13/479,2,640.00,STRATEGIC (CYCLICAL),21/11/13,
140448,BOURNE CONSTRUCTION COMPANY,13/480,1,320.00,STRATEGIC (CYCLICAL),21/11/13,"1,000.00"
140448,BOURNE CONSTRUCTION COMPANY,13/480,2,680.00,STRATEGIC (CYCLICAL),21/11/13,
140448,BOURNE CONSTRUCTION COMPANY,13/481,1,320.00,STRATEGIC (CYCLICAL),21/11/13,950.00
140448,BOURNE CONSTRUCTION COMPANY,13/481,2,630.00,STRATEGIC (CYCLICAL),21/11/13,
140448,BOURNE CONSTRUCTION COMPANY,13/482,1,320.00,STRATEGIC (CYCLICAL),21/11/13,910.00
140448,BOURNE CONSTRUCTION COMPANY,13/482,2,590.00,STRATEGIC (CYCLICAL),21/11/13,
140448,BOURNE CONSTRUCTION COMPANY,13/483,1,320.00,STRATEGIC (CYCLICAL),21/11/13,880.00
140448,BOURNE CONSTRUCTION COMPANY,13/483,2,560.00,STRATEGIC (CYCLICAL),21/11/13,
140448,BOURNE CONSTRUCTION COMPANY,13/484,1,320.00,STRATEGIC (CYCLICAL),21/11/13,800.00
140448,BOURNE CONSTRUCTION COMPANY,13/484,2,480.00,STRATEGIC (CYCLICAL),21/11/13,
151113D,GP CONTRACTS==================,14851,1,"3,050.00",STRATEGIC (NON CYCLICAL),21/11/13,"3,050.00"
151113D,GP CONTRACTS==================,14852,1,520.00,OFFICE FURNITURE,21/11/13,520.00
181113C,DYSLEXIA ACTION,154048,1,525.00,PROFESSIONAL DEVELOPMENT,21/11/13,525.00
141113C,IRON MOUNTAIN (UK) LTD========,16179760,1,"3,029.43",MAINTENANCE & SUPPORT,21/11/13,"3,029.43"
151113F,AIRSERVICES(UK)===============,16754,1,36.00,REPAIR & MAINTENANCE,21/11/13,258.00
151113F,AIRSERVICES(UK)===============,16754,2,13.00,REPAIR & MAINTENANCE,21/11/13,
151113F,AIRSERVICES(UK)===============,16754,3,143.00,REPAIR & MAINTENANCE,21/11/13,
151113F,AIRSERVICES(UK)===============,16754,4,66.00,REPAIR & MAINTENANCE,21/11/13,
151113F,DRON & WRIGHT=================,16777,1,735.00,PROFESSIONAL SERVICES,21/11/13,735.00
151113D,PITNEY BOWES LTD==============,20589661,1,614.58,OFFICE EQUIPMENT,21/11/13,614.58
151113D,CARPETS & FLOOR COVERS DIRECT=,2271,1,"1,010.00",FIXTURES & FITTINGS,21/11/13,"1,010.00"
141113C,VODAFONE LIMITED==============,228335,1,"1,015.00",TELECOMMUNICATIONS,21/11/13,"1,077.20"
141113C,VODAFONE LIMITED==============,228335,2,62.20,TELECOMMUNICATIONS,21/11/13,
181113C,CHANGING YOUNG MINDS,23/10/2013 / 29/10/201,1,300.00,PROFESSIONAL DEVELOPMENT,21/11/13,450.00
181113C,CHANGING YOUNG MINDS,23/10/2013 / 29/10/201,2,150.00,PROFESSIONAL DEVELOPMENT,21/11/13,
071113C,STORM TECHNOLOGIES============,245649,1,434.64,OFFICE EQUIPMENT,21/11/13,434.64
181113G,CANON (UK) LTD===============,300742330,1,390.86,OFFICE EQUIPMENT,21/11/13,390.86
181113G,CANON (UK) LTD===============,300742332,1,390.86,OFFICE EQUIPMENT,21/11/13,390.86
151113F,KNIGHTON CLEANING SERVICES LTD,37208*,1,"1,030.23",HYGIENE,21/11/13,"1,030.23"
141113C,BREYER GROUP PLC==============,37477,1,"9,596.00",STRATEGIC (NON CYCLICAL),21/11/13,"9,596.00"
141113C,CLASSIC VIDEO INTERNATIONAL===,37556,1,"1,040.00",PUBLIC RELATIONS,21/11/13,"1,040.00"
181113C,KNIGHTON CLEANING SERVICES LTD,37689,1,300.00,SPECIAL CLEANS,21/11/13,300.00
061113C,COMPUTACENTRE================,3805169392,1,294.32,ACQUISITIONS,21/11/13,294.32
111113C,COMPUTACENTRE================,3805177502,1,"2,549.60",ACQUISITIONS,21/11/13,"2,549.60"
140451,DR DINSHAW MASTER,4154,1,"5,000.00",DOCTORS/MEDICAL FEES,21/11/13,"5,000.00"
151113F,BOND DICKINSON LLP,4158594,1,525.00,PROFESSIONAL SERVICES,21/11/13,525.00
800026121,*BURLINGTON UNIFORMS LTD,423110,1,561.40,UNIFORMS - POMS,21/11/13,"1,458.00"
800026121,*BURLINGTON UNIFORMS LTD,423110,2,320.80,UNIFORMS - POMS,21/11/13,
800026121,*BURLINGTON UNIFORMS LTD,423110,3,160.40,UNIFORMS - POMS,21/11/13,
800026121,*BURLINGTON UNIFORMS LTD,423110,4,160.40,UNIFORMS - POMS,21/11/13,
800026121,*BURLINGTON UNIFORMS LTD,423110,5,255.00,UNIFORMS - POMS,21/11/13,
151113F,MITIE SECURITY (LONDON) LTD===,45/536826,1,"8,511.36",PREMISES SECURITY,21/11/13,"8,511.36"
151113F,MITIE SECURITY (LONDON) LTD===,45/536839,1,"17,067.36",PREMISES SECURITY,21/11/13,"17,067.36"
800025691,*GREENHAM TRADING LTD=========,5616769,1,11.04,OPERATIONAL EQUIP-PURCHASE,21/11/13,746.24
800025691,*GREENHAM TRADING LTD=========,5616769,2,5.90,HYGIENE,21/11/13,
800025691,*GREENHAM TRADING LTD=========,5616769,3,110.40,OPERATIONAL EQUIP-PURCHASE,21/11/13,
800025691,*GREENHAM TRADING LTD=========,5616769,4,125.65,HYGIENE,21/11/13,
800025691,*GREENHAM TRADING LTD=========,5616769,5,125.65,HYGIENE,21/11/13,
800025691,*GREENHAM TRADING LTD=========,5616769,6,5.90,HYGIENE,21/11/13,
800025691,*GREENHAM TRADING LTD=========,5616769,7,125.65,HYGIENE,21/11/13,
800025691,*GREENHAM TRADING LTD=========,5616769,8,125.65,HYGIENE,21/11/13,
800025691,*GREENHAM TRADING LTD=========,5616769,9,110.40,OPERATIONAL EQUIP-PURCHASE,21/11/13,
131113C,INFICON GMBH==================,70640919,1,947.45,OPERATIONAL EQUIP-PURCHASE,21/11/13,947.45
181113C,ANGUS FIRE LIMITED,8023058,1,"3,024.50",TELEMETRY MAINTENANCE,21/11/13,"4,331.70"
181113C,ANGUS FIRE LIMITED,8023058,2,"1,228.20",TELEMETRY MAINTENANCE,21/11/13,
181113C,ANGUS FIRE LIMITED,8023058,3,79.00,TELEMETRY MAINTENANCE,21/11/13,
151113D,TITAN FIRE AND SECURITY=======,86777,1,"4,614.74",STRATEGIC (NON CYCLICAL),21/11/13,"4,614.74"
081113C,NISBETS=======================,9047374,1,529.99,CATERING EQUIPMENT,21/11/13,529.99
121113C,LINCOLNSHIRE COUNTY COUNCIL===,90762120,1,"6,855.00",USAR DOG GRANT,21/11/13,"6,855.00"
151113D,FIRE SERVICE COLLEGE LTD======,93264053,1,"1,283.00",PROFESSIONAL DEVELOPMENT,21/11/13,"1,283.00"
181113C,ARCHITECTURAL DECORATORS LTD==,AD21749,1,756.85,STRATEGIC (NON CYCLICAL),21/11/13,756.85
131113C,ASTEC SURVEYS LIMITED=========,ASL-13-219,1,795.00,DEVELOPMENT  EXPENSES-CONTRACT,21/11/13,795.00
181113C,THAMES WATER UTILITIES LTD====,CBA1312480,1,"1,082.00",HYDRANTS,21/11/13,"1,082.00"
181113C,THAMES WATER UTILITIES LTD====,CBA1312823,1,"1,120.00",CURRENT HYDRANT COSTS,21/11/13,"1,120.00"
181113C,THAMES WATER UTILITIES LTD====,CBA1312824,1,"1,120.00",CURRENT HYDRANT COSTS,21/11/13,"1,120.00"
181113C,THAMES WATER UTILITIES LTD====,CBA1312829,1,477.00,CURRENT HYDRANT COSTS,21/11/13,477.00
181113C,THAMES WATER UTILITIES LTD====,CBA1312832,1,"1,185.00",CURRENT HYDRANT COSTS,21/11/13,"1,185.00"
181113C,THAMES WATER UTILITIES LTD====,CBA1312833,1,"1,185.00",CURRENT HYDRANT COSTS,21/11/13,"1,185.00"
181113C,THAMES WATER UTILITIES LTD====,CBA1312834,1,"1,185.00",CURRENT HYDRANT COSTS,21/11/13,"1,185.00"
181113C,THAMES WATER UTILITIES LTD====,CBA1312840,1,"1,185.00",CURRENT HYDRANT COSTS,21/11/13,"1,185.00"
181113C,THAMES WATER UTILITIES LTD====,CBA1312841,1,"1,185.00",CURRENT HYDRANT COSTS,21/11/13,"1,185.00"
181113C,THAMES WATER UTILITIES LTD====,CBA1312842,1,"1,185.00",CURRENT HYDRANT COSTS,21/11/13,"1,185.00"
181113C,THAMES WATER UTILITIES LTD====,CBA1312846,1,"1,185.00",CURRENT HYDRANT COSTS,21/11/13,"1,185.00"
181113C,THAMES WATER UTILITIES LTD====,CBA1312849,1,"1,185.00",CURRENT HYDRANT COSTS,21/11/13,"1,185.00"
181113C,THAMES WATER UTILITIES LTD====,CBA1312854,1,"1,800.00",CURRENT HYDRANT COSTS,21/11/13,"1,800.00"
181113C,RADIOCOMS SYSTEMS LIMITED=====,CF271163/B,1,"3,420.00",ACQUISITIONS,21/11/13,"4,560.00"
181113C,RADIOCOMS SYSTEMS LIMITED=====,CF271163/B,2,"1,140.00",ACQUISITIONS,21/11/13,
141113C,WM ENGINEERING SERVICES LTD===,I-4570,1,"1,625.00",TACTICAL DAY TO DAY,21/11/13,"1,625.00"
141113C,WM ENGINEERING SERVICES LTD===,I-4571,1,"1,625.00",TACTICAL DAY TO DAY,21/11/13,"1,625.00"
141113C,WM ENGINEERING SERVICES LTD===,I-4584,1,"1,625.00",TACTICAL DAY TO DAY,21/11/13,"1,625.00"
181113C,HALL FUELS,I06410851,1,"3,009.15",FUEL,21/11/13,"3,009.15"
181113C,PURDY CONTRACTS LTD,IN229997,1,"17,661.55",STRATEGIC (NON CYCLICAL),21/11/13,"21,374.29"
181113C,PURDY CONTRACTS LTD,IN229997,2,"3,712.74",STRATEGIC (NON CYCLICAL),21/11/13,
151113D,CHILDCARE VOUCHERS LTD========,INS07904774/144969,1,639.08,CHILDCARE,21/11/13,639.08
181113C,SMITH O'SULLIVAN LTD.=========,LFB/HFS/001A,1,"9,516.62",STRATEGIC (NON CYCLICAL),21/11/13,"9,516.62"
151113D,BALFOUR BEATTY WORKPLACE LTD,M123571,1,"23,349.54",TACTICAL DAY TO DAY,21/11/13,"76,694.99"
151113D,BALFOUR BEATTY WORKPLACE LTD,M123571,2,92.89,TACTICAL DAY TO DAY,21/11/13,
151113D,BALFOUR BEATTY WORKPLACE LTD,M123571,3,272.82,TACTICAL DAY TO DAY,21/11/13,
151113D,BALFOUR BEATTY WORKPLACE LTD,M123571,4,"52,242.14",STRATEGIC (CYCLICAL),21/11/13,
151113D,BALFOUR BEATTY WORKPLACE LTD,M123571,5,208.24,STRATEGIC (CYCLICAL),21/11/13,
151113D,BALFOUR BEATTY WORKPLACE LTD,M123571,6,529.36,STRATEGIC (CYCLICAL),21/11/13,
151113D,BALFOUR BEATTY WORKPLACE LTD,M124180,1,"23,349.54",TACTICAL DAY TO DAY,21/11/13,"75,546.56"
151113D,BALFOUR BEATTY WORKPLACE LTD,M124180,2,92.89,TACTICAL DAY TO DAY,21/11/13,
151113D,BALFOUR BEATTY WORKPLACE LTD,M124180,3,272.82,TACTICAL DAY TO DAY,21/11/13,
151113D,BALFOUR BEATTY WORKPLACE LTD,M124180,4,"51,093.71",STRATEGIC (CYCLICAL),21/11/13,
151113D,BALFOUR BEATTY WORKPLACE LTD,M124180,5,208.24,STRATEGIC (CYCLICAL),21/11/13,
151113D,BALFOUR BEATTY WORKPLACE LTD,M124180,6,529.36,STRATEGIC (CYCLICAL),21/11/13,
181113C,PHOENIX SOFTWARE LTD==========,OP/I709258,1,141.00,MAINTENANCE & SUPPORT,21/11/13,"1,544.25"
181113C,PHOENIX SOFTWARE LTD==========,OP/I709258,2,"1,400.70",MAINTENANCE & SUPPORT,21/11/13,
181113C,PHOENIX SOFTWARE LTD==========,OP/I709258,3,2.55,MAINTENANCE & SUPPORT,21/11/13,
800026119,ALLSTAR BUSINESS SOLUTIONS LTD,P2001886496,1,"1,296.57",FUEL,21/11/13,"22,292.62"
800026119,ALLSTAR BUSINESS SOLUTIONS LTD,P2001886496,2,966.79,FUEL,21/11/13,
800026119,ALLSTAR BUSINESS SOLUTIONS LTD,P2001886496,3,729.81,FUEL,21/11/13,
800026119,ALLSTAR BUSINESS SOLUTIONS LTD,P2001886496,4,489.78,FUEL,21/11/13,
800026119,ALLSTAR BUSINESS SOLUTIONS LTD,P2001886496,5,479.94,FUEL,21/11/13,
800026119,ALLSTAR BUSINESS SOLUTIONS LTD,P2001886496,6,476.86,FUEL,21/11/13,
800026119,ALLSTAR BUSINESS SOLUTIONS LTD,P2001886496,7,472.16,FUEL,21/11/13,
800026119,ALLSTAR BUSINESS SOLUTIONS LTD,P2001886496,8,470.15,FUEL,21/11/13,
800026119,ALLSTAR BUSINESS SOLUTIONS LTD,P2001886496,9,463.83,FUEL,21/11/13,
800026119,ALLSTAR BUSINESS SOLUTIONS LTD,P2001886496,10,373.08,FUEL,21/11/13,
800026119,ALLSTAR BUSINESS SOLUTIONS LTD,P2001886496,11,360.97,FUEL,21/11/13,
800026119,ALLSTAR BUSINESS SOLUTIONS LTD,P2001886496,12,354.85,FUEL,21/11/13,
800026119,ALLSTAR BUSINESS SOLUTIONS LTD,P2001886496,13,340.27,FUEL,21/11/13,
800026119,ALLSTAR BUSINESS SOLUTIONS LTD,P2001886496,14,339.68,FUEL,21/11/13,
800026119,ALLSTAR BUSINESS SOLUTIONS LTD,P2001886496,15,325.74,FUEL,21/11/13,
800026119,ALLSTAR BUSINESS SOLUTIONS LTD,P2001886496,16,311.29,FUEL,21/11/13,
800026119,ALLSTAR BUSINESS SOLUTIONS LTD,P2001886496,17,300.54,FUEL,21/11/13,
800026119,ALLSTAR BUSINESS SOLUTIONS LTD,P2001886496,18,295.79,FUEL,21/11/13,
800026119,ALLSTAR BUSINESS SOLUTIONS LTD,P2001886496,19,287.57,FUEL,21/11/13,
800026119,ALLSTAR BUSINESS SOLUTIONS LTD,P2001886496,20,283.74,FUEL,21/11/13,
800026119,ALLSTAR BUSINESS SOLUTIONS LTD,P2001886496,21,283.47,FUEL,21/11/13,
800026119,ALLSTAR BUSINESS SOLUTIONS LTD,P2001886496,22,279.78,FUEL,21/11/13,
800026119,ALLSTAR BUSINESS SOLUTIONS LTD,P2001886496,23,277.41,FUEL,21/11/13,
800026119,ALLSTAR BUSINESS SOLUTIONS LTD,P2001886496,24,267.34,FUEL,21/11/13,
800026119,ALLSTAR BUSINESS SOLUTIONS LTD,P2001886496,25,267.06,FUEL,21/11/13,
800026119,ALLSTAR BUSINESS SOLUTIONS LTD,P2001886496,26,260.19,FUEL,21/11/13,
800026119,ALLSTAR BUSINESS SOLUTIONS LTD,P2001886496,27,247.56,FUEL,21/11/13,
800026119,ALLSTAR BUSINESS SOLUTIONS LTD,P2001886496,28,244.33,FUEL,21/11/13,
800026119,ALLSTAR BUSINESS SOLUTIONS LTD,P2001886496,29,217.37,FUEL,21/11/13,
800026119,ALLSTAR BUSINESS SOLUTIONS LTD,P2001886496,30,214.31,FUEL,21/11/13,
800026119,ALLSTAR BUSINESS SOLUTIONS LTD,P2001886496,31,212.99,FUEL,21/11/13,
800026119,ALLSTAR BUSINESS SOLUTIONS LTD,P2001886496,32,211.33,FUEL,21/11/13,
800026119,ALLSTAR BUSINESS SOLUTIONS LTD,P2001886496,33,206.16,FUEL,21/11/13,
800026119,ALLSTAR BUSINESS SOLUTIONS LTD,P2001886496,34,206.04,FUEL,21/11/13,
800026119,ALLSTAR BUSINESS SOLUTIONS LTD,P2001886496,35,196.36,FUEL,21/11/13,
800026119,ALLSTAR BUSINESS SOLUTIONS LTD,P2001886496,36,195.40,FUEL,21/11/13,
800026119,ALLSTAR BUSINESS SOLUTIONS LTD,P2001886496,37,188.41,FUEL,21/11/13,
800026119,ALLSTAR BUSINESS SOLUTIONS LTD,P2001886496,38,186.62,FUEL,21/11/13,
800026119,ALLSTAR BUSINESS SOLUTIONS LTD,P2001886496,39,182.70,FUEL,21/11/13,
800026119,ALLSTAR BUSINESS SOLUTIONS LTD,P2001886496,40,180.41,FUEL,21/11/13,
800026119,ALLSTAR BUSINESS SOLUTIONS LTD,P2001886496,41,178.04,FUEL,21/11/13,
800026119,ALLSTAR BUSINESS SOLUTIONS LTD,P2001886496,42,174.75,FUEL,21/11/13,
800026119,ALLSTAR BUSINESS SOLUTIONS LTD,P2001886496,43,171.63,FUEL,21/11/13,
800026119,ALLSTAR BUSINESS SOLUTIONS LTD,P2001886496,44,169.76,FUEL,21/11/13,
800026119,ALLSTAR BUSINESS SOLUTIONS LTD,P2001886496,45,167.57,FUEL,21/11/13,
800026119,ALLSTAR BUSINESS SOLUTIONS LTD,P2001886496,46,167.02,FUEL,21/11/13,
800026119,ALLSTAR BUSINESS SOLUTIONS LTD,P2001886496,47,166.61,FUEL,21/11/13,
800026119,ALLSTAR BUSINESS SOLUTIONS LTD,P2001886496,48,166.17,FUEL,21/11/13,
800026119,ALLSTAR BUSINESS SOLUTIONS LTD,P2001886496,49,165.80,FUEL,21/11/13,
800026119,ALLSTAR BUSINESS SOLUTIONS LTD,P2001886496,50,165.33,FUEL,21/11/13,
800026119,ALLSTAR BUSINESS SOLUTIONS LTD,P2001886496,51,165.25,FUEL,21/11/13,
800026119,ALLSTAR BUSINESS SOLUTIONS LTD,P2001886496,52,163.58,FUEL,21/11/13,
800026119,ALLSTAR BUSINESS SOLUTIONS LTD,P2001886496,53,161.30,FUEL,21/11/13,
800026119,ALLSTAR BUSINESS SOLUTIONS LTD,P2001886496,54,160.13,FUEL,21/11/13,
800026119,ALLSTAR BUSINESS SOLUTIONS LTD,P2001886496,55,159.52,FUEL,21/11/13,
800026119,ALLSTAR BUSINESS SOLUTIONS LTD,P2001886496,56,153.84,FUEL,21/11/13,
800026119,ALLSTAR BUSINESS SOLUTIONS LTD,P2001886496,57,153.29,FUEL,21/11/13,
800026119,ALLSTAR BUSINESS SOLUTIONS LTD,P2001886496,58,153.05,FUEL,21/11/13,
800026119,ALLSTAR BUSINESS SOLUTIONS LTD,P2001886496,59,152.97,FUEL,21/11/13,
800026119,ALLSTAR BUSINESS SOLUTIONS LTD,P2001886496,60,151.11,FUEL,21/11/13,
800026119,ALLSTAR BUSINESS SOLUTIONS LTD,P2001886496,61,148.55,FUEL,21/11/13,
800026119,ALLSTAR BUSINESS SOLUTIONS LTD,P2001886496,62,145.63,FUEL,21/11/13,
800026119,ALLSTAR BUSINESS SOLUTIONS LTD,P2001886496,63,140.07,FUEL,21/11/13,
800026119,ALLSTAR BUSINESS SOLUTIONS LTD,P2001886496,64,139.17,FUEL,21/11/13,
800026119,ALLSTAR BUSINESS SOLUTIONS LTD,P2001886496,65,138.80,FUEL,21/11/13,
800026119,ALLSTAR BUSINESS SOLUTIONS LTD,P2001886496,66,137.55,FUEL,21/11/13,
800026119,ALLSTAR BUSINESS SOLUTIONS LTD,P2001886496,67,135.26,FUEL,21/11/13,
800026119,ALLSTAR BUSINESS SOLUTIONS LTD,P2001886496,68,134.84,FUEL,21/11/13,
800026119,ALLSTAR BUSINESS SOLUTIONS LTD,P2001886496,69,134.65,FUEL,21/11/13,
800026119,ALLSTAR BUSINESS SOLUTIONS LTD,P2001886496,70,132.46,FUEL,21/11/13,
800026119,ALLSTAR BUSINESS SOLUTIONS LTD,P2001886496,71,132.03,FUEL,21/11/13,
800026119,ALLSTAR BUSINESS SOLUTIONS LTD,P2001886496,72,129.03,FUEL,21/11/13,
800026119,ALLSTAR BUSINESS SOLUTIONS LTD,P2001886496,73,128.74,FUEL,21/11/13,
800026119,ALLSTAR BUSINESS SOLUTIONS LTD,P2001886496,74,128.02,FUEL,21/11/13,
800026119,ALLSTAR BUSINESS SOLUTIONS LTD,P2001886496,75,125.95,FUEL,21/11/13,
800026119,ALLSTAR BUSINESS SOLUTIONS LTD,P2001886496,76,124.18,FUEL,21/11/13,
800026119,ALLSTAR BUSINESS SOLUTIONS LTD,P2001886496,77,122.73,FUEL,21/11/13,
800026119,ALLSTAR BUSINESS SOLUTIONS LTD,P2001886496,78,119.75,FUEL,21/11/13,
800026119,ALLSTAR BUSINESS SOLUTIONS LTD,P2001886496,79,119.32,FUEL,21/11/13,
800026119,ALLSTAR BUSINESS SOLUTIONS LTD,P2001886496,80,117.99,FUEL,21/11/13,
800026119,ALLSTAR BUSINESS SOLUTIONS LTD,P2001886496,81,116.77,FUEL,21/11/13,
800026119,ALLSTAR BUSINESS SOLUTIONS LTD,P2001886496,82,115.65,FUEL,21/11/13,
800026119,ALLSTAR BUSINESS SOLUTIONS LTD,P2001886496,83,114.99,FUEL,21/11/13,
800026119,ALLSTAR BUSINESS SOLUTIONS LTD,P2001886496,84,112.58,FUEL,21/11/13,
800026119,ALLSTAR BUSINESS SOLUTIONS LTD,P2001886496,85,111.25,FUEL,21/11/13,
800026119,ALLSTAR BUSINESS SOLUTIONS LTD,P2001886496,86,111.17,FUEL,21/11/13,
800026119,ALLSTAR BUSINESS SOLUTIONS LTD,P2001886496,87,109.51,FUEL,21/11/13,
800026119,ALLSTAR BUSINESS SOLUTIONS LTD,P2001886496,88,109.41,FUEL,21/11/13,
800026119,ALLSTAR BUSINESS SOLUTIONS LTD,P2001886496,89,105.51,FUEL,21/11/13,
800026119,ALLSTAR BUSINESS SOLUTIONS LTD,P2001886496,90,97.82,FUEL,21/11/13,
800026119,ALLSTAR BUSINESS SOLUTIONS LTD,P2001886496,91,94.95,FUEL,21/11/13,
800026119,ALLSTAR BUSINESS SOLUTIONS LTD,P2001886496,92,94.23,FUEL,21/11/13,
800026119,ALLSTAR BUSINESS SOLUTIONS LTD,P2001886496,93,88.16,FUEL,21/11/13,
800026119,ALLSTAR BUSINESS SOLUTIONS LTD,P2001886496,94,86.92,FUEL,21/11/13,
800026119,ALLSTAR BUSINESS SOLUTIONS LTD,P2001886496,95,81.67,FUEL,21/11/13,
800026119,ALLSTAR BUSINESS SOLUTIONS LTD,P2001886496,96,79.27,FUEL,21/11/13,
800026119,ALLSTAR BUSINESS SOLUTIONS LTD,P2001886496,97,78.37,FUEL,21/11/13,
800026119,ALLSTAR BUSINESS SOLUTIONS LTD,P2001886496,98,76.44,FUEL,21/11/13,
800026119,ALLSTAR BUSINESS SOLUTIONS LTD,P2001886496,99,71.92,FUEL,21/11/13,
800026119,ALLSTAR BUSINESS SOLUTIONS LTD,P2001886496,100,71.73,FUEL,21/11/13,
800026119,ALLSTAR BUSINESS SOLUTIONS LTD,P2001886496,101,64.66,FUEL,21/11/13,
800026119,ALLSTAR BUSINESS SOLUTIONS LTD,P2001886496,102,63.12,FUEL,21/11/13,
800026119,ALLSTAR BUSINESS SOLUTIONS LTD,P2001886496,103,53.50,FUEL,21/11/13,
800026119,ALLSTAR BUSINESS SOLUTIONS LTD,P2001886496,104,51.03,FUEL,21/11/13,
800026119,ALLSTAR BUSINESS SOLUTIONS LTD,P2001886496,105,50.08,FUEL,21/11/13,
800026119,ALLSTAR BUSINESS SOLUTIONS LTD,P2001886496,106,50.03,FUEL,21/11/13,
800026119,ALLSTAR BUSINESS SOLUTIONS LTD,P2001886496,107,45.11,FUEL,21/11/13,
800026119,ALLSTAR BUSINESS SOLUTIONS LTD,P2001886496,108,44.50,FUEL,21/11/13,
800026119,ALLSTAR BUSINESS SOLUTIONS LTD,P2001886496,109,38.13,FUEL,21/11/13,
800026119,ALLSTAR BUSINESS SOLUTIONS LTD,P2001886496,110,36.51,FUEL,21/11/13,
800026119,ALLSTAR BUSINESS SOLUTIONS LTD,P2001886496,111,21.54,FUEL,21/11/13,
151113F,GROUND CONTROL UMITED,SIN0225788,1,13.00,GROUNDS MAINTENANCE,21/11/13,"1,047.10"
151113F,GROUND CONTROL UMITED,SIN0225788,2,13.00,GROUNDS MAINTENANCE,21/11/13,
151113F,GROUND CONTROL UMITED,SIN0225788,3,57.34,GROUNDS MAINTENANCE,21/11/13,
151113F,GROUND CONTROL UMITED,SIN0225788,4,13.00,GROUNDS MAINTENANCE,21/11/13,
151113F,GROUND CONTROL UMITED,SIN0225788,5,41.58,GROUNDS MAINTENANCE,21/11/13,
151113F,GROUND CONTROL UMITED,SIN0225788,6,41.58,GROUNDS MAINTENANCE,21/11/13,
151113F,GROUND CONTROL UMITED,SIN0225788,7,13.00,GROUNDS MAINTENANCE,21/11/13,
151113F,GROUND CONTROL UMITED,SIN0225788,8,13.00,GROUNDS MAINTENANCE,21/11/13,
151113F,GROUND CONTROL UMITED,SIN0225788,9,53.87,GROUNDS MAINTENANCE,21/11/13,
151113F,GROUND CONTROL UMITED,SIN0225788,10,13.00,GROUNDS MAINTENANCE,21/11/13,
151113F,GROUND CONTROL UMITED,SIN0225788,11,13.00,GROUNDS MAINTENANCE,21/11/13,
151113F,GROUND CONTROL UMITED,SIN0225788,12,60.38,GROUNDS MAINTENANCE,21/11/13,
151113F,GROUND CONTROL UMITED,SIN0225788,13,45.21,GROUNDS MAINTENANCE,21/11/13,
151113F,GROUND CONTROL UMITED,SIN0225788,14,49.12,GROUNDS MAINTENANCE,21/11/13,
151113F,GROUND CONTROL UMITED,SIN0225788,15,13.00,GROUNDS MAINTENANCE,21/11/13,
151113F,GROUND CONTROL UMITED,SIN0225788,16,13.00,GROUNDS MAINTENANCE,21/11/13,
151113F,GROUND CONTROL UMITED,SIN0225788,17,13.00,GROUNDS MAINTENANCE,21/11/13,
151113F,GROUND CONTROL UMITED,SIN0225788,18,49.12,GROUNDS MAINTENANCE,21/11/13,
151113F,GROUND CONTROL UMITED,SIN0225788,19,15.00,GROUNDS MAINTENANCE,21/11/13,
151113F,GROUND CONTROL UMITED,SIN0225788,20,13.00,GROUNDS MAINTENANCE,21/11/13,
151113F,GROUND CONTROL UMITED,SIN0225788,21,13.00,GROUNDS MAINTENANCE,21/11/13,
151113F,GROUND CONTROL UMITED,SIN0225788,22,50.41,GROUNDS MAINTENANCE,21/11/13,
151113F,GROUND CONTROL UMITED,SIN0225788,23,13.00,GROUNDS MAINTENANCE,21/11/13,
151113F,GROUND CONTROL UMITED,SIN0225788,24,13.00,GROUNDS MAINTENANCE,21/11/13,
151113F,GROUND CONTROL UMITED,SIN0225788,25,13.00,GROUNDS MAINTENANCE,21/11/13,
151113F,GROUND CONTROL UMITED,SIN0225788,26,49.12,GROUNDS MAINTENANCE,21/11/13,
151113F,GROUND CONTROL UMITED,SIN0225788,27,45.21,GROUNDS MAINTENANCE,21/11/13,
151113F,GROUND CONTROL UMITED,SIN0225788,28,13.00,GROUNDS MAINTENANCE,21/11/13,
151113F,GROUND CONTROL UMITED,SIN0225788,29,45.21,GROUNDS MAINTENANCE,21/11/13,
151113F,GROUND CONTROL UMITED,SIN0225788,30,15.00,GROUNDS MAINTENANCE,21/11/13,
151113F,GROUND CONTROL UMITED,SIN0225788,31,49.12,GROUNDS MAINTENANCE,21/11/13,
151113F,GROUND CONTROL UMITED,SIN0225788,32,49.12,GROUNDS MAINTENANCE,21/11/13,
151113F,GROUND CONTROL UMITED,SIN0225788,33,49.12,GROUNDS MAINTENANCE,21/11/13,
151113F,GROUND CONTROL UMITED,SIN0225788,34,13.00,GROUNDS MAINTENANCE,21/11/13,
151113F,GROUND CONTROL UMITED,SIN0225788,35,47.59,GROUNDS MAINTENANCE,21/11/13,
151113F,GROUND CONTROL UMITED,SIN0225788,36,13.00,GROUNDS MAINTENANCE,21/11/13,
151113F,GROUND CONTROL UMITED,SIN025789,1,79.85,GROUNDS MAINTENANCE,21/11/13,831.30
151113F,GROUND CONTROL UMITED,SIN025789,2,13.00,GROUNDS MAINTENANCE,21/11/13,
151113F,GROUND CONTROL UMITED,SIN025789,3,13.00,GROUNDS MAINTENANCE,21/11/13,
151113F,GROUND CONTROL UMITED,SIN025789,4,49.46,GROUNDS MAINTENANCE,21/11/13,
151113F,GROUND CONTROL UMITED,SIN025789,5,9.88,GROUNDS MAINTENANCE,21/11/13,
151113F,GROUND CONTROL UMITED,SIN025789,6,34.55,GROUNDS MAINTENANCE,21/11/13,
151113F,GROUND CONTROL UMITED,SIN025789,7,14.29,GROUNDS MAINTENANCE,21/11/13,
151113F,GROUND CONTROL UMITED,SIN025789,8,14.29,GROUNDS MAINTENANCE,21/11/13,
151113F,GROUND CONTROL UMITED,SIN025789,9,41.30,GROUNDS MAINTENANCE,21/11/13,
151113F,GROUND CONTROL UMITED,SIN025789,10,41.30,GROUNDS MAINTENANCE,21/11/13,
151113F,GROUND CONTROL UMITED,SIN025789,11,13.00,GROUNDS MAINTENANCE,21/11/13,
151113F,GROUND CONTROL UMITED,SIN025789,12,13.00,GROUNDS MAINTENANCE,21/11/13,
151113F,GROUND CONTROL UMITED,SIN025789,13,45.21,GROUNDS MAINTENANCE,21/11/13,
151113F,GROUND CONTROL UMITED,SIN025789,14,41.30,GROUNDS MAINTENANCE,21/11/13,
151113F,GROUND CONTROL UMITED,SIN025789,15,13.00,GROUNDS MAINTENANCE,21/11/13,
151113F,GROUND CONTROL UMITED,SIN025789,16,13.00,GROUNDS MAINTENANCE,21/11/13,
151113F,GROUND CONTROL UMITED,SIN025789,17,13.00,GROUNDS MAINTENANCE,21/11/13,
151113F,GROUND CONTROL UMITED,SIN025789,18,13.00,GROUNDS MAINTENANCE,21/11/13,
151113F,GROUND CONTROL UMITED,SIN025789,19,13.00,GROUNDS MAINTENANCE,21/11/13,
151113F,GROUND CONTROL UMITED,SIN025789,20,13.00,GROUNDS MAINTENANCE,21/11/13,
151113F,GROUND CONTROL UMITED,SIN025789,22,13.00,GROUNDS MAINTENANCE,21/11/13,
151113F,GROUND CONTROL UMITED,SIN025789,23,64.69,GROUNDS MAINTENANCE,21/11/13,
151113F,GROUND CONTROL UMITED,SIN025789,24,13.00,GROUNDS MAINTENANCE,21/11/13,
151113F,GROUND CONTROL UMITED,SIN025789,25,13.00,GROUNDS MAINTENANCE,21/11/13,
151113F,GROUND CONTROL UMITED,SIN025789,26,13.00,GROUNDS MAINTENANCE,21/11/13,
151113F,GROUND CONTROL UMITED,SIN025789,27,34.55,GROUNDS MAINTENANCE,21/11/13,
151113F,GROUND CONTROL UMITED,SIN025789,28,13.00,GROUNDS MAINTENANCE,21/11/13,
151113F,GROUND CONTROL UMITED,SIN025789,29,34.55,GROUNDS MAINTENANCE,21/11/13,
151113F,GROUND CONTROL UMITED,SIN025789,30,38.46,GROUNDS MAINTENANCE,21/11/13,
151113F,GROUND CONTROL UMITED,SIN025789,31,38.46,GROUNDS MAINTENANCE,21/11/13,
151113F,GROUND CONTROL UMITED,SIN025789,32,13.00,GROUNDS MAINTENANCE,21/11/13,
151113F,GROUND CONTROL UMITED,SIN025789,33,13.00,GROUNDS MAINTENANCE,21/11/13,
151113F,GROUND CONTROL UMITED,SIN025789,34,13.00,GROUNDS MAINTENANCE,21/11/13,
151113F,GROUND CONTROL UMITED,SIN025789,35,6.50,GROUNDS MAINTENANCE,21/11/13,
151113F,GROUND CONTROL UMITED,SIN025789,36,8.66,GROUNDS MAINTENANCE,21/11/13,
181113C,COLLINS (CONTRACTORS) LTD=====,SPAM158*,1,"3,618.00",STRATEGIC (NON CYCLICAL),21/11/13,"14,187.00"
181113C,COLLINS (CONTRACTORS) LTD=====,SPAM158*,2,"10,569.00",STRATEGIC (NON CYCLICAL),21/11/13,
181113G,ARVAL UK LTD,VS0000728853,1,"1,076.08",CONTRACT HIRE,21/11/13,"1,076.08"
181113G,ARVAL UK LTD,VS0000764540,1,"1,359.12",CONTRACT HIRE,21/11/13,"1,359.12"
181113G,ARVAL UK LTD,VS0000800319,1,"1,837.16",CONTRACT HIRE,21/11/13,"1,837.16"
181113G,ARVAL UK LTD,VS0000836578,1,"2,160.64",CONTRACT HIRE,21/11/13,"2,160.64"
181113C,ARVAL UK LTD,VS0000836583,1,718.48,CONTRACT HIRE,21/11/13,718.48
181113G,SPEAKERS TRUST,WEB/003548,1,"1,545.00",PURCHASE,21/11/13,"1,545.00"
141113C,CONFERENCE & TRAVEL PUB LTD,WF02551,1,449.00,PROFESSIONAL DEVELOPMENT,21/11/13,449.00
140452,CORONA ENERGY RETAIL 4 LTD,0878710131,1,6.41,GAS,25/11/13,"16,520.44"
140452,CORONA ENERGY RETAIL 4 LTD,0878710131,2,860.03,GAS,25/11/13,
140452,CORONA ENERGY RETAIL 4 LTD,0878710131,3,230.05,GAS,25/11/13,
140452,CORONA ENERGY RETAIL 4 LTD,0878710131,4,200.00,GAS,25/11/13,
140452,CORONA ENERGY RETAIL 4 LTD,0878710131,5,477.90,GAS,25/11/13,
140452,CORONA ENERGY RETAIL 4 LTD,0878710131,6,594.06,GAS,25/11/13,
140452,CORONA ENERGY RETAIL 4 LTD,0878710131,7,499.30,GAS,25/11/13,
140452,CORONA ENERGY RETAIL 4 LTD,0878710131,8,370.83,GAS,25/11/13,
140452,CORONA ENERGY RETAIL 4 LTD,0878710131,9,"2,403.13",GAS,25/11/13,
140452,CORONA ENERGY RETAIL 4 LTD,0878710131,10,428.37,GAS,25/11/13,
140452,CORONA ENERGY RETAIL 4 LTD,0878710131,11,86.80,GAS,25/11/13,
140452,CORONA ENERGY RETAIL 4 LTD,0878710131,12,442.07,GAS,25/11/13,
140452,CORONA ENERGY RETAIL 4 LTD,0878710131,13,440.73,GAS,25/11/13,
140452,CORONA ENERGY RETAIL 4 LTD,0878710131,14,792.14,GAS,25/11/13,
140452,CORONA ENERGY RETAIL 4 LTD,0878710131,15,903.55,GAS,25/11/13,
140452,CORONA ENERGY RETAIL 4 LTD,0878710131,16,512.24,GAS,25/11/13,
140452,CORONA ENERGY RETAIL 4 LTD,0878710131,17,502.55,GAS,25/11/13,
140452,CORONA ENERGY RETAIL 4 LTD,0878710131,18,763.39,GAS,25/11/13,
140452,CORONA ENERGY RETAIL 4 LTD,0878710131,19,55.20,GAS,25/11/13,
140452,CORONA ENERGY RETAIL 4 LTD,0878710131,20,44.62,GAS,25/11/13,
140452,CORONA ENERGY RETAIL 4 LTD,0878710131,21,39.02,GAS,25/11/13,
140452,CORONA ENERGY RETAIL 4 LTD,0878710131,22,680.29,GAS,25/11/13,
140452,CORONA ENERGY RETAIL 4 LTD,0878710131,23,"1,198.11",GAS,25/11/13,
140452,CORONA ENERGY RETAIL 4 LTD,0878710131,24,798.12,GAS,25/11/13,
140452,CORONA ENERGY RETAIL 4 LTD,0878710131,25,297.90,GAS,25/11/13,
140452,CORONA ENERGY RETAIL 4 LTD,0878710131,26,605.56,GAS,25/11/13,
140452,CORONA ENERGY RETAIL 4 LTD,0878710131,27,471.39,GAS,25/11/13,
140452,CORONA ENERGY RETAIL 4 LTD,0878710131,28,348.94,GAS,25/11/13,
140452,CORONA ENERGY RETAIL 4 LTD,0878710131,29,302.99,GAS,25/11/13,
140452,CORONA ENERGY RETAIL 4 LTD,0878710131,30,289.60,GAS,25/11/13,
140452,CORONA ENERGY RETAIL 4 LTD,0878710131,31,359.81,GAS,25/11/13,
140452,CORONA ENERGY RETAIL 4 LTD,0878710131,32,515.34,GAS,25/11/13,
140453,CORONA ENERGY RETAIL 4 LTD,0878710132,1,381.61,GAS,25/11/13,"18,604.57"
140453,CORONA ENERGY RETAIL 4 LTD,0878710132,2,177.45,GAS,25/11/13,
140453,CORONA ENERGY RETAIL 4 LTD,0878710132,3,475.99,GAS,25/11/13,
140453,CORONA ENERGY RETAIL 4 LTD,0878710132,4,746.44,GAS,25/11/13,
140453,CORONA ENERGY RETAIL 4 LTD,0878710132,5,883.41,GAS,25/11/13,
140453,CORONA ENERGY RETAIL 4 LTD,0878710132,6,755.05,GAS,25/11/13,
140453,CORONA ENERGY RETAIL 4 LTD,0878710132,7,"3,758.78",GAS,25/11/13,
140453,CORONA ENERGY RETAIL 4 LTD,0878710132,8,225.33,GAS,25/11/13,
140453,CORONA ENERGY RETAIL 4 LTD,0878710132,9,395.16,GAS,25/11/13,
140453,CORONA ENERGY RETAIL 4 LTD,0878710132,10,671.79,GAS,25/11/13,
140453,CORONA ENERGY RETAIL 4 LTD,0878710132,11,541.10,GAS,25/11/13,
140453,CORONA ENERGY RETAIL 4 LTD,0878710132,12,950.60,GAS,25/11/13,
140453,CORONA ENERGY RETAIL 4 LTD,0878710132,13,200.74,GAS,25/11/13,
140453,CORONA ENERGY RETAIL 4 LTD,0878710132,14,264.18,GAS,25/11/13,
140453,CORONA ENERGY RETAIL 4 LTD,0878710132,15,331.66,GAS,25/11/13,
140453,CORONA ENERGY RETAIL 4 LTD,0878710132,16,587.38,GAS,25/11/13,
140453,CORONA ENERGY RETAIL 4 LTD,0878710132,17,456.60,GAS,25/11/13,
140453,CORONA ENERGY RETAIL 4 LTD,0878710132,18,302.37,GAS,25/11/13,
140453,CORONA ENERGY RETAIL 4 LTD,0878710132,19,"1,339.99",GAS,25/11/13,
140453,CORONA ENERGY RETAIL 4 LTD,0878710132,20,972.97,GAS,25/11/13,
140453,CORONA ENERGY RETAIL 4 LTD,0878710132,21,48.04,GAS,25/11/13,
140453,CORONA ENERGY RETAIL 4 LTD,0878710132,22,432.53,GAS,25/11/13,
140453,CORONA ENERGY RETAIL 4 LTD,0878710132,23,416.60,GAS,25/11/13,
140453,CORONA ENERGY RETAIL 4 LTD,0878710132,24,95.17,GAS,25/11/13,
140453,CORONA ENERGY RETAIL 4 LTD,0878710132,25,395.91,GAS,25/11/13,
140453,CORONA ENERGY RETAIL 4 LTD,0878710132,26,449.65,GAS,25/11/13,
140453,CORONA ENERGY RETAIL 4 LTD,0878710132,27,30.14,GAS,25/11/13,
140453,CORONA ENERGY RETAIL 4 LTD,0878710132,28,599.37,GAS,25/11/13,
140453,CORONA ENERGY RETAIL 4 LTD,0878710132,29,498.17,GAS,25/11/13,
140453,CORONA ENERGY RETAIL 4 LTD,0878710132,30,300.47,GAS,25/11/13,
140453,CORONA ENERGY RETAIL 4 LTD,0878710132,31,389.83,GAS,25/11/13,
140453,CORONA ENERGY RETAIL 4 LTD,0878710132,32,530.09,GAS,25/11/13,
140454,CORONA ENERGY RETAIL 4 LTD,0878710133,1,340.18,GAS,25/11/13,"17,728.33"
140454,CORONA ENERGY RETAIL 4 LTD,0878710133,2,437.32,GAS,25/11/13,
140454,CORONA ENERGY RETAIL 4 LTD,0878710133,3,697.40,GAS,25/11/13,
140454,CORONA ENERGY RETAIL 4 LTD,0878710133,4,354.27,GAS,25/11/13,
140454,CORONA ENERGY RETAIL 4 LTD,0878710133,5,572.23,GAS,25/11/13,
140454,CORONA ENERGY RETAIL 4 LTD,0878710133,6,447.32,GAS,25/11/13,
140454,CORONA ENERGY RETAIL 4 LTD,0878710133,7,413.08,GAS,25/11/13,
140454,CORONA ENERGY RETAIL 4 LTD,0878710133,8,517.59,GAS,25/11/13,
140454,CORONA ENERGY RETAIL 4 LTD,0878710133,9,"2,912.64",GAS,25/11/13,
140454,CORONA ENERGY RETAIL 4 LTD,0878710133,10,449.05,GAS,25/11/13,
140454,CORONA ENERGY RETAIL 4 LTD,0878710133,11,96.47,GAS,25/11/13,
140454,CORONA ENERGY RETAIL 4 LTD,0878710133,12,289.48,GAS,25/11/13,
140454,CORONA ENERGY RETAIL 4 LTD,0878710133,13,"1,059.81",GAS,25/11/13,
140454,CORONA ENERGY RETAIL 4 LTD,0878710133,14,310.22,GAS,25/11/13,
140454,CORONA ENERGY RETAIL 4 LTD,0878710133,15,529.99,GAS,25/11/13,
140454,CORONA ENERGY RETAIL 4 LTD,0878710133,16,"2,310.78",GAS,25/11/13,
140454,CORONA ENERGY RETAIL 4 LTD,0878710133,17,385.94,GAS,25/11/13,
140454,CORONA ENERGY RETAIL 4 LTD,0878710133,18,731.52,GAS,25/11/13,
140454,CORONA ENERGY RETAIL 4 LTD,0878710133,19,315.00,GAS,25/11/13,
140454,CORONA ENERGY RETAIL 4 LTD,0878710133,20,873.85,GAS,25/11/13,
140454,CORONA ENERGY RETAIL 4 LTD,0878710133,21,191.27,GAS,25/11/13,
140454,CORONA ENERGY RETAIL 4 LTD,0878710133,22,367.45,GAS,25/11/13,
140454,CORONA ENERGY RETAIL 4 LTD,0878710133,23,263.70,GAS,25/11/13,
140454,CORONA ENERGY RETAIL 4 LTD,0878710133,24,488.68,GAS,25/11/13,
140454,CORONA ENERGY RETAIL 4 LTD,0878710133,25,378.84,GAS,25/11/13,
140454,CORONA ENERGY RETAIL 4 LTD,0878710133,26,599.55,GAS,25/11/13,
140454,CORONA ENERGY RETAIL 4 LTD,0878710133,27,370.46,GAS,25/11/13,
140454,CORONA ENERGY RETAIL 4 LTD,0878710133,28,243.54,GAS,25/11/13,
140454,CORONA ENERGY RETAIL 4 LTD,0878710133,29,203.24,GAS,25/11/13,
140454,CORONA ENERGY RETAIL 4 LTD,0878710133,30,240.23,GAS,25/11/13,
140454,CORONA ENERGY RETAIL 4 LTD,0878710133,31,145.15,GAS,25/11/13,
140454,CORONA ENERGY RETAIL 4 LTD,0878710133,32,192.08,GAS,25/11/13,
140455,CORONA ENERGY RETAIL 4 LTD,0878710134,1,18.80,GAS,25/11/13,"18,519.59"
140455,CORONA ENERGY RETAIL 4 LTD,0878710134,2,490.52,GAS,25/11/13,
140455,CORONA ENERGY RETAIL 4 LTD,0878710134,3,"1,532.82",GAS,25/11/13,
140455,CORONA ENERGY RETAIL 4 LTD,0878710134,4,329.71,GAS,25/11/13,
140455,CORONA ENERGY RETAIL 4 LTD,0878710134,5,528.90,GAS,25/11/13,
140455,CORONA ENERGY RETAIL 4 LTD,0878710134,6,472.48,GAS,25/11/13,
140455,CORONA ENERGY RETAIL 4 LTD,0878710134,7,511.11,GAS,25/11/13,
140455,CORONA ENERGY RETAIL 4 LTD,0878710134,8,473.03,GAS,25/11/13,
140455,CORONA ENERGY RETAIL 4 LTD,0878710134,9,524.94,GAS,25/11/13,
140455,CORONA ENERGY RETAIL 4 LTD,0878710134,10,344.09,GAS,25/11/13,
140455,CORONA ENERGY RETAIL 4 LTD,0878710134,11,370.11,GAS,25/11/13,
140455,CORONA ENERGY RETAIL 4 LTD,0878710134,12,969.71,GAS,25/11/13,
140455,CORONA ENERGY RETAIL 4 LTD,0878710134,13,"1,226.02",GAS,25/11/13,
140455,CORONA ENERGY RETAIL 4 LTD,0878710134,14,473.76,GAS,25/11/13,
140455,CORONA ENERGY RETAIL 4 LTD,0878710134,15,300.40,GAS,25/11/13,
140455,CORONA ENERGY RETAIL 4 LTD,0878710134,16,661.19,GAS,25/11/13,
140455,CORONA ENERGY RETAIL 4 LTD,0878710134,17,393.77,GAS,25/11/13,
140455,CORONA ENERGY RETAIL 4 LTD,0878710134,18,241.00,GAS,25/11/13,
140455,CORONA ENERGY RETAIL 4 LTD,0878710134,19,"1,021.90",GAS,25/11/13,
140455,CORONA ENERGY RETAIL 4 LTD,0878710134,20,255.47,GAS,25/11/13,
140455,CORONA ENERGY RETAIL 4 LTD,0878710134,21,"1,185.59",GAS,25/11/13,
140455,CORONA ENERGY RETAIL 4 LTD,0878710134,22,296.40,GAS,25/11/13,
140455,CORONA ENERGY RETAIL 4 LTD,0878710134,23,"1,401.72",GAS,25/11/13,
140455,CORONA ENERGY RETAIL 4 LTD,0878710134,24,350.43,GAS,25/11/13,
140455,CORONA ENERGY RETAIL 4 LTD,0878710134,25,118.11,GAS,25/11/13,
140455,CORONA ENERGY RETAIL 4 LTD,0878710134,26,605.40,GAS,25/11/13,
140455,CORONA ENERGY RETAIL 4 LTD,0878710134,27,436.29,GAS,25/11/13,
140455,CORONA ENERGY RETAIL 4 LTD,0878710134,28,"1,024.23",GAS,25/11/13,
140455,CORONA ENERGY RETAIL 4 LTD,0878710134,29,9.30,GAS,25/11/13,
140455,CORONA ENERGY RETAIL 4 LTD,0878710134,30,431.08,GAS,25/11/13,
140455,CORONA ENERGY RETAIL 4 LTD,0878710134,31,523.45,GAS,25/11/13,
140455,CORONA ENERGY RETAIL 4 LTD,0878710134,32,570.98,GAS,25/11/13,
140455,CORONA ENERGY RETAIL 4 LTD,0878710134,33,426.88,GAS,25/11/13,
140456,CORONA ENERGY RETAIL 4 LTD,0878710135,1,188.42,GAS,25/11/13,"8,454.18"
140456,CORONA ENERGY RETAIL 4 LTD,0878710135,2,429.12,GAS,25/11/13,
140456,CORONA ENERGY RETAIL 4 LTD,0878710135,3,306.13,GAS,25/11/13,
140456,CORONA ENERGY RETAIL 4 LTD,0878710135,4,406.49,GAS,25/11/13,
140456,CORONA ENERGY RETAIL 4 LTD,0878710135,5,344.12,GAS,25/11/13,
140456,CORONA ENERGY RETAIL 4 LTD,0878710135,6,"1,038.31",GAS,25/11/13,
140456,CORONA ENERGY RETAIL 4 LTD,0878710135,7,150.00,GAS,25/11/13,
140456,CORONA ENERGY RETAIL 4 LTD,0878710135,8,461.16,GAS,25/11/13,
140456,CORONA ENERGY RETAIL 4 LTD,0878710135,9,19.53,GAS,25/11/13,
140456,CORONA ENERGY RETAIL 4 LTD,0878710135,10,39.97,GAS,25/11/13,
140456,CORONA ENERGY RETAIL 4 LTD,0878710135,11,631.32,GAS,25/11/13,
140456,CORONA ENERGY RETAIL 4 LTD,0878710135,12,457.70,GAS,25/11/13,
140456,CORONA ENERGY RETAIL 4 LTD,0878710135,13,626.62,GAS,25/11/13,
140456,CORONA ENERGY RETAIL 4 LTD,0878710135,14,"1,187.13",GAS,25/11/13,
140456,CORONA ENERGY RETAIL 4 LTD,0878710135,15,443.80,GAS,25/11/13,
140456,CORONA ENERGY RETAIL 4 LTD,0878710135,16,561.81,GAS,25/11/13,
140456,CORONA ENERGY RETAIL 4 LTD,0878710135,17,589.01,GAS,25/11/13,
140456,CORONA ENERGY RETAIL 4 LTD,0878710135,18,573.54,GAS,25/11/13,
201113D,HAYS ACCOUNTANCY & FINANCE====,1003730882,1,464.00,FRS STAFF AGENCY,25/11/13,464.00
191113C,AFFINITY WATER,101029001,1,818.00,CURRENT HYDRANT COSTS,25/11/13,818.00
191113C,AFFINITY WATER,101029003,1,871.00,CURRENT HYDRANT COSTS,25/11/13,871.00
191113C,AFFINITY WATER,101029006,1,568.00,CURRENT HYDRANT COSTS,25/11/13,568.00
191113C,AFFINITY WATER,101029008,1,341.00,CURRENT HYDRANT COSTS,25/11/13,341.00
191113C,AFFINITY WATER,101029009,1,403.00,CURRENT HYDRANT COSTS,25/11/13,403.00
191113C,AFFINITY WATER,101029010,1,769.00,CURRENT HYDRANT COSTS,25/11/13,769.00
191113C,AFFINITY WATER,101029011,1,769.00,CURRENT HYDRANT COSTS,25/11/13,769.00
191113C,AFFINITY WATER,101029014,1,341.00,CURRENT HYDRANT COSTS,25/11/13,341.00
191113C,AFFINITY WATER,101029015,1,341.00,CURRENT HYDRANT COSTS,25/11/13,341.00
191113C,AFFINITY WATER,101029016,1,741.00,CURRENT HYDRANT COSTS,25/11/13,741.00
191113C,AFFINITY WATER,101029018,1,398.00,CURRENT HYDRANT COSTS,25/11/13,398.00
191113C,AFFINITY WATER,101029019,1,507.00,CURRENT HYDRANT COSTS,25/11/13,507.00
191113C,AFFINITY WATER,101029020,1,714.00,CURRENT HYDRANT COSTS,25/11/13,714.00
191113C,AFFINITY WATER,101029021,1,741.00,CURRENT HYDRANT COSTS,25/11/13,741.00
191113C,AFFINITY WATER,101029022,1,368.00,CURRENT HYDRANT COSTS,25/11/13,368.00
191113C,AFFINITY WATER,101029023,1,714.00,CURRENT HYDRANT COSTS,25/11/13,714.00
191113C,AFFINITY WATER,101029024,1,769.00,CURRENT HYDRANT COSTS,25/11/13,769.00
191113C,AFFINITY WATER,101029026,1,507.00,CURRENT HYDRANT COSTS,25/11/13,507.00
191113C,AFFINITY WATER,101029027,1,714.00,CURRENT HYDRANT COSTS,25/11/13,714.00
191113C,AFFINITY WATER,101029030,1,368.00,CURRENT HYDRANT COSTS,25/11/13,368.00
191113C,AFFINITY WATER,101029031,1,714.00,CURRENT HYDRANT COSTS,25/11/13,714.00
191113C,AFFINITY WATER,101029032,1,507.00,CURRENT HYDRANT COSTS,25/11/13,507.00
191113C,AFFINITY WATER,101029033,1,714.00,CURRENT HYDRANT COSTS,25/11/13,714.00
191113C,AFFINITY WATER,101029034,1,714.00,CURRENT HYDRANT COSTS,25/11/13,714.00
191113C,AFFINITY WATER,101029035,1,"1,640.00",CURRENT HYDRANT COSTS,25/11/13,"1,640.00"
191113C,AFFINITY WATER,101029036,1,714.00,CURRENT HYDRANT COSTS,25/11/13,714.00
191113C,AFFINITY WATER,101029037,1,341.00,CURRENT HYDRANT COSTS,25/11/13,341.00
191113C,AFFINITY WATER,101029040,1,769.00,CURRENT HYDRANT COSTS,25/11/13,769.00
191113C,AFFINITY WATER,101029041,1,714.00,CURRENT HYDRANT COSTS,25/11/13,714.00
191113C,AFFINITY WATER,101029042,1,341.00,CURRENT HYDRANT COSTS,25/11/13,341.00
191113C,AFFINITY WATER,101029043,1,714.00,CURRENT HYDRANT COSTS,25/11/13,714.00
191113C,AFFINITY WATER,101029045,1,714.00,CURRENT HYDRANT COSTS,25/11/13,714.00
191113C,AFFINITY WATER,101029046,1,341.00,CURRENT HYDRANT COSTS,25/11/13,341.00
191113C,AFFINITY WATER,101029048,1,714.00,CURRENT HYDRANT COSTS,25/11/13,714.00
191113C,AFFINITY WATER,101029051,1,341.00,CURRENT HYDRANT COSTS,25/11/13,341.00
191113C,AFFINITY WATER,101029052,1,769.00,CURRENT HYDRANT COSTS,25/11/13,769.00
191113C,AFFINITY WATER,101029054,1,341.00,CURRENT HYDRANT COSTS,25/11/13,341.00
191113C,AFFINITY WATER,101029055,1,341.00,CURRENT HYDRANT COSTS,25/11/13,341.00
191113C,AFFINITY WATER,101029056,1,714.00,CURRENT HYDRANT COSTS,25/11/13,714.00
191113C,AFFINITY WATER,101029058,1,714.00,CURRENT HYDRANT COSTS,25/11/13,714.00
191113C,AFFINITY WATER,101029063,1,398.00,CURRENT HYDRANT COSTS,25/11/13,398.00
191113C,AFFINITY WATER,101029064,1,"1,640.00",CURRENT HYDRANT COSTS,25/11/13,"1,640.00"
191113C,AFFINITY WATER,101029068,1,714.00,CURRENT HYDRANT COSTS,25/11/13,714.00
191113C,AFFINITY WATER,101029072,1,714.00,CURRENT HYDRANT COSTS,25/11/13,714.00
191113C,AFFINITY WATER,101029073,1,341.00,CURRENT HYDRANT COSTS,25/11/13,341.00
191113C,AFFINITY WATER,101029074,1,714.00,CURRENT HYDRANT COSTS,25/11/13,714.00
191113C,AFFINITY WATER,101029075,1,368.00,CURRENT HYDRANT COSTS,25/11/13,368.00
191113C,AFFINITY WATER,101029077,1,714.00,CURRENT HYDRANT COSTS,25/11/13,714.00
191113C,AFFINITY WATER,101029078,1,341.00,CURRENT HYDRANT COSTS,25/11/13,341.00
191113C,AFFINITY WATER,101029083,1,714.00,CURRENT HYDRANT COSTS,25/11/13,714.00
191113C,AFFINITY WATER,101029084,1,341.00,CURRENT HYDRANT COSTS,25/11/13,341.00
191113C,AFFINITY WATER,101029086,1,341.00,CURRENT HYDRANT COSTS,25/11/13,341.00
191113C,AFFINITY WATER,101029089,1,714.00,CURRENT HYDRANT COSTS,25/11/13,714.00
191113C,AFFINITY WATER,101029090,1,714.00,CURRENT HYDRANT COSTS,25/11/13,714.00
191113C,VISTA LANDSCAPE MANAGEMENT LTD,118988,1,225.00,GROUNDS MAINTENANCE,25/11/13,994.00
191113C,VISTA LANDSCAPE MANAGEMENT LTD,118988,2,75.00,GROUNDS MAINTENANCE,25/11/13,
191113C,VISTA LANDSCAPE MANAGEMENT LTD,118988,3,125.00,GROUNDS MAINTENANCE,25/11/13,
191113C,VISTA LANDSCAPE MANAGEMENT LTD,118988,4,125.00,GROUNDS MAINTENANCE,25/11/13,
191113C,VISTA LANDSCAPE MANAGEMENT LTD,118988,5,162.50,GROUNDS MAINTENANCE,25/11/13,
191113C,VISTA LANDSCAPE MANAGEMENT LTD,118988,6,175.00,GROUNDS MAINTENANCE,25/11/13,
191113C,VISTA LANDSCAPE MANAGEMENT LTD,118988,7,50.00,GROUNDS MAINTENANCE,25/11/13,
191113C,VISTA LANDSCAPE MANAGEMENT LTD,118988,8,56.50,GROUNDS MAINTENANCE,25/11/13,
201113D,RESPIREX======================,144454,1,"6,500.00",PROTECTIVE EQUIPMENT,25/11/13,"6,500.00"
201113C,DYSLEXIA ACTION,155168,1,525.00,PROFESSIONAL DEVELOPMENT,25/11/13,525.00
201113C,DYSLEXIA ACTION,155840,1,540.00,PROFESSIONAL DEVELOPMENT,25/11/13,540.00
201113C,DRON & WRIGHT=================,16773,1,124.45,DISPOSAL COSTS-ESTATES AGENTS,25/11/13,"3,820.80"
201113C,DRON & WRIGHT=================,16773,2,124.45,DISPOSAL COSTS-ESTATES AGENTS,25/11/13,
201113C,DRON & WRIGHT=================,16773,3,124.45,DISPOSAL COSTS-ESTATES AGENTS,25/11/13,
201113C,DRON & WRIGHT=================,16773,4,124.45,DISPOSAL COSTS-ESTATES AGENTS,25/11/13,
201113C,DRON & WRIGHT=================,16773,5,124.45,DISPOSAL COSTS-ESTATES AGENTS,25/11/13,
201113C,DRON & WRIGHT=================,16773,6,124.45,DISPOSAL COSTS-ESTATES AGENTS,25/11/13,
201113C,DRON & WRIGHT=================,16773,7,124.45,DISPOSAL COSTS-ESTATES AGENTS,25/11/13,
201113C,DRON & WRIGHT=================,16773,8,"1,205.80",DISPOSAL COSTS-ESTATES AGENTS,25/11/13,
201113C,DRON & WRIGHT=================,16773,9,"1,495.00",PROFESSIONAL SERVICES,25/11/13,
201113C,DRON & WRIGHT=================,16773,10,124.45,DISPOSAL COSTS-ESTATES AGENTS,25/11/13,
201113C,DRON & WRIGHT=================,16773,11,124.40,DISPOSAL COSTS-ESTATES AGENTS,25/11/13,
141113C,COMMUNITIES & LOCAL GOVERNMENT,1800019293,1,"108,482.23",MAINTENANCE & SUPPORT,25/11/13,"116,506.33"
141113C,COMMUNITIES & LOCAL GOVERNMENT,1800019293,2,"8,024.10",MAINTENANCE & SUPPORT,25/11/13,
201113C,GRADIENT CONSULTANTS LLP======,1931,1,245.00,ASBESTOS,25/11/13,"7,223.75"
201113C,GRADIENT CONSULTANTS LLP======,1931,2,245.00,ASBESTOS,25/11/13,
201113C,GRADIENT CONSULTANTS LLP======,1931,3,187.50,ASBESTOS,25/11/13,
201113C,GRADIENT CONSULTANTS LLP======,1931,4,195.00,ASBESTOS,25/11/13,
201113C,GRADIENT CONSULTANTS LLP======,1931,5,125.00,ASBESTOS,25/11/13,
201113C,GRADIENT CONSULTANTS LLP======,1931,6,125.00,ASBESTOS,25/11/13,
201113C,GRADIENT CONSULTANTS LLP======,1931,7,290.00,ASBESTOS,25/11/13,
201113C,GRADIENT CONSULTANTS LLP======,1931,8,545.00,ASBESTOS,25/11/13,
201113C,GRADIENT CONSULTANTS LLP======,1931,9,190.00,ASBESTOS,25/11/13,
201113C,GRADIENT CONSULTANTS LLP======,1931,10,48.75,ASBESTOS,25/11/13,
201113C,GRADIENT CONSULTANTS LLP======,1931,11,300.00,ASBESTOS,25/11/13,
201113C,GRADIENT CONSULTANTS LLP======,1931,12,320.00,ASBESTOS,25/11/13,
201113C,GRADIENT CONSULTANTS LLP======,1931,13,490.00,ASBESTOS,25/11/13,
201113C,GRADIENT CONSULTANTS LLP======,1931,14,290.00,ASBESTOS,25/11/13,
201113C,GRADIENT CONSULTANTS LLP======,1931,15,187.50,ASBESTOS,25/11/13,
201113C,GRADIENT CONSULTANTS LLP======,1931,16,97.50,ASBESTOS,25/11/13,
201113C,GRADIENT CONSULTANTS LLP======,1931,17,195.00,ASBESTOS,25/11/13,
201113C,GRADIENT CONSULTANTS LLP======,1931,18,290.00,ASBESTOS,25/11/13,
201113C,GRADIENT CONSULTANTS LLP======,1931,19,62.50,ASBESTOS,25/11/13,
201113C,GRADIENT CONSULTANTS LLP======,1931,20,280.00,ASBESTOS,25/11/13,
201113C,GRADIENT CONSULTANTS LLP======,1931,21,445.00,ASBESTOS,25/11/13,
201113C,GRADIENT CONSULTANTS LLP======,1931,22,250.00,ASBESTOS,25/11/13,
201113C,GRADIENT CONSULTANTS LLP======,1931,23,250.00,ASBESTOS,25/11/13,
201113C,GRADIENT CONSULTANTS LLP======,1931,24,300.00,ASBESTOS,25/11/13,
201113C,GRADIENT CONSULTANTS LLP======,1931,25,195.00,ASBESTOS,25/11/13,
201113C,GRADIENT CONSULTANTS LLP======,1931,26,195.00,ASBESTOS,25/11/13,
201113C,GRADIENT CONSULTANTS LLP======,1931,27,146.00,ASBESTOS,25/11/13,
201113C,GRADIENT CONSULTANTS LLP======,1931,28,146.00,ASBESTOS,25/11/13,
201113C,GRADIENT CONSULTANTS LLP======,1931,29,146.00,ASBESTOS,25/11/13,
201113C,GRADIENT CONSULTANTS LLP======,1931,30,146.00,ASBESTOS,25/11/13,
201113C,GRADIENT CONSULTANTS LLP======,1931,31,146.00,ASBESTOS,25/11/13,
201113C,GRADIENT CONSULTANTS LLP======,1931,32,150.00,ASBESTOS,25/11/13,
201113C,GRADIENT CONSULTANTS LLP======,1932,1,290.00,PROF FEES-MISCELLANEOUS,25/11/13,"6,495.00"
201113C,GRADIENT CONSULTANTS LLP======,1932,2,290.00,PROF FEES-MISCELLANEOUS,25/11/13,
201113C,GRADIENT CONSULTANTS LLP======,1932,3,545.00,PROF FEES-MISCELLANEOUS,25/11/13,
201113C,GRADIENT CONSULTANTS LLP======,1932,4,290.00,PROF FEES-MISCELLANEOUS,25/11/13,
201113C,GRADIENT CONSULTANTS LLP======,1932,5,225.00,PROF FEES-MISCELLANEOUS,25/11/13,
201113C,GRADIENT CONSULTANTS LLP======,1932,6,290.00,PROF FEES-MISCELLANEOUS,25/11/13,
201113C,GRADIENT CONSULTANTS LLP======,1932,7,290.00,PROF FEES-MISCELLANEOUS,25/11/13,
201113C,GRADIENT CONSULTANTS LLP======,1932,8,290.00,PROF FEES-MISCELLANEOUS,25/11/13,
201113C,GRADIENT CONSULTANTS LLP======,1932,9,55.00,PROF FEES-MISCELLANEOUS,25/11/13,
201113C,GRADIENT CONSULTANTS LLP======,1932,10,290.00,PROF FEES-MISCELLANEOUS,25/11/13,
201113C,GRADIENT CONSULTANTS LLP======,1932,11,290.00,PROF FEES-MISCELLANEOUS,25/11/13,
201113C,GRADIENT CONSULTANTS LLP======,1932,12,55.00,PROF FEES-MISCELLANEOUS,25/11/13,
201113C,GRADIENT CONSULTANTS LLP======,1932,13,545.00,PROF FEES-MISCELLANEOUS,25/11/13,
201113C,GRADIENT CONSULTANTS LLP======,1932,14,545.00,PROF FEES-MISCELLANEOUS,25/11/13,
201113C,GRADIENT CONSULTANTS LLP======,1932,15,482.50,PROF FEES-MISCELLANEOUS,25/11/13,
201113C,GRADIENT CONSULTANTS LLP======,1932,16,245.00,PROF FEES-MISCELLANEOUS,25/11/13,
201113C,GRADIENT CONSULTANTS LLP======,1932,17,62.50,PROF FEES-MISCELLANEOUS,25/11/13,
201113C,GRADIENT CONSULTANTS LLP======,1932,18,290.00,PROF FEES-MISCELLANEOUS,25/11/13,
201113C,GRADIENT CONSULTANTS LLP======,1932,19,290.00,PROF FEES-MISCELLANEOUS,25/11/13,
201113C,GRADIENT CONSULTANTS LLP======,1932,20,290.00,PROF FEES-MISCELLANEOUS,25/11/13,
201113C,GRADIENT CONSULTANTS LLP======,1932,21,545.00,PROF FEES-MISCELLANEOUS,25/11/13,
201113C,GRADIENT CONSULTANTS LLP======,1933,1,424.49,ASBESTOS,25/11/13,958.42
201113C,GRADIENT CONSULTANTS LLP======,1933,2,52.74,ASBESTOS,25/11/13,
201113C,GRADIENT CONSULTANTS LLP======,1933,3,242.57,ASBESTOS,25/11/13,
201113C,GRADIENT CONSULTANTS LLP======,1933,4,185.88,ASBESTOS,25/11/13,
201113C,GRADIENT CONSULTANTS LLP======,1933,5,52.74,ASBESTOS,25/11/13,
201113C,B NOKES CONTRACTS LTD,1955,1,"1,260.00",STRATEGIC (NON CYCLICAL),25/11/13,"1,835.00"
201113C,B NOKES CONTRACTS LTD,1955,2,575.00,STRATEGIC (NON CYCLICAL),25/11/13,
201113C,B NOKES CONTRACTS LTD,1956,1,"2,940.00",STRATEGIC (NON CYCLICAL),25/11/13,"6,297.00"
201113C,B NOKES CONTRACTS LTD,1956,2,"3,357.00",STRATEGIC (NON CYCLICAL),25/11/13,
201113C,B NOKES CONTRACTS LTD,1957,1,"2,520.00",STRATEGIC (NON CYCLICAL),25/11/13,"5,107.50"
201113C,B NOKES CONTRACTS LTD,1957,2,"2,587.50",STRATEGIC (NON CYCLICAL),25/11/13,
201113C,B NOKES CONTRACTS LTD,1958,1,210.00,FIXTURES & FITTINGS,25/11/13,555.00
201113C,B NOKES CONTRACTS LTD,1958,2,345.00,FIXTURES & FITTINGS,25/11/13,
201113C,B NOKES CONTRACTS LTD,1959,1,"4,662.00",STRATEGIC (NON CYCLICAL),25/11/13,"9,777.50"
201113C,B NOKES CONTRACTS LTD,1959,2,"5,115.50",STRATEGIC (NON CYCLICAL),25/11/13,
201113C,B NOKES CONTRACTS LTD,1960,1,210.00,STRATEGIC (NON CYCLICAL),25/11/13,261.75
201113C,B NOKES CONTRACTS LTD,1960,2,51.75,STRATEGIC (NON CYCLICAL),25/11/13,
201113C,B NOKES CONTRACTS LTD,1961,1,"1,680.00",STRATEGIC (NON CYCLICAL),25/11/13,"3,990.50"
201113C,B NOKES CONTRACTS LTD,1961,2,"2,310.50",STRATEGIC (NON CYCLICAL),25/11/13,
201113C,B NOKES CONTRACTS LTD,1962,1,"2,100.00",STRATEGIC (NON CYCLICAL),25/11/13,"4,147.00"
201113C,B NOKES CONTRACTS LTD,1962,2,"2,047.00",STRATEGIC (NON CYCLICAL),25/11/13,
201113C,B NOKES CONTRACTS LTD,1964,1,"3,785.00",STRATEGIC (NON CYCLICAL),25/11/13,"3,785.00"
201113C,B NOKES CONTRACTS LTD,1965,1,"2,520.00",STRATEGIC (NON CYCLICAL),25/11/13,"4,727.00"
201113C,B NOKES CONTRACTS LTD,1965,2,"2,207.00",STRATEGIC (NON CYCLICAL),25/11/13,
201113C,B NOKES CONTRACTS LTD,1966,1,954.50,STRATEGIC (NON CYCLICAL),25/11/13,954.50
201113C,B NOKES CONTRACTS LTD,1967,1,"1,890.00",STRATEGIC (NON CYCLICAL),25/11/13,"3,982.00"
201113C,B NOKES CONTRACTS LTD,1967,2,"2,092.00",STRATEGIC (NON CYCLICAL),25/11/13,
201113C,B NOKES CONTRACTS LTD,1968,1,"5,497.00",STRATEGIC (NON CYCLICAL),25/11/13,"8,962.00"
201113C,B NOKES CONTRACTS LTD,1968,2,"3,465.00",STRATEGIC (NON CYCLICAL),25/11/13,
201113C,B NOKES CONTRACTS LTD,1969,1,801.94,DEVELOPMENT  EXPENSES-CONTRACT,25/11/13,801.94
131113C,SAFEGUARD PEST CON. & ENV.LTD,211687,1,680.00,PEST CONTROL,25/11/13,680.00
201113C,TEAM PURPLE LIMITED===========,2644,1,46.50,CLOTHING,25/11/13,324.92
201113C,TEAM PURPLE LIMITED===========,2644,2,139.00,CLOTHING,25/11/13,
201113C,TEAM PURPLE LIMITED===========,2644,3,99.60,CLOTHING,25/11/13,
201113C,TEAM PURPLE LIMITED===========,2644,4,39.82,CLOTHING,25/11/13,
800026253,ADECCO UK LIMITED=============,26604671,1,"1,168.46",FRS STAFF AGENCY,25/11/13,"1,168.46"
800026254,ADECCO UK LIMITED=============,26604672,1,"1,708.47",FRS STAFF AGENCY,25/11/13,"1,708.47"
800026255,ADECCO UK LIMITED=============,26604673,1,364.68,CONSULTANTS,25/11/13,364.68
800026256,ADECCO UK LIMITED=============,26604674,1,439.60,FRS STAFF AGENCY,25/11/13,439.60
800026257,ADECCO UK LIMITED=============,26604675,1,"2,500.00",FRS STAFF AGENCY,25/11/13,"2,500.00"
800026267,ADECCO UK LIMITED=============,26604676,1,711.96,FRS STAFF AGENCY,25/11/13,711.96
800026258,ADECCO UK LIMITED=============,26604677,1,594.65,FRS STAFF AGENCY,25/11/13,594.65
800026259,ADECCO UK LIMITED=============,26604678,1,594.65,FRS STAFF AGENCY,25/11/13,594.65
800026243,ADECCO UK LIMITED=============,26604679,1,594.65,FRS STAFF AGENCY,25/11/13,594.65
800026246,ADECCO UK LIMITED=============,26604682,1,857.85,FRS STAFF AGENCY,25/11/13,857.85
800026247,ADECCO UK LIMITED=============,26604683,1,439.60,FRS STAFF AGENCY,25/11/13,439.60
800026248,ADECCO UK LIMITED=============,26604684,1,"1,949.85",FRS STAFF AGENCY,25/11/13,"1,949.85"
800026249,ADECCO UK LIMITED=============,26604685,1,543.68,FRS STAFF AGENCY,25/11/13,543.68
800026250,ADECCO UK LIMITED=============,26604686,1,945.42,FRS STAFF AGENCY,25/11/13,945.42
800026251,ADECCO UK LIMITED=============,26604687,1,"1,450.89",FRS STAFF AGENCY,25/11/13,"1,450.89"
800026263,ADECCO UK LIMITED=============,26604689,1,356.79,FRS STAFF AGENCY,25/11/13,356.79
800026264,ADECCO UK LIMITED=============,26604690,1,"1,445.40",FRS STAFF AGENCY,25/11/13,"1,445.40"
800026265,ADECCO UK LIMITED=============,26604691,1,594.65,FRS STAFF AGENCY,25/11/13,594.65
800026266,ADECCO UK LIMITED=============,26604692,1,439.60,FRS STAFF AGENCY,25/11/13,439.60
800026260,ADECCO UK LIMITED=============,26604693,1,389.36,FRS STAFF AGENCY,25/11/13,389.36
800026261,ADECCO UK LIMITED=============,26604694,1,729.36,CONSULTANTS,25/11/13,729.36
800026262,ADECCO UK LIMITED=============,26604695,1,994.50,FRS STAFF AGENCY,25/11/13,994.50
211113F,MACE LIMITED,26915/0413700,1,"3,418.01",PROF FEES-MISCELLANEOUS,25/11/13,"3,418.01"
211113F,MACE LIMITED,26915/1113195,1,"2,964.23",PROF FEES-MISCELLANEOUS,25/11/13,"2,964.23"
111113D,S W BRUCE & CO LTD,29581,1,"73,759.83",DEVELOPMENT  EXPENSES-CONTRACT,25/11/13,"73,759.83"
211113F,COMPUTACENTRE================,3805082622/3805192033,1,810.00,PURCHASES-COMPUTER/EQUIPMENT,25/11/13,810.00
111113D,COMPUTACENTRE================,3805181274,1,289.32,ACQUISITIONS,25/11/13,289.32
140459,THAMES WATER UTILITIES LTD====,3853861116J,1,405.69,WATER & SEWERAGE RATES,25/11/13,405.69
800025614,*BURLINGTON UNIFORMS LTD,422643,1,38.25,CLOTHING,25/11/13,"3,332.88"
800025614,*BURLINGTON UNIFORMS LTD,422643,2,127.50,CLOTHING,25/11/13,
800025614,*BURLINGTON UNIFORMS LTD,422643,3,51.00,CLOTHING,25/11/13,
800025614,*BURLINGTON UNIFORMS LTD,422643,4,164.50,CLOTHING,25/11/13,
800025614,*BURLINGTON UNIFORMS LTD,422643,5,47.00,CLOTHING,25/11/13,
800025614,*BURLINGTON UNIFORMS LTD,422643,6,23.50,CLOTHING,25/11/13,
800025614,*BURLINGTON UNIFORMS LTD,422643,7,127.50,CLOTHING,25/11/13,
800025614,*BURLINGTON UNIFORMS LTD,422643,8,51.00,CLOTHING,25/11/13,
800025614,*BURLINGTON UNIFORMS LTD,422643,9,25.50,CLOTHING,25/11/13,
800025614,*BURLINGTON UNIFORMS LTD,422643,10,51.00,CLOTHING,25/11/13,
800025614,*BURLINGTON UNIFORMS LTD,422643,11,51.00,CLOTHING,25/11/13,
800025614,*BURLINGTON UNIFORMS LTD,422643,12,25.50,CLOTHING,25/11/13,
800025614,*BURLINGTON UNIFORMS LTD,422643,13,102.00,CLOTHING,25/11/13,
800025614,*BURLINGTON UNIFORMS LTD,422643,14,673.74,CLOTHING,25/11/13,
800025614,*BURLINGTON UNIFORMS LTD,422643,15,251.25,CLOTHING,25/11/13,
800025614,*BURLINGTON UNIFORMS LTD,422643,16,271.90,CLOTHING,25/11/13,
800025614,*BURLINGTON UNIFORMS LTD,422643,17,435.04,CLOTHING,25/11/13,
800025614,*BURLINGTON UNIFORMS LTD,422643,18,489.42,CLOTHING,25/11/13,
800025614,*BURLINGTON UNIFORMS LTD,422643,19,326.28,CLOTHING,25/11/13,
800025615,*BURLINGTON UNIFORMS LTD,422644,1,201.00,CLOTHING,25/11/13,954.75
800025615,*BURLINGTON UNIFORMS LTD,422644,2,100.50,CLOTHING,25/11/13,
800025615,*BURLINGTON UNIFORMS LTD,422644,3,50.25,CLOTHING,25/11/13,
800025615,*BURLINGTON UNIFORMS LTD,422644,4,50.25,CLOTHING,25/11/13,
800025615,*BURLINGTON UNIFORMS LTD,422644,5,150.75,CLOTHING,25/11/13,
800025615,*BURLINGTON UNIFORMS LTD,422644,6,50.25,CLOTHING,25/11/13,
800025615,*BURLINGTON UNIFORMS LTD,422644,7,50.25,CLOTHING,25/11/13,
800025615,*BURLINGTON UNIFORMS LTD,422644,8,50.25,CLOTHING,25/11/13,
800025615,*BURLINGTON UNIFORMS LTD,422644,9,50.25,CLOTHING,25/11/13,
800025615,*BURLINGTON UNIFORMS LTD,422644,10,50.25,CLOTHING,25/11/13,
800025615,*BURLINGTON UNIFORMS LTD,422644,11,50.25,CLOTHING,25/11/13,
800025615,*BURLINGTON UNIFORMS LTD,422644,12,50.25,CLOTHING,25/11/13,
800025615,*BURLINGTON UNIFORMS LTD,422644,13,50.25,CLOTHING,25/11/13,
800025627,*BURLINGTON UNIFORMS LTD,422656,1,114.75,CLOTHING,25/11/13,599.25
800025627,*BURLINGTON UNIFORMS LTD,422656,2,51.00,CLOTHING,25/11/13,
800025627,*BURLINGTON UNIFORMS LTD,422656,3,433.50,CLOTHING,25/11/13,
800025760,*BURLINGTON UNIFORMS LTD,422657,1,149.50,CLOTHING,25/11/13,432.70
800025760,*BURLINGTON UNIFORMS LTD,422657,2,23.00,CLOTHING,25/11/13,
800025760,*BURLINGTON UNIFORMS LTD,422657,3,23.00,CLOTHING,25/11/13,
800025760,*BURLINGTON UNIFORMS LTD,422657,4,23.00,CLOTHING,25/11/13,
800025760,*BURLINGTON UNIFORMS LTD,422657,5,23.00,CLOTHING,25/11/13,
800025760,*BURLINGTON UNIFORMS LTD,422657,6,11.50,CLOTHING,25/11/13,
800025760,*BURLINGTON UNIFORMS LTD,422657,7,59.90,CLOTHING,25/11/13,
800025760,*BURLINGTON UNIFORMS LTD,422657,8,59.90,CLOTHING,25/11/13,
800025760,*BURLINGTON UNIFORMS LTD,422657,9,59.90,CLOTHING,25/11/13,
800025629,*BURLINGTON UNIFORMS LTD,422658,1,359.40,CLOTHING,25/11/13,359.40
201113C,SPORTSAFE UK LTD==============,450650,1,395.00,GYM EQUIPMENT,25/11/13,545.30
201113C,SPORTSAFE UK LTD==============,450650,2,48.50,GYM EQUIPMENT,25/11/13,
201113C,SPORTSAFE UK LTD==============,450650,3,72.80,GYM EQUIPMENT,25/11/13,
201113C,SPORTSAFE UK LTD==============,450650,4,29.00,GYM EQUIPMENT,25/11/13,
201113C,SPORTSAFE UK LTD==============,450949,1,650.00,GYM EQUIPMENT,25/11/13,935.00
201113C,SPORTSAFE UK LTD==============,450949,2,285.00,GYM EQUIPMENT,25/11/13,
201113C,SPORTSAFE UK LTD==============,450950,1,285.00,GYM EQUIPMENT,25/11/13,285.00
140459,THAMES WATER UTILITIES LTD====,51792-16119\,1,261.32,WATER & SEWERAGE RATES,25/11/13,261.32
141113C,CARRINGTON CAREER & WORKWEAR==,559104,1,"2,117.20",CLOTHING,25/11/13,"2,117.20"
211113F,URS SCOTT WILSON LIMITED,5688306,1,"3,219.86",PROF FEES-MISCELLANEOUS,25/11/13,"9,260.62"
211113F,URS SCOTT WILSON LIMITED,5688306,2,"6,040.76",PROF FEES-MISCELLANEOUS,25/11/13,
211113F,URS SCOTT WILSON LIMITED,5688368,1,"8,243.75",PROF FEES-MISCELLANEOUS,25/11/13,"10,377.46"
211113F,URS SCOTT WILSON LIMITED,5688368,2,"2,133.71",PROF FEES-MISCELLANEOUS,25/11/13,
201113C,DISCLOSURE SCOTLAND===========,578784,1,"1,050.00",CRB CHECKS,25/11/13,"1,050.00"
201113D,ANDERSON TRAVEL LTD===========,66026,1,745.00,CONTRACT HIRE,25/11/13,745.00
211113F,SWEETT  UK LTD,7029803,1,"1,760.00",STRATEGIC (NON CYCLICAL),25/11/13,"1,760.00"
121113C,DRAEGER SAFETY UK LIMITED=====,90429342,1,30.00,REPAIR & MAINTENANCE,25/11/13,"1,184.00"
121113C,DRAEGER SAFETY UK LIMITED=====,90429342,2,998.00,REPAIR & MAINTENANCE,25/11/13,
121113C,DRAEGER SAFETY UK LIMITED=====,90429342,3,150.00,REPAIR & MAINTENANCE,25/11/13,
121113C,DRAEGER SAFETY UK LIMITED=====,90429342,4,6.00,REPAIR & MAINTENANCE,25/11/13,
201113D,DRAEGER SAFETY UK LIMITED=====,90429836,1,354.00,PROTECTIVE EQUIPT - PARTS,25/11/13,354.00
201113D,DRAEGER SAFETY UK LIMITED=====,90429984,1,"1,707.90",PROTECTIVE EQUIPT - PARTS,25/11/13,"1,707.90"
201113D,DRAEGER SAFETY UK LIMITED=====,90430172,1,679.50,PROTECTIVE EQUIPT - PARTS,25/11/13,679.50
201113C,FIRE SERVICE COLLEGE LTD======,93271218,1,780.00,PROFESSIONAL DEVELOPMENT,25/11/13,780.00
140459,THAMES WATER UTILITIES LTD====,95752-38148\,1,263.95,WATER & SEWERAGE RATES,25/11/13,263.95
131113D,*OFFICE DEPOT UK LTD,959322995,1,211.20,STATIONERY CONSUMABLES,25/11/13,669.54
131113D,*OFFICE DEPOT UK LTD,959322995,2,101.34,STATIONERY CONSUMABLES,25/11/13,
131113D,*OFFICE DEPOT UK LTD,959322995,3,357.00,STATIONERY CONSUMABLES,25/11/13,
201113C,SURVITEC SERVICE &DISTRIBUTION,CD30762698,1,310.00,PROTECTIVE EQUIPT - PARTS,25/11/13,407.45
201113C,SURVITEC SERVICE &DISTRIBUTION,CD30762698,2,84.95,PROTECTIVE EQUIPT - PARTS,25/11/13,
201113C,SURVITEC SERVICE &DISTRIBUTION,CD30762698,3,12.50,REPAIR & MAINTENANCE,25/11/13,
201113C,SURVITEC SERVICE &DISTRIBUTION,CD30762846,1,625.50,PROTECTIVE EQUIPT - PARTS,25/11/13,635.50
201113C,SURVITEC SERVICE &DISTRIBUTION,CD30762846,2,10.00,REPAIR & MAINTENANCE,25/11/13,
201113C,HALL FUELS,I06410852,1,"3,343.50",FUEL,25/11/13,"3,343.50"
141113C,HALL FUELS,I06440917,1,"4,429.20",FUEL,25/11/13,"4,429.20"
140459,JCT600 CONTRACTS LIMITED======,INV00048194,1,950.00,MILEAGE CHARGES,25/11/13,950.00
211113F,JACKSON LIFT GROUP============,JS340400M,1,85.25,STRATEGIC (CYCLICAL),25/11/13,"2,344.27"
211113F,JACKSON LIFT GROUP============,JS340400M,2,85.25,STRATEGIC (CYCLICAL),25/11/13,
211113F,JACKSON LIFT GROUP============,JS340400M,3,85.25,STRATEGIC (CYCLICAL),25/11/13,
211113F,JACKSON LIFT GROUP============,JS340400M,4,85.25,STRATEGIC (CYCLICAL),25/11/13,
211113F,JACKSON LIFT GROUP============,JS340400M,5,85.25,STRATEGIC (CYCLICAL),25/11/13,
211113F,JACKSON LIFT GROUP============,JS340400M,6,85.25,STRATEGIC (CYCLICAL),25/11/13,
211113F,JACKSON LIFT GROUP============,JS340400M,7,85.25,STRATEGIC (CYCLICAL),25/11/13,
211113F,JACKSON LIFT GROUP============,JS340400M,8,85.25,STRATEGIC (CYCLICAL),25/11/13,
211113F,JACKSON LIFT GROUP============,JS340400M,9,85.25,STRATEGIC (CYCLICAL),25/11/13,
211113F,JACKSON LIFT GROUP============,JS340400M,10,42.25,STRATEGIC (CYCLICAL),25/11/13,
211113F,JACKSON LIFT GROUP============,JS340400M,11,42.25,STRATEGIC (CYCLICAL),25/11/13,
211113F,JACKSON LIFT GROUP============,JS340400M,12,106.92,STRATEGIC (CYCLICAL),25/11/13,
211113F,JACKSON LIFT GROUP============,JS340400M,13,106.92,STRATEGIC (CYCLICAL),25/11/13,
211113F,JACKSON LIFT GROUP============,JS340400M,14,106.92,STRATEGIC (CYCLICAL),25/11/13,
211113F,JACKSON LIFT GROUP============,JS340400M,15,106.92,STRATEGIC (CYCLICAL),25/11/13,
211113F,JACKSON LIFT GROUP============,JS340400M,16,106.92,STRATEGIC (CYCLICAL),25/11/13,
211113F,JACKSON LIFT GROUP============,JS340400M,17,106.92,STRATEGIC (CYCLICAL),25/11/13,
211113F,JACKSON LIFT GROUP============,JS340400M,18,42.25,STRATEGIC (CYCLICAL),25/11/13,
211113F,JACKSON LIFT GROUP============,JS340400M,19,85.25,STRATEGIC (CYCLICAL),25/11/13,
211113F,JACKSON LIFT GROUP============,JS340400M,20,42.25,STRATEGIC (CYCLICAL),25/11/13,
211113F,JACKSON LIFT GROUP============,JS340400M,21,85.25,STRATEGIC (CYCLICAL),25/11/13,
211113F,JACKSON LIFT GROUP============,JS340400M,22,42.25,STRATEGIC (CYCLICAL),25/11/13,
211113F,JACKSON LIFT GROUP============,JS340400M,23,85.25,STRATEGIC (CYCLICAL),25/11/13,
211113F,JACKSON LIFT GROUP============,JS340400M,24,85.25,STRATEGIC (CYCLICAL),25/11/13,
211113F,JACKSON LIFT GROUP============,JS340400M,25,85.25,STRATEGIC (CYCLICAL),25/11/13,
211113F,JACKSON LIFT GROUP============,JS340400M,26,85.25,STRATEGIC (CYCLICAL),25/11/13,
211113F,JACKSON LIFT GROUP============,JS340400M,27,42.25,STRATEGIC (CYCLICAL),25/11/13,
211113F,JACKSON LIFT GROUP============,JS340400M,28,85.25,STRATEGIC (CYCLICAL),25/11/13,
211113F,JACKSON LIFT GROUP============,JS340400M,29,85.25,STRATEGIC (CYCLICAL),25/11/13,
121113C,BALFOUR BEATTY WORKPLACE LTD,M124702,1,605.35,STRATEGIC (NON CYCLICAL),25/11/13,605.35
121113C,BALFOUR BEATTY WORKPLACE LTD,M124703,1,"4,988.85",STRATEGIC (NON CYCLICAL),25/11/13,"4,988.85"
121113C,BALFOUR BEATTY WORKPLACE LTD,M124704,1,"1,182.85",STRATEGIC (NON CYCLICAL),25/11/13,"1,182.85"
121113C,BALFOUR BEATTY WORKPLACE LTD,M124705,1,447.24,STRATEGIC (NON CYCLICAL),25/11/13,447.24
121113C,BALFOUR BEATTY WORKPLACE LTD,M124706,1,447.24,STRATEGIC (CYCLICAL),25/11/13,447.24
121113C,BALFOUR BEATTY WORKPLACE LTD,M124707,1,"1,587.00",CATERING FIXTURES,25/11/13,"1,587.00"
121113C,BALFOUR BEATTY WORKPLACE LTD,M124709,1,"1,893.53",STRATEGIC (NON CYCLICAL),25/11/13,"1,893.53"
211113F,PILLINGER CONTROLS LTD========,PI71422,1,"1,300.00",DAY TO DAY MINOR IMPS,25/11/13,"1,300.00"
211113F,PILLINGER CONTROLS LTD========,PI71503,1,"1,328.30",DAY TO DAY MINOR IMPS,25/11/13,"2,656.60"
211113F,PILLINGER CONTROLS LTD========,PI71503,2,"1,328.30",STRATEGIC (NON CYCLICAL),25/11/13,
201113C,DODS PARLIAMENTARY COMM LTD==,PK073866,1,350.00,PROFESSIONAL DEVELOPMENT,25/11/13,350.00
140459,ARVAL UK LTD,RI0000932426,1,289.27,LEASE CAR CHARGES,25/11/13,289.27
140459,ARVAL UK LTD,RI0000932426,2,-24.71,VAT CAR LEASING,25/11/13,
140459,ARVAL UK LTD,RI0000932426,3,24.71,LEASE CAR CHARGES,25/11/13,
140459,ARVAL UK LTD,RI0000932427,1,"1,873.65",LEASE CAR CHARGES,25/11/13,"4,529.03"
140459,ARVAL UK LTD,RI0000932427,2,"2,655.38",P/PAYMTS-CAR LEASG-RENTAL,25/11/13,
140459,ARVAL UK LTD,RI0000932427,3,-379.56,VAT CAR LEASING,25/11/13,
140459,ARVAL UK LTD,RI0000932427,4,379.56,LEASE CAR CHARGES,25/11/13,
140459,ARVAL UK LTD,RI0000932428,1,"1,464.44",LEASE CAR CHARGES,25/11/13,"3,539.87"
140459,ARVAL UK LTD,RI0000932428,2,"2,075.43",P/PAYMTS-CAR LEASG-RENTAL,25/11/13,
140459,ARVAL UK LTD,RI0000932428,3,-283.40,VAT CAR LEASING,25/11/13,
140459,ARVAL UK LTD,RI0000932428,4,283.40,LEASE CAR CHARGES,25/11/13,
140459,ARVAL UK LTD,RI0000932429,1,"2,211.26",LEASE CAR CHARGES,25/11/13,"5,345.11"
140459,ARVAL UK LTD,RI0000932429,2,"3,133.85",P/PAYMTS-CAR LEASG-RENTAL,25/11/13,
140459,ARVAL UK LTD,RI0000932429,3,-472.84,VAT CAR LEASING,25/11/13,
140459,ARVAL UK LTD,RI0000932429,4,472.84,LEASE CAR CHARGES,25/11/13,
140459,ARVAL UK LTD,RI0000932430,1,"1,364.65",LEASE CAR CHARGES,25/11/13,"3,298.66"
140459,ARVAL UK LTD,RI0000932430,2,"1,934.01",P/PAYMTS-CAR LEASG-RENTAL,25/11/13,
140459,ARVAL UK LTD,RI0000932430,3,-283.28,VAT CAR LEASING,25/11/13,
140459,ARVAL UK LTD,RI0000932430,4,283.28,LEASE CAR CHARGES,25/11/13,
140459,ARVAL UK LTD,RI000932431,1,"1,954.34",LEASE CAR CHARGES,25/11/13,"4,724.07"
140459,ARVAL UK LTD,RI000932431,2,"2,769.73",P/PAYMTS-CAR LEASG-RENTAL,25/11/13,
140459,ARVAL UK LTD,RI000932431,3,-396.05,VAT CAR LEASING,25/11/13,
140459,ARVAL UK LTD,RI000932431,4,396.05,LEASE CAR CHARGES,25/11/13,
191113C,SECURITAS SECURITY SERVICES LT,S-SIN0183548,1,269.70,GENERAL,25/11/13,269.70
191113C,SECURITAS SECURITY SERVICES LT,S-SIN0183558,1,"2,275.50",REPAIR & MAINTENANCE,25/11/13,"2,275.50"
081113C,HUNTER LODGE==================,SI-05381,1,610.00,ADVERTISING,25/11/13,610.00
800025772,*XMA LTD,U224040,1,144.40,STATIONERY CONSUMABLES,25/11/13,519.14
800025772,*XMA LTD,U224040,2,72.20,STATIONERY CONSUMABLES,25/11/13,
800025772,*XMA LTD,U224040,3,135.64,STATIONERY CONSUMABLES,25/11/13,
800025772,*XMA LTD,U224040,4,166.90,STATIONERY CONSUMABLES,25/11/13,
800025782,*XMA LTD,U224117,1,134.80,STATIONERY CONSUMABLES,25/11/13,337.00
800025782,*XMA LTD,U224117,2,67.40,STATIONERY CONSUMABLES,25/11/13,
800025782,*XMA LTD,U224117,3,67.40,STATIONERY CONSUMABLES,25/11/13,
800025782,*XMA LTD,U224117,4,67.40,STATIONERY CONSUMABLES,25/11/13,
902349,PUBLIC WORKS LOAN BOARD=======,529 09456S,2,"22,500.00",PROVISION FOR DEBT REPAYMENT,27/11/13,"22,500.00"
902347,REIGATE HILL GOLF CLUB========,9124,1,475.00,PROFESSIONAL DEVELOPMENT,27/11/13,475.00
902348,BABCOCK CRITICAL SERVICES LTD,SIMP011905,1,"1,243,461.00",VEHICLES,27/11/13,"1,392,042.96"
902348,BABCOCK CRITICAL SERVICES LTD,SIMP011905,2,"8,276.18",LOST & NFWT OPS EQUIPMENT,27/11/13,
902348,BABCOCK CRITICAL SERVICES LTD,SIMP011905,3,"68,615.48",VEHICLES NWFT,27/11/13,
902348,BABCOCK CRITICAL SERVICES LTD,SIMP011905,4,"4,894.95",ACCIDENT REPAIRS,27/11/13,
902348,BABCOCK CRITICAL SERVICES LTD,SIMP011905,5,36.00,MODIFICATIONS,27/11/13,
902348,BABCOCK CRITICAL SERVICES LTD,SIMP011905,6,622.59,MODIFICATIONS,27/11/13,
902348,BABCOCK CRITICAL SERVICES LTD,SIMP011905,7,"4,158.00",MODIFICATIONS,27/11/13,
902348,BABCOCK CRITICAL SERVICES LTD,SIMP011905,8,516.04,MODIFICATIONS,27/11/13,
902348,BABCOCK CRITICAL SERVICES LTD,SIMP011905,9,13.64,MODIFICATIONS,27/11/13,
902348,BABCOCK CRITICAL SERVICES LTD,SIMP011905,10,34.65,MODIFICATIONS,27/11/13,
902348,BABCOCK CRITICAL SERVICES LTD,SIMP011905,11,"1,061.48",MODIFICATIONS,27/11/13,
902348,BABCOCK CRITICAL SERVICES LTD,SIMP011905,12,"5,268.15",MODIFICATIONS,27/11/13,
902348,BABCOCK CRITICAL SERVICES LTD,SIMP011905,13,"2,078.70",MODIFICATIONS,27/11/13,
902348,BABCOCK CRITICAL SERVICES LTD,SIMP011905,14,"1,495.60",MODIFICATIONS,27/11/13,
902348,BABCOCK CRITICAL SERVICES LTD,SIMP011905,15,474.95,MODIFICATIONS,27/11/13,
902348,BABCOCK CRITICAL SERVICES LTD,SIMP011905,16,"1,641.60",MODIFICATIONS,27/11/13,
902348,BABCOCK CRITICAL SERVICES LTD,SIMP011905,17,"3,540.39",MODIFICATIONS,27/11/13,
902348,BABCOCK CRITICAL SERVICES LTD,SIMP011905,18,603.95,MODIFICATIONS,27/11/13,
902348,BABCOCK CRITICAL SERVICES LTD,SIMP011905,19,"1,201.75",MODIFICATIONS,27/11/13,
902348,BABCOCK CRITICAL SERVICES LTD,SIMP011905,20,906.71,MODIFICATIONS,27/11/13,
902348,BABCOCK CRITICAL SERVICES LTD,SIMP011905,21,"43,141.15",VEHICLES NWFT,27/11/13,
251113C,MOOLANDS LTD,000000253,1,"5,328.94",STRATEGIC (NON CYCLICAL),28/11/13,"5,328.94"
221113C,USEL==========================,0000020333,1,"1,585.00",TELEMETRY MAINTENANCE,28/11/13,"1,585.00"
251113C,GOVNET COMMUNICATIONS=========,0000060204,1,590.00,PROFESSIONAL DEVELOPMENT,28/11/13,590.00
251113G,SYNERGY HEALTH LAB SERVICE LTD,0000104594,1,270.00,DRUG & ALCOHOL TESTS,28/11/13,270.00
251113C,HEALTH MANAGEMENT LIMITED=====,0000104904,1,180.00,THIRD PARTY REPORTS,28/11/13,"3,474.00"
251113C,HEALTH MANAGEMENT LIMITED=====,0000104904,2,450.00,THIRD PARTY REPORTS,28/11/13,
251113C,HEALTH MANAGEMENT LIMITED=====,0000104904,3,200.00,THIRD PARTY REPORTS,28/11/13,
251113C,HEALTH MANAGEMENT LIMITED=====,0000104904,4,300.00,THIRD PARTY REPORTS,28/11/13,
251113C,HEALTH MANAGEMENT LIMITED=====,0000104904,5,225.00,THIRD PARTY REPORTS,28/11/13,
251113C,HEALTH MANAGEMENT LIMITED=====,0000104904,6,350.00,THIRD PARTY REPORTS,28/11/13,
251113C,HEALTH MANAGEMENT LIMITED=====,0000104904,7,"1,434.50",THIRD PARTY REPORTS,28/11/13,
251113C,HEALTH MANAGEMENT LIMITED=====,0000104904,8,334.50,THIRD PARTY REPORTS,28/11/13,
